Payment Date,Transaction Number,Net Amount,Supplier (Beneficiary) Name,Local Supplier Internal Reference,Directorate / Service Where Expenditure Incurred,Service Category Label,Service Category URI,SeRCOP Expenditure Category,SeRCOP Expenditure Code,Purpose of Spend,SeRCOP Detailed Expenditure Code,Capital/Revenue,Procurement Classification
07/06/2022,2410098,541.32,Redacted Personal Data,402590,"Health, Education, Care and Safeguarding",Children's & Education Services,103,Third Party Payments,505,Other Establishments,5041,Revenue,NON INFLUENCIBLE.INDIVIDUAL
15/06/2022,2419114,4666.67,Redacted Personal Data,402358,"Health, Education, Care and Safeguarding",Children's & Education Services,103,Third Party Payments,505,Other Establishments,5041,Revenue,HUMAN RESOURCES.TRAINING & CONFERENCES
15/06/2022,2419148,4772.00,NEAT ACADEMY TRUST,402792,"Health, Education, Care and Safeguarding",Children's & Education Services,103,Employees,501,Indirect Employee Expenses,5002,Revenue,HUMAN RESOURCES.TRAINING & CONFERENCES
20/06/2022,2421495,408.31,DENBIGH COMMUNITY PRIMARY SCHOOL,276823,"Health, Education, Care and Safeguarding",Children's & Education Services,103,Third Party Payments,505,Independent Units within the Council,5035,Revenue,NON INFLUENCIBLE.NT SCHOOLS
22/06/2022,2424665,324.64,SHIREMOOR PRIMARY SCHOOL,256148,"Health, Education, Care and Safeguarding",Children's & Education Services,103,Third Party Payments,505,Independent Units within the Council,5035,Revenue,NON INFLUENCIBLE.NT SCHOOLS
22/06/2022,2424688,257.98,GRASMERE ACADAMY,388867,"Health, Education, Care and Safeguarding",Children's & Education Services,103,Third Party Payments,505,Independent Units within the Council,5035,Revenue,NON INFLUENCIBLE.EXT SCHOOLS
22/06/2022,2424688,383.31,GRASMERE ACADAMY,388867,"Health, Education, Care and Safeguarding",Children's & Education Services,103,Third Party Payments,505,Independent Units within the Council,5035,Revenue,NON INFLUENCIBLE.EXT SCHOOLS
22/06/2022,2424715,266.31,Redacted Personal Data,367496,"Health, Education, Care and Safeguarding",Children's & Education Services,103,Third Party Payments,505,Independent Units within the Council,5035,Revenue,NON INFLUENCIBLE.GRANTS
22/06/2022,2424715,299.64,Redacted Personal Data,367496,"Health, Education, Care and Safeguarding",Children's & Education Services,103,Third Party Payments,505,Independent Units within the Council,5035,Revenue,NON INFLUENCIBLE.GRANTS
27/06/2022,2426255,4159.43,CLEAPSS,275273,"Health, Education, Care and Safeguarding",Children's & Education Services,103,Supplies and Services,504,Grants and Subscriptions,5031,Revenue,SUBSCRIPTIONS & PUBLICATIONS.MEMBERSHIPS
28/06/2022,2427036,600.00,THE DESIGN AND TECHNOLOGY ASSOCIATION,309463,"Health, Education, Care and Safeguarding",Children's & Education Services,103,Third Party Payments,505,Private Contractors,5042,Revenue,HUMAN RESOURCES.TRAINING & CONFERENCES
29/06/2022,2427316,266.31,SIR JAMES KNOTT NURSERY SCHOOL,316317,"Health, Education, Care and Safeguarding",Children's & Education Services,103,Third Party Payments,505,Independent Units within the Council,5035,Revenue,NON INFLUENCIBLE.NT SCHOOLS
29/06/2022,2427316,332.97,SIR JAMES KNOTT NURSERY SCHOOL,316317,"Health, Education, Care and Safeguarding",Children's & Education Services,103,Third Party Payments,505,Independent Units within the Council,5035,Revenue,NON INFLUENCIBLE.NT SCHOOLS
29/06/2022,2427416,408.31,SPRING GARDENS PRIMARY SCHOOL,259088,"Health, Education, Care and Safeguarding",Children's & Education Services,103,Third Party Payments,505,Independent Units within the Council,5035,Revenue,NON INFLUENCIBLE.NT SCHOOLS
28/06/2022,2426936,2159.81,TYNE TEES SECURITY LTD,389237,"Health, Education, Care and Safeguarding",Children's & Education Services,103,Third Party Payments,505,Private Contractors,5042,Revenue,FIRE & SECURITY.MANNED GUARDING
30/06/2022,2427834,4.80,LYRECO LTD,336434,"Health, Education, Care and Safeguarding",Children's & Education Services,103,Supplies and Services,504,"Printing, Stationery and General Office Expenses",5026,Revenue,STATIONERY.STATIONERY
30/06/2022,2427834,5.00,LYRECO LTD,336434,"Health, Education, Care and Safeguarding",Children's & Education Services,103,Supplies and Services,504,"Printing, Stationery and General Office Expenses",5026,Revenue,STATIONERY.STATIONERY
30/06/2022,2427834,9.20,LYRECO LTD,336434,"Health, Education, Care and Safeguarding",Children's & Education Services,103,Supplies and Services,504,"Printing, Stationery and General Office Expenses",5026,Revenue,STATIONERY.STATIONERY
30/06/2022,2427834,193.00,LYRECO LTD,336434,"Health, Education, Care and Safeguarding",Children's & Education Services,103,Supplies and Services,504,"Printing, Stationery and General Office Expenses",5026,Revenue,STATIONERY.STATIONERY
14/06/2022,2417842,8580.00,COOPERS TOURMASTER TRAVEL LIMITED,304672,"Health, Education, Care and Safeguarding",Children's & Education Services,103,Transport,503,Contract Hire and Operating Leases,5018,Revenue,PUBLIC TRANSPORT.TAXI SERVICES
20/06/2022,2421505,320.00,MENTAL HEALTH FIRST AID ENGLAND,401682,"Health, Education, Care and Safeguarding",Children's & Education Services,103,Supplies and Services,504,Miscellaneous Expenses,5034,Revenue,HUMAN RESOURCES.TRAINING & CONFERENCES
14/06/2022,2417803,2665.00,NORTHUMBRIA YOUTH ACTION LTD,353408,"Health, Education, Care and Safeguarding",Children's & Education Services,103,Third Party Payments,505,Private Contractors,5042,Revenue,NON INFLUENCIBLE.NON INFLUENCIBLE
22/06/2022,2424682,723.80,BARNARDO'S,029324,"Health, Education, Care and Safeguarding",Children's & Education Services,103,Third Party Payments,505,Private Contractors,5042,Revenue,SOCIAL CARE.CARE SERVICES
10/06/2022,2414441,205.00,BUYKING LTD T/A WE BRAND IT,391826,Resources,Children's & Education Services,103,Supplies and Services,504,Contribution to Provisions,5033,Revenue,ADVERTISING & MARKETING.EVENTS & PROMOTIONS
10/06/2022,2414441,595.00,BUYKING LTD T/A WE BRAND IT,391826,Resources,Children's & Education Services,103,Supplies and Services,504,Contribution to Provisions,5033,Revenue,ADVERTISING & MARKETING.EVENTS & PROMOTIONS
14/06/2022,2417824,1800.00,ACT NOW TRAINING,355039,Resources,Children's & Education Services,103,Supplies and Services,504,Miscellaneous Expenses,5034,Revenue,HUMAN RESOURCES.TRAINING & CONFERENCES
27/06/2022,2426281,249.00,HOGREFE LTD,388122,"Health, Education, Care and Safeguarding",Children's & Education Services,103,Supplies and Services,504,Equipment,5023,Revenue,SUBSCRIPTIONS & PUBLICATIONS.BOOKS & PUBLICATIONS
06/06/2022,2405873,1276.00,GATESHEAD COLLEGE,243071,Commissioning & Asset Management,Children's & Education Services,103,Third Party Payments,505,Private Contractors,5042,Revenue,NON INFLUENCIBLE.EXT SCHOOLS
14/06/2022,2417800,5801.00,CITY OF SUNDERLAND COLLEGE,310428,Commissioning & Asset Management,Children's & Education Services,103,Third Party Payments,505,Private Contractors,5042,Revenue,NON INFLUENCIBLE.NON INFLUENCIBLE
21/06/2022,2423706,86689.00,NEWCASTLE COLLEGE,227612,Commissioning & Asset Management,Children's & Education Services,103,Third Party Payments,505,Private Contractors,5042,Revenue,NON INFLUENCIBLE.EXT SCHOOLS
29/06/2022,2427321,1154.00,EAST DURHAM COLLEGE,031067,Commissioning & Asset Management,Children's & Education Services,103,Third Party Payments,505,Private Contractors,5042,Revenue,NON INFLUENCIBLE.EXT SCHOOLS
29/06/2022,2427369,2505.00,TRINITY SCHOOL,350733,Commissioning & Asset Management,Children's & Education Services,103,Third Party Payments,505,Private Contractors,5042,Revenue,NON INFLUENCIBLE.GRANTS
29/06/2022,2427464,11570.00,HEALTH EDUCATION ENGLAND,392582,Commissioning & Asset Management,Children's & Education Services,103,Third Party Payments,505,Private Contractors,5042,Revenue,SOCIAL CARE.CHILDCARE SERVICES
06/06/2022,2405878,10475.70,NATIONAL STAR COLLEGE,356174,Commissioning & Asset Management,Children's & Education Services,103,Third Party Payments,505,Private Contractors,5042,Revenue,NON INFLUENCIBLE.EXT SCHOOLS
21/06/2022,2423729,3750.00,RADICAL SERVICES LTD,316763,Commissioning & Asset Management,Children's & Education Services,103,Third Party Payments,505,Private Contractors,5042,Revenue,SOCIAL CARE.NURSING & RESIDENTIAL CARE
21/06/2022,2423729,3750.00,RADICAL SERVICES LTD,316763,Commissioning & Asset Management,Children's & Education Services,103,Third Party Payments,505,Private Contractors,5042,Revenue,SOCIAL CARE.NURSING & RESIDENTIAL CARE
22/06/2022,2424738,11538.88,PERCY HEDLEY FOUNDATION,252934,Commissioning & Asset Management,Children's & Education Services,103,Third Party Payments,505,Private Contractors,5042,Revenue,SOCIAL CARE.DAY CARE
22/06/2022,2424738,14274.22,PERCY HEDLEY FOUNDATION,252934,Commissioning & Asset Management,Children's & Education Services,103,Third Party Payments,505,Private Contractors,5042,Revenue,SOCIAL CARE.DAY CARE
22/06/2022,2424738,27738.50,PERCY HEDLEY FOUNDATION,252934,Commissioning & Asset Management,Children's & Education Services,103,Third Party Payments,505,Private Contractors,5042,Revenue,SOCIAL CARE.DAY CARE
22/06/2022,2424738,29128.39,PERCY HEDLEY FOUNDATION,252934,Commissioning & Asset Management,Children's & Education Services,103,Third Party Payments,505,Private Contractors,5042,Revenue,SOCIAL CARE.DAY CARE
22/06/2022,2424738,106052.52,PERCY HEDLEY FOUNDATION,252934,Commissioning & Asset Management,Children's & Education Services,103,Third Party Payments,505,Private Contractors,5042,Revenue,SOCIAL CARE.DAY CARE
22/06/2022,2424740,7600.46,TALBOT HOUSE,020441,Commissioning & Asset Management,Children's & Education Services,103,Third Party Payments,505,Private Contractors,5042,Revenue,SOCIAL CARE.NURSING & RESIDENTIAL CARE
23/06/2022,2424943,9414.48,TALBOT HOUSE,020441,Commissioning & Asset Management,Children's & Education Services,103,Third Party Payments,505,Private Contractors,5042,Revenue,SOCIAL CARE.NURSING & RESIDENTIAL CARE
23/06/2022,2424943,9426.68,TALBOT HOUSE,020441,Commissioning & Asset Management,Children's & Education Services,103,Third Party Payments,505,Private Contractors,5042,Revenue,SOCIAL CARE.NURSING & RESIDENTIAL CARE
23/06/2022,2424943,10640.66,TALBOT HOUSE,020441,Commissioning & Asset Management,Children's & Education Services,103,Third Party Payments,505,Private Contractors,5042,Revenue,SOCIAL CARE.NURSING & RESIDENTIAL CARE
23/06/2022,2424943,11718.25,TALBOT HOUSE,020441,Commissioning & Asset Management,Children's & Education Services,103,Third Party Payments,505,Private Contractors,5042,Revenue,SOCIAL CARE.NURSING & RESIDENTIAL CARE
23/06/2022,2424943,12863.38,TALBOT HOUSE,020441,Commissioning & Asset Management,Children's & Education Services,103,Third Party Payments,505,Private Contractors,5042,Revenue,SOCIAL CARE.NURSING & RESIDENTIAL CARE
23/06/2022,2424943,14555.32,TALBOT HOUSE,020441,Commissioning & Asset Management,Children's & Education Services,103,Third Party Payments,505,Private Contractors,5042,Revenue,SOCIAL CARE.NURSING & RESIDENTIAL CARE
23/06/2022,2424943,15196.02,TALBOT HOUSE,020441,Commissioning & Asset Management,Children's & Education Services,103,Third Party Payments,505,Private Contractors,5042,Revenue,SOCIAL CARE.NURSING & RESIDENTIAL CARE
23/06/2022,2424963,54559.33,KEDLESTON (WINGS EDUCATION) LIMITED,400482,Commissioning & Asset Management,Children's & Education Services,103,Third Party Payments,505,Private Contractors,5042,Revenue,EDUCATIONAL SUPPLIES.EDUCATIONAL PLACEMENTS
23/06/2022,2424967,11869.81,ACORN CARE & EDUCATION LTD,399754,Commissioning & Asset Management,Children's & Education Services,103,Third Party Payments,505,Private Contractors,5042,Revenue,EDUCATIONAL SUPPLIES.EDUCATIONAL PLACEMENTS
23/06/2022,2424967,40659.83,ACORN CARE & EDUCATION LTD,399754,Commissioning & Asset Management,Children's & Education Services,103,Third Party Payments,505,Private Contractors,5042,Revenue,EDUCATIONAL SUPPLIES.EDUCATIONAL PLACEMENTS
24/06/2022,2425092,991.29,YOUNG FOUNDATIONS LTD,358691,Commissioning & Asset Management,Children's & Education Services,103,Third Party Payments,505,Private Contractors,5042,Revenue,SOCIAL CARE.CARE SERVICES
24/06/2022,2425092,1277.29,YOUNG FOUNDATIONS LTD,358691,Commissioning & Asset Management,Children's & Education Services,103,Third Party Payments,505,Private Contractors,5042,Revenue,SOCIAL CARE.CARE SERVICES
24/06/2022,2425092,2531.14,YOUNG FOUNDATIONS LTD,358691,Commissioning & Asset Management,Children's & Education Services,103,Third Party Payments,505,Private Contractors,5042,Revenue,SOCIAL CARE.CARE SERVICES
24/06/2022,2425092,2681.58,YOUNG FOUNDATIONS LTD,358691,Commissioning & Asset Management,Children's & Education Services,103,Third Party Payments,505,Private Contractors,5042,Revenue,SOCIAL CARE.CARE SERVICES
24/06/2022,2425092,2681.58,YOUNG FOUNDATIONS LTD,358691,Commissioning & Asset Management,Children's & Education Services,103,Third Party Payments,505,Private Contractors,5042,Revenue,SOCIAL CARE.CARE SERVICES
24/06/2022,2425092,2681.58,YOUNG FOUNDATIONS LTD,358691,Commissioning & Asset Management,Children's & Education Services,103,Third Party Payments,505,Private Contractors,5042,Revenue,SOCIAL CARE.CARE SERVICES
24/06/2022,2425092,3033.57,YOUNG FOUNDATIONS LTD,358691,Commissioning & Asset Management,Children's & Education Services,103,Third Party Payments,505,Private Contractors,5042,Revenue,SOCIAL CARE.CARE SERVICES
24/06/2022,2425092,3207.67,YOUNG FOUNDATIONS LTD,358691,Commissioning & Asset Management,Children's & Education Services,103,Third Party Payments,505,Private Contractors,5042,Revenue,SOCIAL CARE.CARE SERVICES
24/06/2022,2425092,4631.82,YOUNG FOUNDATIONS LTD,358691,Commissioning & Asset Management,Children's & Education Services,103,Third Party Payments,505,Private Contractors,5042,Revenue,SOCIAL CARE.CARE SERVICES
24/06/2022,2425092,4631.82,YOUNG FOUNDATIONS LTD,358691,Commissioning & Asset Management,Children's & Education Services,103,Third Party Payments,505,Private Contractors,5042,Revenue,SOCIAL CARE.CARE SERVICES
24/06/2022,2425092,4631.82,YOUNG FOUNDATIONS LTD,358691,Commissioning & Asset Management,Children's & Education Services,103,Third Party Payments,505,Private Contractors,5042,Revenue,SOCIAL CARE.CARE SERVICES
24/06/2022,2425092,5540.52,YOUNG FOUNDATIONS LTD,358691,Commissioning & Asset Management,Children's & Education Services,103,Third Party Payments,505,Private Contractors,5042,Revenue,SOCIAL CARE.CARE SERVICES
28/06/2022,2426981,8806.62,ACORN CARE & EDUCATION LTD,399754,Commissioning & Asset Management,Children's & Education Services,103,Third Party Payments,505,Private Contractors,5042,Revenue,EDUCATIONAL SUPPLIES.EDUCATIONAL PLACEMENTS
22/06/2022,2424740,-5795.82,TALBOT HOUSE,020441,Commissioning & Asset Management,Children's & Education Services,103,Third Party Payments,505,Private Contractors,5042,Revenue,SOCIAL CARE.NURSING & RESIDENTIAL CARE
23/06/2022,2424943,-26184.50,TALBOT HOUSE,020441,Commissioning & Asset Management,Children's & Education Services,103,Third Party Payments,505,Private Contractors,5042,Revenue,SOCIAL CARE.NURSING & RESIDENTIAL CARE
06/06/2022,2405831,940.10,ARK SEARCH LIMITED,401396,Resources,Children's & Education Services,103,Supplies and Services,504,Miscellaneous Expenses,5034,Revenue,HUMAN RESOURCES.TEMPORARY & AGENCY STAFF
06/06/2022,2405831,940.10,ARK SEARCH LIMITED,401396,Resources,Children's & Education Services,103,Supplies and Services,504,Miscellaneous Expenses,5034,Revenue,HUMAN RESOURCES.TEMPORARY & AGENCY STAFF
15/06/2022,2419121,564.06,ARK SEARCH LIMITED,401396,Resources,Children's & Education Services,103,Supplies and Services,504,Miscellaneous Expenses,5034,Revenue,HUMAN RESOURCES.TEMPORARY & AGENCY STAFF
15/06/2022,2419121,564.06,ARK SEARCH LIMITED,401396,Resources,Children's & Education Services,103,Supplies and Services,504,Miscellaneous Expenses,5034,Revenue,HUMAN RESOURCES.TEMPORARY & AGENCY STAFF
20/06/2022,2421508,940.10,ARK SEARCH LIMITED,401396,Resources,Children's & Education Services,103,Supplies and Services,504,Miscellaneous Expenses,5034,Revenue,HUMAN RESOURCES.TEMPORARY & AGENCY STAFF
20/06/2022,2421508,940.10,ARK SEARCH LIMITED,401396,Resources,Children's & Education Services,103,Supplies and Services,504,Miscellaneous Expenses,5034,Revenue,HUMAN RESOURCES.TEMPORARY & AGENCY STAFF
28/06/2022,2426964,1120.28,ARK SEARCH LIMITED,401396,Resources,Children's & Education Services,103,Supplies and Services,504,Miscellaneous Expenses,5034,Revenue,HUMAN RESOURCES.TEMPORARY & AGENCY STAFF
28/06/2022,2426964,1189.77,ARK SEARCH LIMITED,401396,Resources,Children's & Education Services,103,Supplies and Services,504,Miscellaneous Expenses,5034,Revenue,HUMAN RESOURCES.TEMPORARY & AGENCY STAFF
09/06/2022,2412654,-0.01,DE POEL MANAGED SERVICES LIMITED,391542,"Health, Education, Care and Safeguarding",Children's & Education Services,103,Employees,501,Direct Employee Expenses,5001,Revenue,HUMAN RESOURCES.TEMPORARY & AGENCY STAFF
09/06/2022,2412654,308.80,DE POEL MANAGED SERVICES LIMITED,391542,"Health, Education, Care and Safeguarding",Children's & Education Services,103,Employees,501,Direct Employee Expenses,5001,Revenue,HUMAN RESOURCES.TEMPORARY & AGENCY STAFF
16/06/2022,2419307,617.61,DE POEL MANAGED SERVICES LIMITED,391542,"Health, Education, Care and Safeguarding",Children's & Education Services,103,Employees,501,Direct Employee Expenses,5001,Revenue,HUMAN RESOURCES.TEMPORARY & AGENCY STAFF
23/06/2022,2424924,308.80,DE POEL MANAGED SERVICES LIMITED,391542,"Health, Education, Care and Safeguarding",Children's & Education Services,103,Employees,501,Direct Employee Expenses,5001,Revenue,HUMAN RESOURCES.TEMPORARY & AGENCY STAFF
28/06/2022,2426934,350.00,CHAPEL MEDIATION AND CONSULTANCY SERVICE,390179,"Health, Education, Care and Safeguarding",Children's & Education Services,103,Supplies and Services,504,Miscellaneous Expenses,5034,Revenue,SOCIAL CARE.CARE SERVICES
28/06/2022,2426934,516.20,CHAPEL MEDIATION AND CONSULTANCY SERVICE,390179,"Health, Education, Care and Safeguarding",Children's & Education Services,103,Supplies and Services,504,Miscellaneous Expenses,5034,Revenue,SOCIAL CARE.CARE SERVICES
28/06/2022,2426934,552.40,CHAPEL MEDIATION AND CONSULTANCY SERVICE,390179,"Health, Education, Care and Safeguarding",Children's & Education Services,103,Supplies and Services,504,Miscellaneous Expenses,5034,Revenue,SOCIAL CARE.CARE SERVICES
30/06/2022,2427923,308.80,DE POEL MANAGED SERVICES LIMITED,391542,"Health, Education, Care and Safeguarding",Children's & Education Services,103,Employees,501,Direct Employee Expenses,5001,Revenue,HUMAN RESOURCES.TEMPORARY & AGENCY STAFF
08/06/2022,2410221,20950.00,SHINEVISION LTD,399574,Commissioning & Asset Management,Children's & Education Services,103,Third Party Payments,505,Private Contractors,5042,Revenue,ICT.SOFTWARE
07/06/2022,2410134,4615.00,HARPER SIGNS LIMITED,008099,Commissioning & Asset Management,Planning Services,110,Third Party Payments,505,Private Contractors,5042,Revenue,BUILDING MATERIALS.SIGNAGE
17/06/2022,2420239,43.34,DENHAM PROCUREMENT & SOURCING SOLUTIONS LIMITED,399460,Commissioning & Asset Management,Planning Services,110,Capital,Capital,Capital,Capital,Revenue,BUILDING MATERIALS.MACHINE TOOLS
17/06/2022,2420239,57.90,DENHAM PROCUREMENT & SOURCING SOLUTIONS LIMITED,399460,Commissioning & Asset Management,Planning Services,110,Capital,Capital,Capital,Capital,Revenue,BUILDING MATERIALS.MACHINE TOOLS
17/06/2022,2420239,668.00,DENHAM PROCUREMENT & SOURCING SOLUTIONS LIMITED,399460,Commissioning & Asset Management,Planning Services,110,Capital,Capital,Capital,Capital,Revenue,BUILDING MATERIALS.MACHINE TOOLS
20/06/2022,2421413,4527.50,HADRIAN AIR CONDITION & REFRIGERATION LTD,008101,Commissioning & Asset Management,Planning Services,110,Premises-Related Expenditure,502,"Repairs, alterations and maintenance of buildings",5005,Revenue,BUILDING MATERIALS.ELECTRICAL
29/06/2022,2427448,1240.65,CORMETON ELECTRONICS LTD,281708,Commissioning & Asset Management,Planning Services,110,Premises-Related Expenditure,502,Fixtures & Fittings,5010,Revenue,FIRE & SECURITY.EQUIPMENT
09/06/2022,2412627,800.00,HADRIAN BEARS PLAYGROUP,328680,Commissioning & Asset Management,Children's & Education Services,103,Third Party Payments,505,Private Contractors,5042,Revenue,SOCIAL CARE.CHILDCARE SERVICES
24/06/2022,2425161,800.00,LITTLE BLOSSOMS CHILDCARE,397233,Commissioning & Asset Management,Children's & Education Services,103,Third Party Payments,505,Private Contractors,5042,Revenue,SOCIAL CARE.CHILDCARE SERVICES
30/06/2022,2427953,800.00,THE FAMILY TREE CHILDRENS DAY NURSERY,395861,Commissioning & Asset Management,Children's & Education Services,103,Third Party Payments,505,Private Contractors,5042,Revenue,SOCIAL CARE.CHILDCARE SERVICES
09/06/2022,2412626,1242.00,Redacted Personal Data,392524,"Health, Education, Care and Safeguarding",Children's & Education Services,103,Third Party Payments,505,Private Contractors,5042,Revenue,NON INFLUENCIBLE.GRANTS
06/06/2022,2405904,441448.07,KAJIMA NORTH TYNESIDE LTD,356854,Commissioning & Asset Management,Children's & Education Services,103,Third Party Payments,505,Private Contractors,5042,Revenue,REPAIRS & MAINTENANCE.REPAIRS & MAINTENANCE
17/06/2022,2420202,840.00,NORTHUMBRIA UNIVERSITY,347400,"Health, Education, Care and Safeguarding",Children's & Education Services,103,Employees,501,Indirect Employee Expenses,5002,Revenue,NON INFLUENCIBLE.EXT SCHOOLS
28/06/2022,2426924,350.00,EDUCATION DATA SOLUTIONS LTD,394507,"Health, Education, Care and Safeguarding",Children's & Education Services,103,Employees,501,Indirect Employee Expenses,5002,Revenue,HUMAN RESOURCES.TRAINING & CONFERENCES
28/06/2022,2427050,90.00,BISHOP BEWICK CATHOLIC EDUCATION TRUST,400895,"Health, Education, Care and Safeguarding",Children's & Education Services,103,Third Party Payments,505,Independent Units within the Council,5035,Revenue,NON INFLUENCIBLE.GRANTS
28/06/2022,2427050,90.00,BISHOP BEWICK CATHOLIC EDUCATION TRUST,400895,"Health, Education, Care and Safeguarding",Children's & Education Services,103,Third Party Payments,505,Independent Units within the Council,5035,Revenue,NON INFLUENCIBLE.GRANTS
28/06/2022,2427050,90.00,BISHOP BEWICK CATHOLIC EDUCATION TRUST,400895,"Health, Education, Care and Safeguarding",Children's & Education Services,103,Third Party Payments,505,Independent Units within the Council,5035,Revenue,NON INFLUENCIBLE.GRANTS
28/06/2022,2427050,210.00,BISHOP BEWICK CATHOLIC EDUCATION TRUST,400895,"Health, Education, Care and Safeguarding",Children's & Education Services,103,Third Party Payments,505,Independent Units within the Council,5035,Revenue,NON INFLUENCIBLE.GRANTS
28/06/2022,2427050,560.00,BISHOP BEWICK CATHOLIC EDUCATION TRUST,400895,"Health, Education, Care and Safeguarding",Children's & Education Services,103,Third Party Payments,505,Independent Units within the Council,5035,Revenue,NON INFLUENCIBLE.GRANTS
28/06/2022,2427050,560.00,BISHOP BEWICK CATHOLIC EDUCATION TRUST,400895,"Health, Education, Care and Safeguarding",Children's & Education Services,103,Third Party Payments,505,Independent Units within the Council,5035,Revenue,NON INFLUENCIBLE.GRANTS
28/06/2022,2427050,640.00,BISHOP BEWICK CATHOLIC EDUCATION TRUST,400895,"Health, Education, Care and Safeguarding",Children's & Education Services,103,Third Party Payments,505,Independent Units within the Council,5035,Revenue,NON INFLUENCIBLE.GRANTS
28/06/2022,2427050,1280.00,BISHOP BEWICK CATHOLIC EDUCATION TRUST,400895,"Health, Education, Care and Safeguarding",Children's & Education Services,103,Third Party Payments,505,Independent Units within the Council,5035,Revenue,NON INFLUENCIBLE.GRANTS
14/06/2022,2417754,630.00,KATIE HO,402166,"Health, Education, Care and Safeguarding",Children's & Education Services,103,Supplies and Services,504,Miscellaneous Expenses,5034,Revenue,HUMAN RESOURCES.INTERPRETATION & TRANSLATION
15/06/2022,2419177,633.83,JUSTICE PRINCE CIC,376479,"Health, Education, Care and Safeguarding",Children's & Education Services,103,Third Party Payments,505,Private Contractors,5042,Revenue,HUMAN RESOURCES.TRAINING & CONFERENCES
20/06/2022,2421394,1778.40,JUSTICE PRINCE CIC,376479,"Health, Education, Care and Safeguarding",Children's & Education Services,103,Third Party Payments,505,Private Contractors,5042,Revenue,HUMAN RESOURCES.TRAINING & CONFERENCES
28/06/2022,2426991,150.00,WATSONS TIMBER LTD,366019,"Health, Education, Care and Safeguarding",Children's & Education Services,103,Supplies and Services,504,Equipment,5023,Revenue,BUILDING MATERIALS.TIMBER
28/06/2022,2426991,150.00,WATSONS TIMBER LTD,366019,"Health, Education, Care and Safeguarding",Children's & Education Services,103,Supplies and Services,504,Equipment,5023,Revenue,BUILDING MATERIALS.TIMBER
30/06/2022,2427950,795.00,CARNEY CONSULTANCY LIMITED,397252,"Health, Education, Care and Safeguarding",Children's & Education Services,103,Supplies and Services,504,Miscellaneous Expenses,5034,Revenue,NON INFLUENCIBLE.DOCTORS/MEDICAL FEES
07/06/2022,2410124,660.00,MEADOW WELL CONNECTED,355522,"Health, Education, Care and Safeguarding",Children's & Education Services,103,Capital,Capital,Capital,Capital,Revenue,SOCIAL CARE.CARE SERVICES
15/06/2022,2419099,480.00,PREMIER TRANSPORT,310296,"Health, Education, Care and Safeguarding",Children's & Education Services,103,Capital,Capital,Capital,Capital,Revenue,PUBLIC TRANSPORT.TAXI SERVICES
16/06/2022,2419307,518.08,DE POEL MANAGED SERVICES LIMITED,391542,"Health, Education, Care and Safeguarding",Children's & Education Services,103,Employees,501,Direct Employee Expenses,5001,Revenue,HUMAN RESOURCES.TEMPORARY & AGENCY STAFF
16/06/2022,2419342,678.00,THRUNTON LONG CRAG TROUT FISHERY,402915,"Health, Education, Care and Safeguarding",Children's & Education Services,103,Capital,Capital,Capital,Capital,Revenue,ADVERTISING & MARKETING.EVENTS & PROMOTIONS
23/06/2022,2424924,541.28,DE POEL MANAGED SERVICES LIMITED,391542,"Health, Education, Care and Safeguarding",Children's & Education Services,103,Employees,501,Direct Employee Expenses,5001,Revenue,HUMAN RESOURCES.TEMPORARY & AGENCY STAFF
29/06/2022,2427414,150.00,NEW YORK PRIMARY SCHOOL,276829,"Health, Education, Care and Safeguarding",Children's & Education Services,103,Capital,Capital,Capital,Capital,Revenue,NON INFLUENCIBLE.NT SCHOOLS
29/06/2022,2427414,1950.00,NEW YORK PRIMARY SCHOOL,276829,"Health, Education, Care and Safeguarding",Children's & Education Services,103,Capital,Capital,Capital,Capital,Revenue,NON INFLUENCIBLE.NT SCHOOLS
30/06/2022,2427923,494.89,DE POEL MANAGED SERVICES LIMITED,391542,"Health, Education, Care and Safeguarding",Children's & Education Services,103,Employees,501,Direct Employee Expenses,5001,Revenue,HUMAN RESOURCES.TEMPORARY & AGENCY STAFF
22/06/2022,2424694,199.17,HEATHERFIELD MEWS,384826,"Health, Education, Care and Safeguarding",Children's & Education Services,103,Supplies and Services,504,Equipment,5023,Revenue,NON INFLUENCIBLE.PETTY CASH
22/06/2022,2424694,32.00,HEATHERFIELD MEWS,384826,"Health, Education, Care and Safeguarding",Children's & Education Services,103,Supplies and Services,504,Miscellaneous Expenses,5034,Revenue,NON INFLUENCIBLE.PETTY CASH
27/06/2022,2426244,1849.55,ISOS HOUSING LIMITED,105505,"Health, Education, Care and Safeguarding",Children's & Education Services,103,Premises-Related Expenditure,502,Rents,5007,Revenue,SOCIAL CARE.CARE SERVICES
01/06/2022,2405142,450.00,Redacted Personal Data,402406,Commissioning & Asset Management,Children's & Education Services,103,Third Party Payments,505,Private Contractors,5042,Revenue,HUMAN RESOURCES.TRAINING & CONFERENCES
06/06/2022,2405885,1800.00,EBI LEARNING LTD,402692,Commissioning & Asset Management,Children's & Education Services,103,Third Party Payments,505,Private Contractors,5042,Revenue,HUMAN RESOURCES.TRAINING & CONFERENCES
06/06/2022,2405899,1650.00,Redacted Personal Data,394566,Commissioning & Asset Management,Children's & Education Services,103,Third Party Payments,505,Private Contractors,5042,Revenue,EDUCATIONAL SUPPLIES.EDUCATIONAL PLACEMENTS
07/06/2022,2410132,583.00,NISAI VIRTUAL ACADEMY,398185,Commissioning & Asset Management,Children's & Education Services,103,Third Party Payments,505,Private Contractors,5042,Revenue,EDUCATIONAL SUPPLIES.EDUCATIONAL PLACEMENTS
07/06/2022,2410132,583.20,NISAI VIRTUAL ACADEMY,398185,Commissioning & Asset Management,Children's & Education Services,103,Third Party Payments,505,Private Contractors,5042,Revenue,EDUCATIONAL SUPPLIES.EDUCATIONAL PLACEMENTS
07/06/2022,2410132,850.00,NISAI VIRTUAL ACADEMY,398185,Commissioning & Asset Management,Children's & Education Services,103,Third Party Payments,505,Private Contractors,5042,Revenue,EDUCATIONAL SUPPLIES.EDUCATIONAL PLACEMENTS
07/06/2022,2410132,1283.00,NISAI VIRTUAL ACADEMY,398185,Commissioning & Asset Management,Children's & Education Services,103,Third Party Payments,505,Private Contractors,5042,Revenue,EDUCATIONAL SUPPLIES.EDUCATIONAL PLACEMENTS
07/06/2022,2410132,1366.67,NISAI VIRTUAL ACADEMY,398185,Commissioning & Asset Management,Children's & Education Services,103,Third Party Payments,505,Private Contractors,5042,Revenue,EDUCATIONAL SUPPLIES.EDUCATIONAL PLACEMENTS
07/06/2022,2410132,1366.67,NISAI VIRTUAL ACADEMY,398185,Commissioning & Asset Management,Children's & Education Services,103,Third Party Payments,505,Private Contractors,5042,Revenue,EDUCATIONAL SUPPLIES.EDUCATIONAL PLACEMENTS
07/06/2022,2410132,1466.67,NISAI VIRTUAL ACADEMY,398185,Commissioning & Asset Management,Children's & Education Services,103,Third Party Payments,505,Private Contractors,5042,Revenue,EDUCATIONAL SUPPLIES.EDUCATIONAL PLACEMENTS
07/06/2022,2410132,1467.00,NISAI VIRTUAL ACADEMY,398185,Commissioning & Asset Management,Children's & Education Services,103,Third Party Payments,505,Private Contractors,5042,Revenue,EDUCATIONAL SUPPLIES.EDUCATIONAL PLACEMENTS
07/06/2022,2410132,1500.00,NISAI VIRTUAL ACADEMY,398185,Commissioning & Asset Management,Children's & Education Services,103,Third Party Payments,505,Private Contractors,5042,Revenue,EDUCATIONAL SUPPLIES.EDUCATIONAL PLACEMENTS
07/06/2022,2410132,1500.00,NISAI VIRTUAL ACADEMY,398185,Commissioning & Asset Management,Children's & Education Services,103,Third Party Payments,505,Private Contractors,5042,Revenue,EDUCATIONAL SUPPLIES.EDUCATIONAL PLACEMENTS
07/06/2022,2410132,2016.67,NISAI VIRTUAL ACADEMY,398185,Commissioning & Asset Management,Children's & Education Services,103,Third Party Payments,505,Private Contractors,5042,Revenue,EDUCATIONAL SUPPLIES.EDUCATIONAL PLACEMENTS
07/06/2022,2410132,2016.67,NISAI VIRTUAL ACADEMY,398185,Commissioning & Asset Management,Children's & Education Services,103,Third Party Payments,505,Private Contractors,5042,Revenue,EDUCATIONAL SUPPLIES.EDUCATIONAL PLACEMENTS
07/06/2022,2410132,2683.00,NISAI VIRTUAL ACADEMY,398185,Commissioning & Asset Management,Children's & Education Services,103,Third Party Payments,505,Private Contractors,5042,Revenue,EDUCATIONAL SUPPLIES.EDUCATIONAL PLACEMENTS
07/06/2022,2410132,2750.00,NISAI VIRTUAL ACADEMY,398185,Commissioning & Asset Management,Children's & Education Services,103,Third Party Payments,505,Private Contractors,5042,Revenue,EDUCATIONAL SUPPLIES.EDUCATIONAL PLACEMENTS
07/06/2022,2410132,2850.00,NISAI VIRTUAL ACADEMY,398185,Commissioning & Asset Management,Children's & Education Services,103,Third Party Payments,505,Private Contractors,5042,Revenue,EDUCATIONAL SUPPLIES.EDUCATIONAL PLACEMENTS
08/06/2022,2410211,224.94,AFFINITY WORKFORCE SOLUTIONS LIMITED,401394,Commissioning & Asset Management,Children's & Education Services,103,Third Party Payments,505,Private Contractors,5042,Revenue,EDUCATIONAL SUPPLIES.EDUCATIONAL PLACEMENTS
08/06/2022,2410211,434.82,AFFINITY WORKFORCE SOLUTIONS LIMITED,401394,Commissioning & Asset Management,Children's & Education Services,103,Third Party Payments,505,Private Contractors,5042,Revenue,EDUCATIONAL SUPPLIES.EDUCATIONAL PLACEMENTS
08/06/2022,2410211,579.76,AFFINITY WORKFORCE SOLUTIONS LIMITED,401394,Commissioning & Asset Management,Children's & Education Services,103,Third Party Payments,505,Private Contractors,5042,Revenue,EDUCATIONAL SUPPLIES.EDUCATIONAL PLACEMENTS
08/06/2022,2410211,724.70,AFFINITY WORKFORCE SOLUTIONS LIMITED,401394,Commissioning & Asset Management,Children's & Education Services,103,Third Party Payments,505,Private Contractors,5042,Revenue,EDUCATIONAL SUPPLIES.EDUCATIONAL PLACEMENTS
08/06/2022,2410211,724.70,AFFINITY WORKFORCE SOLUTIONS LIMITED,401394,Commissioning & Asset Management,Children's & Education Services,103,Third Party Payments,505,Private Contractors,5042,Revenue,EDUCATIONAL SUPPLIES.EDUCATIONAL PLACEMENTS
08/06/2022,2410211,724.70,AFFINITY WORKFORCE SOLUTIONS LIMITED,401394,Commissioning & Asset Management,Children's & Education Services,103,Third Party Payments,505,Private Contractors,5042,Revenue,EDUCATIONAL SUPPLIES.EDUCATIONAL PLACEMENTS
14/06/2022,2417760,724.00,SINGING BIRD THERAPIES,400995,Commissioning & Asset Management,Children's & Education Services,103,Third Party Payments,505,Private Contractors,5042,Revenue,PUBLIC HEALTH.SPECIALIST SERVICES
21/06/2022,2423683,13966.00,MARY HARE SERVICES,395711,Commissioning & Asset Management,Children's & Education Services,103,Third Party Payments,505,Private Contractors,5042,Revenue,EDUCATIONAL SUPPLIES.EDUCATIONAL PLACEMENTS
21/06/2022,2423722,39264.48,ID RESIDENTIAL,401681,Commissioning & Asset Management,Children's & Education Services,103,Third Party Payments,505,Private Contractors,5042,Revenue,NON INFLUENCIBLE.INDIVIDUAL
21/06/2022,2423723,3190.00,GUST INDEPENDENT SCHOOL,401599,Commissioning & Asset Management,Children's & Education Services,103,Third Party Payments,505,Private Contractors,5042,Revenue,EDUCATIONAL SUPPLIES.EDUCATIONAL PLACEMENTS
21/06/2022,2423723,5510.00,GUST INDEPENDENT SCHOOL,401599,Commissioning & Asset Management,Children's & Education Services,103,Third Party Payments,505,Private Contractors,5042,Revenue,EDUCATIONAL SUPPLIES.EDUCATIONAL PLACEMENTS
22/06/2022,2424648,9200.00,SPORTING CHANCE NORTH EAST,399757,Commissioning & Asset Management,Children's & Education Services,103,Third Party Payments,505,Private Contractors,5042,Revenue,EDUCATIONAL SUPPLIES.EDUCATIONAL PLACEMENTS
22/06/2022,2424648,19550.00,SPORTING CHANCE NORTH EAST,399757,Commissioning & Asset Management,Children's & Education Services,103,Third Party Payments,505,Private Contractors,5042,Revenue,EDUCATIONAL SUPPLIES.EDUCATIONAL PLACEMENTS
22/06/2022,2424650,5305.28,NUDGE EDUCATION LIMITED,398059,Commissioning & Asset Management,Children's & Education Services,103,Third Party Payments,505,Private Contractors,5042,Revenue,EDUCATIONAL SUPPLIES.EDUCATIONAL PLACEMENTS
22/06/2022,2424672,2000.00,NORTHUMBERLAND COUNTY COUNCIL,319694,Commissioning & Asset Management,Children's & Education Services,103,Third Party Payments,505,Other Local Authorities,5037,Revenue,NON INFLUENCIBLE.PUBLIC SECTOR
22/06/2022,2424672,15323.00,NORTHUMBERLAND COUNTY COUNCIL,319694,Commissioning & Asset Management,Children's & Education Services,103,Third Party Payments,505,Other Local Authorities,5037,Revenue,NON INFLUENCIBLE.PUBLIC SECTOR
22/06/2022,2424685,115895.00,NEWCASTLE CITY COUNCIL,014331,Commissioning & Asset Management,Children's & Education Services,103,Third Party Payments,505,Other Local Authorities,5037,Revenue,NON INFLUENCIBLE.PUBLIC SECTOR
22/06/2022,2424699,4850.00,WESTFIELD SCHOOL,314779,Commissioning & Asset Management,Children's & Education Services,103,Third Party Payments,505,Private Contractors,5042,Revenue,EDUCATIONAL SUPPLIES.EDUCATIONAL PLACEMENTS
22/06/2022,2424699,8067.50,WESTFIELD SCHOOL,314779,Commissioning & Asset Management,Children's & Education Services,103,Third Party Payments,505,Private Contractors,5042,Revenue,EDUCATIONAL SUPPLIES.EDUCATIONAL PLACEMENTS
22/06/2022,2424718,1167.00,NISAI VIRTUAL ACADEMY,398185,Commissioning & Asset Management,Children's & Education Services,103,Third Party Payments,505,Private Contractors,5042,Revenue,EDUCATIONAL SUPPLIES.EDUCATIONAL PLACEMENTS
22/06/2022,2424718,1500.00,NISAI VIRTUAL ACADEMY,398185,Commissioning & Asset Management,Children's & Education Services,103,Third Party Payments,505,Private Contractors,5042,Revenue,EDUCATIONAL SUPPLIES.EDUCATIONAL PLACEMENTS
23/06/2022,2424890,54408.84,NUDGE EDUCATION LIMITED,398059,Commissioning & Asset Management,Children's & Education Services,103,Third Party Payments,505,Private Contractors,5042,Revenue,EDUCATIONAL SUPPLIES.EDUCATIONAL PLACEMENTS
23/06/2022,2424929,26951.67,NORTH EAST AUTISM SOCIETY,329004,Commissioning & Asset Management,Children's & Education Services,103,Third Party Payments,505,Private Contractors,5042,Revenue,SOCIAL CARE.CARE SERVICES
23/06/2022,2424929,34433.67,NORTH EAST AUTISM SOCIETY,329004,Commissioning & Asset Management,Children's & Education Services,103,Third Party Payments,505,Private Contractors,5042,Revenue,SOCIAL CARE.CARE SERVICES
23/06/2022,2424962,817.00,SINGING BIRD THERAPIES,400995,Commissioning & Asset Management,Children's & Education Services,103,Third Party Payments,505,Private Contractors,5042,Revenue,PUBLIC HEALTH.SPECIALIST SERVICES
24/06/2022,2425060,579.76,AFFINITY WORKFORCE SOLUTIONS LIMITED,401394,Commissioning & Asset Management,Children's & Education Services,103,Third Party Payments,505,Private Contractors,5042,Revenue,EDUCATIONAL SUPPLIES.EDUCATIONAL PLACEMENTS
24/06/2022,2425142,35850.65,NUDGE EDUCATION LIMITED,398059,Commissioning & Asset Management,Children's & Education Services,103,Third Party Payments,505,Private Contractors,5042,Revenue,EDUCATIONAL SUPPLIES.EDUCATIONAL PLACEMENTS
27/06/2022,2426257,1272.59,GATESHEAD COUNCIL,231440,Commissioning & Asset Management,Children's & Education Services,103,Third Party Payments,505,Other Local Authorities,5037,Revenue,NON INFLUENCIBLE.PUBLIC SECTOR
29/06/2022,2427412,8548.87,BARBARA PRIESTMAN SCHOOL,397614,Commissioning & Asset Management,Children's & Education Services,103,Third Party Payments,505,Private Contractors,5042,Revenue,NON INFLUENCIBLE.GRANTS
29/06/2022,2427337,7453.44,KINGS PRIORY SCHOOL,390665,Commissioning & Asset Management,Children's & Education Services,103,Third Party Payments,505,Independent Units within the Council,5035,Revenue,NON INFLUENCIBLE.EXT SCHOOLS
14/06/2022,2417788,300.00,BALFOUR BEATTY WORKPLACE LIMITED,389026,"Health, Education, Care and Safeguarding",Children's & Education Services,103,Supplies and Services,504,Communications & Computing,5028,Revenue,HUMAN RESOURCES.PROFESSIONAL & ADVISORY SERVICES
14/06/2022,2417788,1161.98,BALFOUR BEATTY WORKPLACE LIMITED,389026,"Health, Education, Care and Safeguarding",Children's & Education Services,103,Supplies and Services,504,Communications & Computing,5028,Revenue,HUMAN RESOURCES.PROFESSIONAL & ADVISORY SERVICES
24/06/2022,2425051,675.00,BLUE TALKING THERAPIES,402598,"Health, Education, Care and Safeguarding",Children's & Education Services,103,Third Party Payments,505,Private Contractors,5042,Revenue,PUBLIC HEALTH.OCCUPATIONAL THERAPY SERVICES
01/06/2022,2405150,270.00,KYLE MORLEY,392456,"Health, Education, Care and Safeguarding",Children's & Education Services,103,Third Party Payments,505,Other Establishments,5041,Revenue,ADVERTISING & MARKETING.EVENTS & PROMOTIONS
01/06/2022,2405150,450.00,KYLE MORLEY,392456,"Health, Education, Care and Safeguarding",Children's & Education Services,103,Third Party Payments,505,Other Establishments,5041,Revenue,ADVERTISING & MARKETING.EVENTS & PROMOTIONS
15/06/2022,2419119,275.00,TRINITY COLLEGE LONDON (384606),384606,"Health, Education, Care and Safeguarding",Children's & Education Services,103,Supplies and Services,504,Miscellaneous Expenses,5034,Revenue,HUMAN RESOURCES.TRAINING & CONFERENCES
20/06/2022,2421399,1250.00,MY PERFORMANCE FACTORY,385783,"Health, Education, Care and Safeguarding",Children's & Education Services,103,Third Party Payments,505,Other Establishments,5041,Revenue,HUMAN RESOURCES.TRAINING & CONFERENCES
20/06/2022,2421399,2500.00,MY PERFORMANCE FACTORY,385783,"Health, Education, Care and Safeguarding",Children's & Education Services,103,Third Party Payments,505,Other Establishments,5041,Revenue,HUMAN RESOURCES.TRAINING & CONFERENCES
29/06/2022,2427389,1200.00,Redacted Personal Data,393573,"Health, Education, Care and Safeguarding",Children's & Education Services,103,Third Party Payments,505,Other Establishments,5041,Revenue,HUMAN RESOURCES.TRAINING & CONFERENCES
29/06/2022,2427435,1162.00,LIZZIE LOWE,401916,"Health, Education, Care and Safeguarding",Children's & Education Services,103,Third Party Payments,505,Other Establishments,5041,Revenue,HUMAN RESOURCES.TRAINING & CONFERENCES
08/06/2022,2410198,1200.00,NEW YORK PRIMARY SCHOOL,276829,Commissioning & Asset Management,Children's & Education Services,103,Income,509,"Other Grants, Reimbursements & Contributions",5063,Revenue,NON INFLUENCIBLE.NT SCHOOLS
08/06/2022,2410199,1200.00,LANGLEY FIRST SCHOOL,259092,Commissioning & Asset Management,Children's & Education Services,103,Supplies and Services,504,Miscellaneous Expenses,5034,Revenue,NON INFLUENCIBLE.NT SCHOOLS
08/06/2022,2410200,11000.00,WHITLEY BAY HIGH SCHOOL,276855,Commissioning & Asset Management,Children's & Education Services,103,Excluded from General Fund,N/A,Schools Holding Accounts,N/A,Revenue,NON INFLUENCIBLE.NT SCHOOLS
08/06/2022,2410201,1200.00,VALLEY GARDENS MIDDLE SCHOOL,276865,Commissioning & Asset Management,Children's & Education Services,103,Supplies and Services,504,Miscellaneous Expenses,5034,Revenue,NON INFLUENCIBLE.NT SCHOOLS
08/06/2022,2410202,1200.00,BENTON DENE PRIMARY SCHOOL,259099,Commissioning & Asset Management,Children's & Education Services,103,Supplies and Services,504,Miscellaneous Expenses,5034,Revenue,NON INFLUENCIBLE.NT SCHOOLS
08/06/2022,2410203,904.75,BURNSIDE BUSINESS & ENTERPRISE COLLEGE,360610,Commissioning & Asset Management,Children's & Education Services,103,Excluded from General Fund,N/A,Schools Holding Accounts,N/A,Revenue,NON INFLUENCIBLE.NT SCHOOLS
09/06/2022,2412629,1350.00,WHITLEY BAY HIGH SCHOOL,276855,Commissioning & Asset Management,Children's & Education Services,103,Excluded from General Fund,N/A,Schools Holding Accounts,N/A,Revenue,NON INFLUENCIBLE.NT SCHOOLS
09/06/2022,2412631,610.00,BACKWORTH PARK PRIMARY SCHOOL,259095,Commissioning & Asset Management,Children's & Education Services,103,Excluded from General Fund,N/A,Schools Holding Accounts,N/A,Revenue,NON INFLUENCIBLE.NT SCHOOLS
21/06/2022,2423687,990.00,AAA SPORTS,393124,"Health, Education, Care and Safeguarding",Children's & Education Services,103,Third Party Payments,505,Other Establishments,5041,Revenue,HUMAN RESOURCES.TRAINING & CONFERENCES
30/06/2022,2427923,271.06,DE POEL MANAGED SERVICES LIMITED,391542,Local Environmental Services,Environmental & Regulatory Services,105,Employees,501,Direct Employee Expenses,5001,Revenue,HUMAN RESOURCES.TEMPORARY & AGENCY STAFF
30/06/2022,2427923,477.58,DE POEL MANAGED SERVICES LIMITED,391542,Local Environmental Services,Environmental & Regulatory Services,105,Employees,501,Direct Employee Expenses,5001,Revenue,HUMAN RESOURCES.TEMPORARY & AGENCY STAFF
30/06/2022,2427923,477.58,DE POEL MANAGED SERVICES LIMITED,391542,Local Environmental Services,Environmental & Regulatory Services,105,Employees,501,Direct Employee Expenses,5001,Revenue,HUMAN RESOURCES.TEMPORARY & AGENCY STAFF
30/06/2022,2427923,477.58,DE POEL MANAGED SERVICES LIMITED,391542,Local Environmental Services,Environmental & Regulatory Services,105,Employees,501,Direct Employee Expenses,5001,Revenue,HUMAN RESOURCES.TEMPORARY & AGENCY STAFF
30/06/2022,2427923,477.58,DE POEL MANAGED SERVICES LIMITED,391542,Local Environmental Services,Environmental & Regulatory Services,105,Employees,501,Direct Employee Expenses,5001,Revenue,HUMAN RESOURCES.TEMPORARY & AGENCY STAFF
30/06/2022,2427923,477.58,DE POEL MANAGED SERVICES LIMITED,391542,Local Environmental Services,Environmental & Regulatory Services,105,Employees,501,Direct Employee Expenses,5001,Revenue,HUMAN RESOURCES.TEMPORARY & AGENCY STAFF
30/06/2022,2427923,477.58,DE POEL MANAGED SERVICES LIMITED,391542,Local Environmental Services,Environmental & Regulatory Services,105,Employees,501,Direct Employee Expenses,5001,Revenue,HUMAN RESOURCES.TEMPORARY & AGENCY STAFF
30/06/2022,2427923,477.58,DE POEL MANAGED SERVICES LIMITED,391542,Local Environmental Services,Environmental & Regulatory Services,105,Employees,501,Direct Employee Expenses,5001,Revenue,HUMAN RESOURCES.TEMPORARY & AGENCY STAFF
30/06/2022,2427923,477.58,DE POEL MANAGED SERVICES LIMITED,391542,Local Environmental Services,Environmental & Regulatory Services,105,Employees,501,Direct Employee Expenses,5001,Revenue,HUMAN RESOURCES.TEMPORARY & AGENCY STAFF
30/06/2022,2427923,477.58,DE POEL MANAGED SERVICES LIMITED,391542,Local Environmental Services,Environmental & Regulatory Services,105,Employees,501,Direct Employee Expenses,5001,Revenue,HUMAN RESOURCES.TEMPORARY & AGENCY STAFF
30/06/2022,2427923,477.58,DE POEL MANAGED SERVICES LIMITED,391542,Local Environmental Services,Environmental & Regulatory Services,105,Employees,501,Direct Employee Expenses,5001,Revenue,HUMAN RESOURCES.TEMPORARY & AGENCY STAFF
30/06/2022,2427923,477.58,DE POEL MANAGED SERVICES LIMITED,391542,Local Environmental Services,Environmental & Regulatory Services,105,Employees,501,Direct Employee Expenses,5001,Revenue,HUMAN RESOURCES.TEMPORARY & AGENCY STAFF
07/06/2022,2410120,8.60,GROUNDSMAN TOOLS & SUPPLIES,375882,Local Environmental Services,Cultural & Related Services,104,Supplies and Services,504,Equipment,5023,Revenue,BUILDING MATERIALS.HAND TOOLS
07/06/2022,2410120,13.98,GROUNDSMAN TOOLS & SUPPLIES,375882,Local Environmental Services,Cultural & Related Services,104,Supplies and Services,504,Equipment,5023,Revenue,BUILDING MATERIALS.HAND TOOLS
07/06/2022,2410120,14.18,GROUNDSMAN TOOLS & SUPPLIES,375882,Local Environmental Services,Cultural & Related Services,104,Supplies and Services,504,Equipment,5023,Revenue,BUILDING MATERIALS.HAND TOOLS
07/06/2022,2410120,17.60,GROUNDSMAN TOOLS & SUPPLIES,375882,Local Environmental Services,Cultural & Related Services,104,Supplies and Services,504,Equipment,5023,Revenue,BUILDING MATERIALS.HAND TOOLS
07/06/2022,2410120,17.82,GROUNDSMAN TOOLS & SUPPLIES,375882,Local Environmental Services,Cultural & Related Services,104,Supplies and Services,504,Equipment,5023,Revenue,BUILDING MATERIALS.HAND TOOLS
07/06/2022,2410120,24.62,GROUNDSMAN TOOLS & SUPPLIES,375882,Local Environmental Services,Cultural & Related Services,104,Supplies and Services,504,Equipment,5023,Revenue,BUILDING MATERIALS.HAND TOOLS
07/06/2022,2410120,26.31,GROUNDSMAN TOOLS & SUPPLIES,375882,Local Environmental Services,Cultural & Related Services,104,Supplies and Services,504,Equipment,5023,Revenue,BUILDING MATERIALS.HAND TOOLS
07/06/2022,2410120,28.40,GROUNDSMAN TOOLS & SUPPLIES,375882,Local Environmental Services,Cultural & Related Services,104,Supplies and Services,504,Equipment,5023,Revenue,BUILDING MATERIALS.HAND TOOLS
07/06/2022,2410120,105.00,GROUNDSMAN TOOLS & SUPPLIES,375882,Local Environmental Services,Cultural & Related Services,104,Supplies and Services,504,Equipment,5023,Revenue,BUILDING MATERIALS.HAND TOOLS
09/06/2022,2412654,-0.01,DE POEL MANAGED SERVICES LIMITED,391542,Local Environmental Services,Cultural & Related Services,104,Employees,501,Direct Employee Expenses,5001,Revenue,HUMAN RESOURCES.TEMPORARY & AGENCY STAFF
09/06/2022,2412654,-0.01,DE POEL MANAGED SERVICES LIMITED,391542,Local Environmental Services,Cultural & Related Services,104,Employees,501,Direct Employee Expenses,5001,Revenue,HUMAN RESOURCES.TEMPORARY & AGENCY STAFF
09/06/2022,2412654,-0.01,DE POEL MANAGED SERVICES LIMITED,391542,Local Environmental Services,Cultural & Related Services,104,Employees,501,Direct Employee Expenses,5001,Revenue,HUMAN RESOURCES.TEMPORARY & AGENCY STAFF
09/06/2022,2412654,303.75,DE POEL MANAGED SERVICES LIMITED,391542,Local Environmental Services,Cultural & Related Services,104,Employees,501,Direct Employee Expenses,5001,Revenue,HUMAN RESOURCES.TEMPORARY & AGENCY STAFF
09/06/2022,2412654,303.75,DE POEL MANAGED SERVICES LIMITED,391542,Local Environmental Services,Cultural & Related Services,104,Employees,501,Direct Employee Expenses,5001,Revenue,HUMAN RESOURCES.TEMPORARY & AGENCY STAFF
09/06/2022,2412654,303.75,DE POEL MANAGED SERVICES LIMITED,391542,Local Environmental Services,Cultural & Related Services,104,Employees,501,Direct Employee Expenses,5001,Revenue,HUMAN RESOURCES.TEMPORARY & AGENCY STAFF
15/06/2022,2419161,52.00,CARRS BILLINGTON AGRICULTURE,243075,Local Environmental Services,Cultural & Related Services,104,Supplies and Services,504,Equipment,5023,Revenue,VEHICLE MANAGEMENT.PARTS
15/06/2022,2419161,160.00,CARRS BILLINGTON AGRICULTURE,243075,Local Environmental Services,Cultural & Related Services,104,Supplies and Services,504,Equipment,5023,Revenue,VEHICLE MANAGEMENT.PARTS
15/06/2022,2419161,202.00,CARRS BILLINGTON AGRICULTURE,243075,Local Environmental Services,Cultural & Related Services,104,Supplies and Services,504,Equipment,5023,Revenue,VEHICLE MANAGEMENT.PARTS
15/06/2022,2419161,257.00,CARRS BILLINGTON AGRICULTURE,243075,Local Environmental Services,Cultural & Related Services,104,Supplies and Services,504,Equipment,5023,Revenue,VEHICLE MANAGEMENT.PARTS
16/06/2022,2419307,468.28,DE POEL MANAGED SERVICES LIMITED,391542,Local Environmental Services,Cultural & Related Services,104,Employees,501,Direct Employee Expenses,5001,Revenue,HUMAN RESOURCES.TEMPORARY & AGENCY STAFF
16/06/2022,2419307,468.28,DE POEL MANAGED SERVICES LIMITED,391542,Local Environmental Services,Cultural & Related Services,104,Employees,501,Direct Employee Expenses,5001,Revenue,HUMAN RESOURCES.TEMPORARY & AGENCY STAFF
16/06/2022,2419307,518.90,DE POEL MANAGED SERVICES LIMITED,391542,Local Environmental Services,Cultural & Related Services,104,Employees,501,Direct Employee Expenses,5001,Revenue,HUMAN RESOURCES.TEMPORARY & AGENCY STAFF
17/06/2022,2420195,10.15,GROUNDSMAN TOOLS & SUPPLIES,375882,Local Environmental Services,Cultural & Related Services,104,Supplies and Services,504,Equipment,5023,Revenue,BUILDING MATERIALS.HAND TOOLS
17/06/2022,2420195,10.55,GROUNDSMAN TOOLS & SUPPLIES,375882,Local Environmental Services,Cultural & Related Services,104,Supplies and Services,504,Equipment,5023,Revenue,BUILDING MATERIALS.HAND TOOLS
17/06/2022,2420195,38.88,GROUNDSMAN TOOLS & SUPPLIES,375882,Local Environmental Services,Cultural & Related Services,104,Supplies and Services,504,Equipment,5023,Revenue,BUILDING MATERIALS.HAND TOOLS
17/06/2022,2420195,40.84,GROUNDSMAN TOOLS & SUPPLIES,375882,Local Environmental Services,Cultural & Related Services,104,Supplies and Services,504,Equipment,5023,Revenue,BUILDING MATERIALS.HAND TOOLS
17/06/2022,2420195,143.88,GROUNDSMAN TOOLS & SUPPLIES,375882,Local Environmental Services,Cultural & Related Services,104,Supplies and Services,504,Equipment,5023,Revenue,BUILDING MATERIALS.HAND TOOLS
23/06/2022,2424924,468.28,DE POEL MANAGED SERVICES LIMITED,391542,Local Environmental Services,Cultural & Related Services,104,Employees,501,Direct Employee Expenses,5001,Revenue,HUMAN RESOURCES.TEMPORARY & AGENCY STAFF
23/06/2022,2424924,468.28,DE POEL MANAGED SERVICES LIMITED,391542,Local Environmental Services,Cultural & Related Services,104,Employees,501,Direct Employee Expenses,5001,Revenue,HUMAN RESOURCES.TEMPORARY & AGENCY STAFF
23/06/2022,2424924,569.52,DE POEL MANAGED SERVICES LIMITED,391542,Local Environmental Services,Cultural & Related Services,104,Employees,501,Direct Employee Expenses,5001,Revenue,HUMAN RESOURCES.TEMPORARY & AGENCY STAFF
27/06/2022,2426251,80.00,WILF HUSBAND,378193,Local Environmental Services,Cultural & Related Services,104,Supplies and Services,504,Equipment,5023,Revenue,HORTICULTURAL.TOOLS & EQUIPMENT
29/06/2022,2427379,433.50,RIGBY TAYLOR LTD,018386,Local Environmental Services,Cultural & Related Services,104,Supplies and Services,504,Equipment,5023,Revenue,HORTICULTURAL.LANDSCAPING
30/06/2022,2427923,468.28,DE POEL MANAGED SERVICES LIMITED,391542,Local Environmental Services,Cultural & Related Services,104,Employees,501,Direct Employee Expenses,5001,Revenue,HUMAN RESOURCES.TEMPORARY & AGENCY STAFF
30/06/2022,2427923,468.28,DE POEL MANAGED SERVICES LIMITED,391542,Local Environmental Services,Cultural & Related Services,104,Employees,501,Direct Employee Expenses,5001,Revenue,HUMAN RESOURCES.TEMPORARY & AGENCY STAFF
30/06/2022,2427923,468.28,DE POEL MANAGED SERVICES LIMITED,391542,Local Environmental Services,Cultural & Related Services,104,Employees,501,Direct Employee Expenses,5001,Revenue,HUMAN RESOURCES.TEMPORARY & AGENCY STAFF
07/06/2022,2410120,20.24,GROUNDSMAN TOOLS & SUPPLIES,375882,Local Environmental Services,Cultural & Related Services,104,Supplies and Services,504,Equipment,5023,Revenue,BUILDING MATERIALS.HAND TOOLS
07/06/2022,2410120,27.78,GROUNDSMAN TOOLS & SUPPLIES,375882,Local Environmental Services,Cultural & Related Services,104,Supplies and Services,504,Equipment,5023,Revenue,BUILDING MATERIALS.HAND TOOLS
07/06/2022,2410120,69.48,GROUNDSMAN TOOLS & SUPPLIES,375882,Local Environmental Services,Cultural & Related Services,104,Supplies and Services,504,Equipment,5023,Revenue,BUILDING MATERIALS.HAND TOOLS
07/06/2022,2410120,111.60,GROUNDSMAN TOOLS & SUPPLIES,375882,Local Environmental Services,Cultural & Related Services,104,Supplies and Services,504,Equipment,5023,Revenue,BUILDING MATERIALS.HAND TOOLS
07/06/2022,2410120,145.84,GROUNDSMAN TOOLS & SUPPLIES,375882,Local Environmental Services,Cultural & Related Services,104,Supplies and Services,504,Equipment,5023,Revenue,BUILDING MATERIALS.HAND TOOLS
09/06/2022,2412654,-0.01,DE POEL MANAGED SERVICES LIMITED,391542,Local Environmental Services,Cultural & Related Services,104,Employees,501,Direct Employee Expenses,5001,Revenue,HUMAN RESOURCES.TEMPORARY & AGENCY STAFF
09/06/2022,2412654,-0.01,DE POEL MANAGED SERVICES LIMITED,391542,Local Environmental Services,Cultural & Related Services,104,Employees,501,Direct Employee Expenses,5001,Revenue,HUMAN RESOURCES.TEMPORARY & AGENCY STAFF
09/06/2022,2412654,303.75,DE POEL MANAGED SERVICES LIMITED,391542,Local Environmental Services,Cultural & Related Services,104,Employees,501,Direct Employee Expenses,5001,Revenue,HUMAN RESOURCES.TEMPORARY & AGENCY STAFF
09/06/2022,2412654,303.75,DE POEL MANAGED SERVICES LIMITED,391542,Local Environmental Services,Cultural & Related Services,104,Employees,501,Direct Employee Expenses,5001,Revenue,HUMAN RESOURCES.TEMPORARY & AGENCY STAFF
16/06/2022,2419307,367.03,DE POEL MANAGED SERVICES LIMITED,391542,Local Environmental Services,Cultural & Related Services,104,Employees,501,Direct Employee Expenses,5001,Revenue,HUMAN RESOURCES.TEMPORARY & AGENCY STAFF
16/06/2022,2419307,468.28,DE POEL MANAGED SERVICES LIMITED,391542,Local Environmental Services,Cultural & Related Services,104,Employees,501,Direct Employee Expenses,5001,Revenue,HUMAN RESOURCES.TEMPORARY & AGENCY STAFF
23/06/2022,2424924,468.28,DE POEL MANAGED SERVICES LIMITED,391542,Local Environmental Services,Cultural & Related Services,104,Employees,501,Direct Employee Expenses,5001,Revenue,HUMAN RESOURCES.TEMPORARY & AGENCY STAFF
23/06/2022,2424924,569.52,DE POEL MANAGED SERVICES LIMITED,391542,Local Environmental Services,Cultural & Related Services,104,Employees,501,Direct Employee Expenses,5001,Revenue,HUMAN RESOURCES.TEMPORARY & AGENCY STAFF
27/06/2022,2426251,80.00,WILF HUSBAND,378193,Local Environmental Services,Cultural & Related Services,104,Supplies and Services,504,Equipment,5023,Revenue,HORTICULTURAL.TOOLS & EQUIPMENT
29/06/2022,2427379,433.50,RIGBY TAYLOR LTD,018386,Local Environmental Services,Cultural & Related Services,104,Supplies and Services,504,Equipment,5023,Revenue,HORTICULTURAL.LANDSCAPING
30/06/2022,2427923,468.28,DE POEL MANAGED SERVICES LIMITED,391542,Local Environmental Services,Cultural & Related Services,104,Employees,501,Direct Employee Expenses,5001,Revenue,HUMAN RESOURCES.TEMPORARY & AGENCY STAFF
30/06/2022,2427923,468.28,DE POEL MANAGED SERVICES LIMITED,391542,Local Environmental Services,Cultural & Related Services,104,Employees,501,Direct Employee Expenses,5001,Revenue,HUMAN RESOURCES.TEMPORARY & AGENCY STAFF
09/06/2022,2412654,-0.01,DE POEL MANAGED SERVICES LIMITED,391542,Local Environmental Services,Cultural & Related Services,104,Employees,501,Direct Employee Expenses,5001,Revenue,HUMAN RESOURCES.TEMPORARY & AGENCY STAFF
09/06/2022,2412654,-0.01,DE POEL MANAGED SERVICES LIMITED,391542,Local Environmental Services,Cultural & Related Services,104,Employees,501,Direct Employee Expenses,5001,Revenue,HUMAN RESOURCES.TEMPORARY & AGENCY STAFF
09/06/2022,2412654,-0.01,DE POEL MANAGED SERVICES LIMITED,391542,Local Environmental Services,Cultural & Related Services,104,Employees,501,Direct Employee Expenses,5001,Revenue,HUMAN RESOURCES.TEMPORARY & AGENCY STAFF
09/06/2022,2412654,303.75,DE POEL MANAGED SERVICES LIMITED,391542,Local Environmental Services,Cultural & Related Services,104,Employees,501,Direct Employee Expenses,5001,Revenue,HUMAN RESOURCES.TEMPORARY & AGENCY STAFF
09/06/2022,2412654,303.75,DE POEL MANAGED SERVICES LIMITED,391542,Local Environmental Services,Cultural & Related Services,104,Employees,501,Direct Employee Expenses,5001,Revenue,HUMAN RESOURCES.TEMPORARY & AGENCY STAFF
09/06/2022,2412654,303.75,DE POEL MANAGED SERVICES LIMITED,391542,Local Environmental Services,Cultural & Related Services,104,Employees,501,Direct Employee Expenses,5001,Revenue,HUMAN RESOURCES.TEMPORARY & AGENCY STAFF
16/06/2022,2419307,468.28,DE POEL MANAGED SERVICES LIMITED,391542,Local Environmental Services,Cultural & Related Services,104,Employees,501,Direct Employee Expenses,5001,Revenue,HUMAN RESOURCES.TEMPORARY & AGENCY STAFF
16/06/2022,2419307,468.28,DE POEL MANAGED SERVICES LIMITED,391542,Local Environmental Services,Cultural & Related Services,104,Employees,501,Direct Employee Expenses,5001,Revenue,HUMAN RESOURCES.TEMPORARY & AGENCY STAFF
16/06/2022,2419307,468.28,DE POEL MANAGED SERVICES LIMITED,391542,Local Environmental Services,Cultural & Related Services,104,Employees,501,Direct Employee Expenses,5001,Revenue,HUMAN RESOURCES.TEMPORARY & AGENCY STAFF
23/06/2022,2424924,468.28,DE POEL MANAGED SERVICES LIMITED,391542,Local Environmental Services,Cultural & Related Services,104,Employees,501,Direct Employee Expenses,5001,Revenue,HUMAN RESOURCES.TEMPORARY & AGENCY STAFF
23/06/2022,2424924,468.28,DE POEL MANAGED SERVICES LIMITED,391542,Local Environmental Services,Cultural & Related Services,104,Employees,501,Direct Employee Expenses,5001,Revenue,HUMAN RESOURCES.TEMPORARY & AGENCY STAFF
23/06/2022,2424924,468.28,DE POEL MANAGED SERVICES LIMITED,391542,Local Environmental Services,Cultural & Related Services,104,Employees,501,Direct Employee Expenses,5001,Revenue,HUMAN RESOURCES.TEMPORARY & AGENCY STAFF
23/06/2022,2424952,172.21,Redacted Personal Data,403189,Local Environmental Services,Cultural & Related Services,104,Supplies and Services,504,Equipment,5023,Revenue,
27/06/2022,2426251,80.00,WILF HUSBAND,378193,Local Environmental Services,Cultural & Related Services,104,Supplies and Services,504,Equipment,5023,Revenue,HORTICULTURAL.TOOLS & EQUIPMENT
29/06/2022,2427379,433.50,RIGBY TAYLOR LTD,018386,Local Environmental Services,Cultural & Related Services,104,Supplies and Services,504,Equipment,5023,Revenue,HORTICULTURAL.LANDSCAPING
30/06/2022,2427923,468.28,DE POEL MANAGED SERVICES LIMITED,391542,Local Environmental Services,Cultural & Related Services,104,Employees,501,Direct Employee Expenses,5001,Revenue,HUMAN RESOURCES.TEMPORARY & AGENCY STAFF
30/06/2022,2427923,468.28,DE POEL MANAGED SERVICES LIMITED,391542,Local Environmental Services,Cultural & Related Services,104,Employees,501,Direct Employee Expenses,5001,Revenue,HUMAN RESOURCES.TEMPORARY & AGENCY STAFF
09/06/2022,2412654,-0.01,DE POEL MANAGED SERVICES LIMITED,391542,Local Environmental Services,Cultural & Related Services,104,Employees,501,Direct Employee Expenses,5001,Revenue,HUMAN RESOURCES.TEMPORARY & AGENCY STAFF
09/06/2022,2412654,-0.01,DE POEL MANAGED SERVICES LIMITED,391542,Local Environmental Services,Cultural & Related Services,104,Employees,501,Direct Employee Expenses,5001,Revenue,HUMAN RESOURCES.TEMPORARY & AGENCY STAFF
09/06/2022,2412654,-0.01,DE POEL MANAGED SERVICES LIMITED,391542,Local Environmental Services,Cultural & Related Services,104,Employees,501,Direct Employee Expenses,5001,Revenue,HUMAN RESOURCES.TEMPORARY & AGENCY STAFF
09/06/2022,2412654,303.75,DE POEL MANAGED SERVICES LIMITED,391542,Local Environmental Services,Cultural & Related Services,104,Employees,501,Direct Employee Expenses,5001,Revenue,HUMAN RESOURCES.TEMPORARY & AGENCY STAFF
09/06/2022,2412654,303.75,DE POEL MANAGED SERVICES LIMITED,391542,Local Environmental Services,Cultural & Related Services,104,Employees,501,Direct Employee Expenses,5001,Revenue,HUMAN RESOURCES.TEMPORARY & AGENCY STAFF
09/06/2022,2412654,303.75,DE POEL MANAGED SERVICES LIMITED,391542,Local Environmental Services,Cultural & Related Services,104,Employees,501,Direct Employee Expenses,5001,Revenue,HUMAN RESOURCES.TEMPORARY & AGENCY STAFF
16/06/2022,2419307,468.28,DE POEL MANAGED SERVICES LIMITED,391542,Local Environmental Services,Cultural & Related Services,104,Employees,501,Direct Employee Expenses,5001,Revenue,HUMAN RESOURCES.TEMPORARY & AGENCY STAFF
16/06/2022,2419307,468.28,DE POEL MANAGED SERVICES LIMITED,391542,Local Environmental Services,Cultural & Related Services,104,Employees,501,Direct Employee Expenses,5001,Revenue,HUMAN RESOURCES.TEMPORARY & AGENCY STAFF
16/06/2022,2419307,468.28,DE POEL MANAGED SERVICES LIMITED,391542,Local Environmental Services,Cultural & Related Services,104,Employees,501,Direct Employee Expenses,5001,Revenue,HUMAN RESOURCES.TEMPORARY & AGENCY STAFF
23/06/2022,2424924,468.28,DE POEL MANAGED SERVICES LIMITED,391542,Local Environmental Services,Cultural & Related Services,104,Employees,501,Direct Employee Expenses,5001,Revenue,HUMAN RESOURCES.TEMPORARY & AGENCY STAFF
23/06/2022,2424924,468.28,DE POEL MANAGED SERVICES LIMITED,391542,Local Environmental Services,Cultural & Related Services,104,Employees,501,Direct Employee Expenses,5001,Revenue,HUMAN RESOURCES.TEMPORARY & AGENCY STAFF
23/06/2022,2424924,468.28,DE POEL MANAGED SERVICES LIMITED,391542,Local Environmental Services,Cultural & Related Services,104,Employees,501,Direct Employee Expenses,5001,Revenue,HUMAN RESOURCES.TEMPORARY & AGENCY STAFF
23/06/2022,2424952,172.21,Redacted Personal Data,403189,Local Environmental Services,Cultural & Related Services,104,Supplies and Services,504,Equipment,5023,Revenue,
27/06/2022,2426251,80.00,WILF HUSBAND,378193,Local Environmental Services,Cultural & Related Services,104,Supplies and Services,504,Equipment,5023,Revenue,HORTICULTURAL.TOOLS & EQUIPMENT
29/06/2022,2427379,433.50,RIGBY TAYLOR LTD,018386,Local Environmental Services,Cultural & Related Services,104,Supplies and Services,504,Equipment,5023,Revenue,HORTICULTURAL.LANDSCAPING
30/06/2022,2427923,468.28,DE POEL MANAGED SERVICES LIMITED,391542,Local Environmental Services,Cultural & Related Services,104,Employees,501,Direct Employee Expenses,5001,Revenue,HUMAN RESOURCES.TEMPORARY & AGENCY STAFF
30/06/2022,2427923,468.28,DE POEL MANAGED SERVICES LIMITED,391542,Local Environmental Services,Cultural & Related Services,104,Employees,501,Direct Employee Expenses,5001,Revenue,HUMAN RESOURCES.TEMPORARY & AGENCY STAFF
30/06/2022,2427923,468.28,DE POEL MANAGED SERVICES LIMITED,391542,Local Environmental Services,Cultural & Related Services,104,Employees,501,Direct Employee Expenses,5001,Revenue,HUMAN RESOURCES.TEMPORARY & AGENCY STAFF
15/06/2022,2419188,21.25,GUSTHARTS CHAINSAW CENTRE,007917,Local Environmental Services,Cultural & Related Services,104,Supplies and Services,504,Equipment,5023,Revenue,HORTICULTURAL.TOOLS & EQUIPMENT
15/06/2022,2419188,127.50,GUSTHARTS CHAINSAW CENTRE,007917,Local Environmental Services,Cultural & Related Services,104,Supplies and Services,504,Equipment,5023,Revenue,HORTICULTURAL.TOOLS & EQUIPMENT
15/06/2022,2419188,57.21,GUSTHARTS CHAINSAW CENTRE,007917,Local Environmental Services,Cultural & Related Services,104,Supplies and Services,504,Miscellaneous Expenses,5034,Revenue,HORTICULTURAL.TOOLS & EQUIPMENT
15/06/2022,2419188,216.00,GUSTHARTS CHAINSAW CENTRE,007917,Local Environmental Services,Cultural & Related Services,104,Supplies and Services,504,Miscellaneous Expenses,5034,Revenue,HORTICULTURAL.TOOLS & EQUIPMENT
15/06/2022,2419188,225.00,GUSTHARTS CHAINSAW CENTRE,007917,Local Environmental Services,Cultural & Related Services,104,Supplies and Services,504,Miscellaneous Expenses,5034,Revenue,HORTICULTURAL.TOOLS & EQUIPMENT
17/06/2022,2420225,1800.00,DRYAD ARBOR ARTISTS,402823,Local Environmental Services,Cultural & Related Services,104,Supplies and Services,504,Miscellaneous Expenses,5034,Revenue,HUMAN RESOURCES.TRAINING & CONFERENCES
07/06/2022,2410162,23.00,KILLGERM CHEMICALS LTD,251235,Local Environmental Services,Environmental & Regulatory Services,105,Supplies and Services,504,Equipment,5023,Revenue,ENVIRONMENTAL SERVICES.ANIMAL SERVICES
07/06/2022,2410162,56.00,KILLGERM CHEMICALS LTD,251235,Local Environmental Services,Environmental & Regulatory Services,105,Supplies and Services,504,Equipment,5023,Revenue,ENVIRONMENTAL SERVICES.ANIMAL SERVICES
07/06/2022,2410162,67.40,KILLGERM CHEMICALS LTD,251235,Local Environmental Services,Environmental & Regulatory Services,105,Supplies and Services,504,Equipment,5023,Revenue,ENVIRONMENTAL SERVICES.ANIMAL SERVICES
07/06/2022,2410162,71.80,KILLGERM CHEMICALS LTD,251235,Local Environmental Services,Environmental & Regulatory Services,105,Supplies and Services,504,Equipment,5023,Revenue,ENVIRONMENTAL SERVICES.ANIMAL SERVICES
07/06/2022,2410162,338.00,KILLGERM CHEMICALS LTD,251235,Local Environmental Services,Environmental & Regulatory Services,105,Supplies and Services,504,Equipment,5023,Revenue,ENVIRONMENTAL SERVICES.ANIMAL SERVICES
09/06/2022,2412654,284.76,DE POEL MANAGED SERVICES LIMITED,391542,Local Environmental Services,Police Services,111,Employees,501,Direct Employee Expenses,5001,Revenue,HUMAN RESOURCES.TEMPORARY & AGENCY STAFF
09/06/2022,2412654,284.76,DE POEL MANAGED SERVICES LIMITED,391542,Local Environmental Services,Police Services,111,Employees,501,Direct Employee Expenses,5001,Revenue,HUMAN RESOURCES.TEMPORARY & AGENCY STAFF
09/06/2022,2412654,284.76,DE POEL MANAGED SERVICES LIMITED,391542,Local Environmental Services,Police Services,111,Employees,501,Direct Employee Expenses,5001,Revenue,HUMAN RESOURCES.TEMPORARY & AGENCY STAFF
16/06/2022,2419307,468.28,DE POEL MANAGED SERVICES LIMITED,391542,Local Environmental Services,Police Services,111,Employees,501,Direct Employee Expenses,5001,Revenue,HUMAN RESOURCES.TEMPORARY & AGENCY STAFF
16/06/2022,2419307,468.28,DE POEL MANAGED SERVICES LIMITED,391542,Local Environmental Services,Police Services,111,Employees,501,Direct Employee Expenses,5001,Revenue,HUMAN RESOURCES.TEMPORARY & AGENCY STAFF
16/06/2022,2419307,468.28,DE POEL MANAGED SERVICES LIMITED,391542,Local Environmental Services,Police Services,111,Employees,501,Direct Employee Expenses,5001,Revenue,HUMAN RESOURCES.TEMPORARY & AGENCY STAFF
16/06/2022,2419307,468.28,DE POEL MANAGED SERVICES LIMITED,391542,Local Environmental Services,Police Services,111,Employees,501,Direct Employee Expenses,5001,Revenue,HUMAN RESOURCES.TEMPORARY & AGENCY STAFF
23/06/2022,2424924,284.76,DE POEL MANAGED SERVICES LIMITED,391542,Local Environmental Services,Police Services,111,Employees,501,Direct Employee Expenses,5001,Revenue,HUMAN RESOURCES.TEMPORARY & AGENCY STAFF
23/06/2022,2424924,468.28,DE POEL MANAGED SERVICES LIMITED,391542,Local Environmental Services,Police Services,111,Employees,501,Direct Employee Expenses,5001,Revenue,HUMAN RESOURCES.TEMPORARY & AGENCY STAFF
23/06/2022,2424924,468.28,DE POEL MANAGED SERVICES LIMITED,391542,Local Environmental Services,Police Services,111,Employees,501,Direct Employee Expenses,5001,Revenue,HUMAN RESOURCES.TEMPORARY & AGENCY STAFF
23/06/2022,2424924,468.28,DE POEL MANAGED SERVICES LIMITED,391542,Local Environmental Services,Police Services,111,Employees,501,Direct Employee Expenses,5001,Revenue,HUMAN RESOURCES.TEMPORARY & AGENCY STAFF
30/06/2022,2427830,1068.00,1ST COVERALL COMPANY LIMITED,393273,Local Environmental Services,Police Services,111,Supplies and Services,504,"Clothing, Uniforms and Laundry",5025,Revenue,CLOTHING.PROTECTIVE
30/06/2022,2427923,468.28,DE POEL MANAGED SERVICES LIMITED,391542,Local Environmental Services,Police Services,111,Employees,501,Direct Employee Expenses,5001,Revenue,HUMAN RESOURCES.TEMPORARY & AGENCY STAFF
30/06/2022,2427923,468.28,DE POEL MANAGED SERVICES LIMITED,391542,Local Environmental Services,Police Services,111,Employees,501,Direct Employee Expenses,5001,Revenue,HUMAN RESOURCES.TEMPORARY & AGENCY STAFF
30/06/2022,2427923,468.28,DE POEL MANAGED SERVICES LIMITED,391542,Local Environmental Services,Police Services,111,Employees,501,Direct Employee Expenses,5001,Revenue,HUMAN RESOURCES.TEMPORARY & AGENCY STAFF
09/06/2022,2412654,257.31,DE POEL MANAGED SERVICES LIMITED,391542,Local Environmental Services,Environmental & Regulatory Services,105,Employees,501,Direct Employee Expenses,5001,Revenue,HUMAN RESOURCES.TEMPORARY & AGENCY STAFF
09/06/2022,2412654,257.31,DE POEL MANAGED SERVICES LIMITED,391542,Local Environmental Services,Environmental & Regulatory Services,105,Employees,501,Direct Employee Expenses,5001,Revenue,HUMAN RESOURCES.TEMPORARY & AGENCY STAFF
09/06/2022,2412654,257.31,DE POEL MANAGED SERVICES LIMITED,391542,Local Environmental Services,Environmental & Regulatory Services,105,Employees,501,Direct Employee Expenses,5001,Revenue,HUMAN RESOURCES.TEMPORARY & AGENCY STAFF
09/06/2022,2412654,384.17,DE POEL MANAGED SERVICES LIMITED,391542,Local Environmental Services,Environmental & Regulatory Services,105,Employees,501,Direct Employee Expenses,5001,Revenue,HUMAN RESOURCES.TEMPORARY & AGENCY STAFF
09/06/2022,2412654,384.17,DE POEL MANAGED SERVICES LIMITED,391542,Local Environmental Services,Environmental & Regulatory Services,105,Employees,501,Direct Employee Expenses,5001,Revenue,HUMAN RESOURCES.TEMPORARY & AGENCY STAFF
09/06/2022,2412654,384.17,DE POEL MANAGED SERVICES LIMITED,391542,Local Environmental Services,Environmental & Regulatory Services,105,Employees,501,Direct Employee Expenses,5001,Revenue,HUMAN RESOURCES.TEMPORARY & AGENCY STAFF
16/06/2022,2419307,512.22,DE POEL MANAGED SERVICES LIMITED,391542,Local Environmental Services,Environmental & Regulatory Services,105,Employees,501,Direct Employee Expenses,5001,Revenue,HUMAN RESOURCES.TEMPORARY & AGENCY STAFF
16/06/2022,2419307,512.22,DE POEL MANAGED SERVICES LIMITED,391542,Local Environmental Services,Environmental & Regulatory Services,105,Employees,501,Direct Employee Expenses,5001,Revenue,HUMAN RESOURCES.TEMPORARY & AGENCY STAFF
16/06/2022,2419307,512.22,DE POEL MANAGED SERVICES LIMITED,391542,Local Environmental Services,Environmental & Regulatory Services,105,Employees,501,Direct Employee Expenses,5001,Revenue,HUMAN RESOURCES.TEMPORARY & AGENCY STAFF
23/06/2022,2424924,512.22,DE POEL MANAGED SERVICES LIMITED,391542,Local Environmental Services,Environmental & Regulatory Services,105,Employees,501,Direct Employee Expenses,5001,Revenue,HUMAN RESOURCES.TEMPORARY & AGENCY STAFF
23/06/2022,2424924,512.22,DE POEL MANAGED SERVICES LIMITED,391542,Local Environmental Services,Environmental & Regulatory Services,105,Employees,501,Direct Employee Expenses,5001,Revenue,HUMAN RESOURCES.TEMPORARY & AGENCY STAFF
23/06/2022,2424924,512.22,DE POEL MANAGED SERVICES LIMITED,391542,Local Environmental Services,Environmental & Regulatory Services,105,Employees,501,Direct Employee Expenses,5001,Revenue,HUMAN RESOURCES.TEMPORARY & AGENCY STAFF
29/06/2022,2427367,1599.97,WYBONE LTD,104092,Local Environmental Services,Environmental & Regulatory Services,105,Supplies and Services,504,Equipment,5023,Revenue,WASTE.RECYCLING
30/06/2022,2427923,512.22,DE POEL MANAGED SERVICES LIMITED,391542,Local Environmental Services,Environmental & Regulatory Services,105,Employees,501,Direct Employee Expenses,5001,Revenue,HUMAN RESOURCES.TEMPORARY & AGENCY STAFF
30/06/2022,2427923,512.22,DE POEL MANAGED SERVICES LIMITED,391542,Local Environmental Services,Environmental & Regulatory Services,105,Employees,501,Direct Employee Expenses,5001,Revenue,HUMAN RESOURCES.TEMPORARY & AGENCY STAFF
30/06/2022,2427923,512.22,DE POEL MANAGED SERVICES LIMITED,391542,Local Environmental Services,Environmental & Regulatory Services,105,Employees,501,Direct Employee Expenses,5001,Revenue,HUMAN RESOURCES.TEMPORARY & AGENCY STAFF
09/06/2022,2412654,0.01,DE POEL MANAGED SERVICES LIMITED,391542,Local Environmental Services,Cultural & Related Services,104,Employees,501,Direct Employee Expenses,5001,Revenue,HUMAN RESOURCES.TEMPORARY & AGENCY STAFF
09/06/2022,2412654,0.01,DE POEL MANAGED SERVICES LIMITED,391542,Local Environmental Services,Cultural & Related Services,104,Employees,501,Direct Employee Expenses,5001,Revenue,HUMAN RESOURCES.TEMPORARY & AGENCY STAFF
09/06/2022,2412654,0.01,DE POEL MANAGED SERVICES LIMITED,391542,Local Environmental Services,Cultural & Related Services,104,Employees,501,Direct Employee Expenses,5001,Revenue,HUMAN RESOURCES.TEMPORARY & AGENCY STAFF
09/06/2022,2412654,0.01,DE POEL MANAGED SERVICES LIMITED,391542,Local Environmental Services,Cultural & Related Services,104,Employees,501,Direct Employee Expenses,5001,Revenue,HUMAN RESOURCES.TEMPORARY & AGENCY STAFF
09/06/2022,2412654,0.02,DE POEL MANAGED SERVICES LIMITED,391542,Local Environmental Services,Cultural & Related Services,104,Employees,501,Direct Employee Expenses,5001,Revenue,HUMAN RESOURCES.TEMPORARY & AGENCY STAFF
09/06/2022,2412654,0.02,DE POEL MANAGED SERVICES LIMITED,391542,Local Environmental Services,Cultural & Related Services,104,Employees,501,Direct Employee Expenses,5001,Revenue,HUMAN RESOURCES.TEMPORARY & AGENCY STAFF
09/06/2022,2412654,0.02,DE POEL MANAGED SERVICES LIMITED,391542,Local Environmental Services,Cultural & Related Services,104,Employees,501,Direct Employee Expenses,5001,Revenue,HUMAN RESOURCES.TEMPORARY & AGENCY STAFF
09/06/2022,2412654,0.02,DE POEL MANAGED SERVICES LIMITED,391542,Local Environmental Services,Cultural & Related Services,104,Employees,501,Direct Employee Expenses,5001,Revenue,HUMAN RESOURCES.TEMPORARY & AGENCY STAFF
09/06/2022,2412654,236.90,DE POEL MANAGED SERVICES LIMITED,391542,Local Environmental Services,Cultural & Related Services,104,Employees,501,Direct Employee Expenses,5001,Revenue,HUMAN RESOURCES.TEMPORARY & AGENCY STAFF
09/06/2022,2412654,236.90,DE POEL MANAGED SERVICES LIMITED,391542,Local Environmental Services,Cultural & Related Services,104,Employees,501,Direct Employee Expenses,5001,Revenue,HUMAN RESOURCES.TEMPORARY & AGENCY STAFF
09/06/2022,2412654,236.90,DE POEL MANAGED SERVICES LIMITED,391542,Local Environmental Services,Cultural & Related Services,104,Employees,501,Direct Employee Expenses,5001,Revenue,HUMAN RESOURCES.TEMPORARY & AGENCY STAFF
09/06/2022,2412654,236.90,DE POEL MANAGED SERVICES LIMITED,391542,Local Environmental Services,Cultural & Related Services,104,Employees,501,Direct Employee Expenses,5001,Revenue,HUMAN RESOURCES.TEMPORARY & AGENCY STAFF
09/06/2022,2412654,475.76,DE POEL MANAGED SERVICES LIMITED,391542,Local Environmental Services,Cultural & Related Services,104,Employees,501,Direct Employee Expenses,5001,Revenue,HUMAN RESOURCES.TEMPORARY & AGENCY STAFF
09/06/2022,2412654,475.76,DE POEL MANAGED SERVICES LIMITED,391542,Local Environmental Services,Cultural & Related Services,104,Employees,501,Direct Employee Expenses,5001,Revenue,HUMAN RESOURCES.TEMPORARY & AGENCY STAFF
09/06/2022,2412654,475.76,DE POEL MANAGED SERVICES LIMITED,391542,Local Environmental Services,Cultural & Related Services,104,Employees,501,Direct Employee Expenses,5001,Revenue,HUMAN RESOURCES.TEMPORARY & AGENCY STAFF
09/06/2022,2412654,475.76,DE POEL MANAGED SERVICES LIMITED,391542,Local Environmental Services,Cultural & Related Services,104,Employees,501,Direct Employee Expenses,5001,Revenue,HUMAN RESOURCES.TEMPORARY & AGENCY STAFF
16/06/2022,2419307,367.03,DE POEL MANAGED SERVICES LIMITED,391542,Local Environmental Services,Cultural & Related Services,104,Employees,501,Direct Employee Expenses,5001,Revenue,HUMAN RESOURCES.TEMPORARY & AGENCY STAFF
16/06/2022,2419307,468.28,DE POEL MANAGED SERVICES LIMITED,391542,Local Environmental Services,Cultural & Related Services,104,Employees,501,Direct Employee Expenses,5001,Revenue,HUMAN RESOURCES.TEMPORARY & AGENCY STAFF
16/06/2022,2419307,473.80,DE POEL MANAGED SERVICES LIMITED,391542,Local Environmental Services,Cultural & Related Services,104,Employees,501,Direct Employee Expenses,5001,Revenue,HUMAN RESOURCES.TEMPORARY & AGENCY STAFF
16/06/2022,2419307,473.80,DE POEL MANAGED SERVICES LIMITED,391542,Local Environmental Services,Cultural & Related Services,104,Employees,501,Direct Employee Expenses,5001,Revenue,HUMAN RESOURCES.TEMPORARY & AGENCY STAFF
23/06/2022,2424924,468.28,DE POEL MANAGED SERVICES LIMITED,391542,Local Environmental Services,Cultural & Related Services,104,Employees,501,Direct Employee Expenses,5001,Revenue,HUMAN RESOURCES.TEMPORARY & AGENCY STAFF
23/06/2022,2424924,468.28,DE POEL MANAGED SERVICES LIMITED,391542,Local Environmental Services,Cultural & Related Services,104,Employees,501,Direct Employee Expenses,5001,Revenue,HUMAN RESOURCES.TEMPORARY & AGENCY STAFF
23/06/2022,2424924,473.81,DE POEL MANAGED SERVICES LIMITED,391542,Local Environmental Services,Cultural & Related Services,104,Employees,501,Direct Employee Expenses,5001,Revenue,HUMAN RESOURCES.TEMPORARY & AGENCY STAFF
23/06/2022,2424924,473.81,DE POEL MANAGED SERVICES LIMITED,391542,Local Environmental Services,Cultural & Related Services,104,Employees,501,Direct Employee Expenses,5001,Revenue,HUMAN RESOURCES.TEMPORARY & AGENCY STAFF
30/06/2022,2427923,355.36,DE POEL MANAGED SERVICES LIMITED,391542,Local Environmental Services,Cultural & Related Services,104,Employees,501,Direct Employee Expenses,5001,Revenue,HUMAN RESOURCES.TEMPORARY & AGENCY STAFF
30/06/2022,2427923,405.00,DE POEL MANAGED SERVICES LIMITED,391542,Local Environmental Services,Cultural & Related Services,104,Employees,501,Direct Employee Expenses,5001,Revenue,HUMAN RESOURCES.TEMPORARY & AGENCY STAFF
30/06/2022,2427923,468.28,DE POEL MANAGED SERVICES LIMITED,391542,Local Environmental Services,Cultural & Related Services,104,Employees,501,Direct Employee Expenses,5001,Revenue,HUMAN RESOURCES.TEMPORARY & AGENCY STAFF
30/06/2022,2427923,468.28,DE POEL MANAGED SERVICES LIMITED,391542,Local Environmental Services,Cultural & Related Services,104,Employees,501,Direct Employee Expenses,5001,Revenue,HUMAN RESOURCES.TEMPORARY & AGENCY STAFF
30/06/2022,2427923,468.28,DE POEL MANAGED SERVICES LIMITED,391542,Local Environmental Services,Cultural & Related Services,104,Employees,501,Direct Employee Expenses,5001,Revenue,HUMAN RESOURCES.TEMPORARY & AGENCY STAFF
30/06/2022,2427923,468.28,DE POEL MANAGED SERVICES LIMITED,391542,Local Environmental Services,Cultural & Related Services,104,Employees,501,Direct Employee Expenses,5001,Revenue,HUMAN RESOURCES.TEMPORARY & AGENCY STAFF
30/06/2022,2427923,473.81,DE POEL MANAGED SERVICES LIMITED,391542,Local Environmental Services,Cultural & Related Services,104,Employees,501,Direct Employee Expenses,5001,Revenue,HUMAN RESOURCES.TEMPORARY & AGENCY STAFF
09/06/2022,2412682,950.00,MARK HUNTER,347587,Commissioning & Asset Management,Children's & Education Services,103,Transport,503,Recharges,5017,Revenue,PUBLIC TRANSPORT.TAXI SERVICES
13/06/2022,2415516,950.00,Redacted Personal Data,381169,Commissioning & Asset Management,Children's & Education Services,103,Transport,503,Recharges,5017,Revenue,PUBLIC TRANSPORT.TAXI SERVICES
13/06/2022,2415516,1330.00,Redacted Personal Data,381169,Commissioning & Asset Management,Children's & Education Services,103,Transport,503,Recharges,5017,Revenue,PUBLIC TRANSPORT.TAXI SERVICES
13/06/2022,2415516,1520.00,Redacted Personal Data,381169,Commissioning & Asset Management,Children's & Education Services,103,Transport,503,Recharges,5017,Revenue,PUBLIC TRANSPORT.TAXI SERVICES
13/06/2022,2415516,1620.00,Redacted Personal Data,381169,Commissioning & Asset Management,Children's & Education Services,103,Transport,503,Recharges,5017,Revenue,PUBLIC TRANSPORT.TAXI SERVICES
13/06/2022,2415516,1710.00,Redacted Personal Data,381169,Commissioning & Asset Management,Children's & Education Services,103,Transport,503,Recharges,5017,Revenue,PUBLIC TRANSPORT.TAXI SERVICES
13/06/2022,2415516,1976.00,Redacted Personal Data,381169,Commissioning & Asset Management,Children's & Education Services,103,Transport,503,Recharges,5017,Revenue,PUBLIC TRANSPORT.TAXI SERVICES
13/06/2022,2415523,432.00,PRIORY TAXIS,388929,Commissioning & Asset Management,Children's & Education Services,103,Transport,503,Recharges,5017,Revenue,PUBLIC TRANSPORT.TAXI SERVICES
13/06/2022,2415523,950.00,PRIORY TAXIS,388929,Commissioning & Asset Management,Children's & Education Services,103,Transport,503,Recharges,5017,Revenue,PUBLIC TRANSPORT.TAXI SERVICES
13/06/2022,2415523,1292.00,PRIORY TAXIS,388929,Commissioning & Asset Management,Children's & Education Services,103,Transport,503,Recharges,5017,Revenue,PUBLIC TRANSPORT.TAXI SERVICES
15/06/2022,2419176,1764.00,READYPAY LTD T/A PHOENIX TAXIS,306608,Commissioning & Asset Management,Children's & Education Services,103,Transport,503,Recharges,5017,Revenue,PUBLIC TRANSPORT.TAXI SERVICES
15/06/2022,2419176,1944.00,READYPAY LTD T/A PHOENIX TAXIS,306608,Commissioning & Asset Management,Children's & Education Services,103,Transport,503,Recharges,5017,Revenue,PUBLIC TRANSPORT.TAXI SERVICES
21/06/2022,2423759,954.80,GENERAL BACS PAYMENTS - BSS ONLY,381148,Commissioning & Asset Management,Children's & Education Services,103,Transport,503,Recharges,5017,Revenue,NON INFLUENCIBLE.NON INFLUENCIBLE
09/06/2022,2412634,980.00,Redacted Personal Data,351118,Commissioning & Asset Management,Children's & Education Services,103,Transport,503,Recharges,5017,Revenue,PUBLIC TRANSPORT.TAXI SERVICES
09/06/2022,2412635,936.00,Redacted Personal Data,234365,Commissioning & Asset Management,Children's & Education Services,103,Transport,503,Recharges,5017,Revenue,PUBLIC TRANSPORT.TAXI SERVICES
09/06/2022,2412638,0.00,ALBION PRIVATE HIRE,363494,Commissioning & Asset Management,Children's & Education Services,103,Transport,503,Recharges,5017,Revenue,PUBLIC TRANSPORT.TAXI SERVICES
09/06/2022,2412638,1080.00,ALBION PRIVATE HIRE,363494,Commissioning & Asset Management,Children's & Education Services,103,Transport,503,Recharges,5017,Revenue,PUBLIC TRANSPORT.TAXI SERVICES
09/06/2022,2412638,1207.00,ALBION PRIVATE HIRE,363494,Commissioning & Asset Management,Children's & Education Services,103,Transport,503,Recharges,5017,Revenue,PUBLIC TRANSPORT.TAXI SERVICES
09/06/2022,2412638,1292.00,ALBION PRIVATE HIRE,363494,Commissioning & Asset Management,Children's & Education Services,103,Transport,503,Recharges,5017,Revenue,PUBLIC TRANSPORT.TAXI SERVICES
09/06/2022,2412638,1311.00,ALBION PRIVATE HIRE,363494,Commissioning & Asset Management,Children's & Education Services,103,Transport,503,Recharges,5017,Revenue,PUBLIC TRANSPORT.TAXI SERVICES
09/06/2022,2412638,1332.00,ALBION PRIVATE HIRE,363494,Commissioning & Asset Management,Children's & Education Services,103,Transport,503,Recharges,5017,Revenue,PUBLIC TRANSPORT.TAXI SERVICES
09/06/2022,2412638,1406.00,ALBION PRIVATE HIRE,363494,Commissioning & Asset Management,Children's & Education Services,103,Transport,503,Recharges,5017,Revenue,PUBLIC TRANSPORT.TAXI SERVICES
16/06/2022,2419307,-475.77,DE POEL MANAGED SERVICES LIMITED,391542,Local Environmental Services,Cultural & Related Services,104,Employees,501,Direct Employee Expenses,5001,Revenue,HUMAN RESOURCES.TEMPORARY & AGENCY STAFF
16/06/2022,2419307,-236.90,DE POEL MANAGED SERVICES LIMITED,391542,Local Environmental Services,Cultural & Related Services,104,Employees,501,Direct Employee Expenses,5001,Revenue,HUMAN RESOURCES.TEMPORARY & AGENCY STAFF
06/06/2022,2405848,426.10,AZURE GARDEN CENTRE,371768,Local Environmental Services,Cultural & Related Services,104,Supplies and Services,504,Equipment,5023,Revenue,HORTICULTURAL.TOOLS & EQUIPMENT
06/06/2022,2405896,4494.00,STRAIGHT PLC,357372,Waste Management,Environmental & Regulatory Services,105,Supplies and Services,504,Equipment,5023,Revenue,WASTE.CONSUMABLES
09/06/2022,2411414,24.96,BUNZL UK LTD T/A BUNZL CLEANING & HYGIENE SUPPLIES,027747,Waste Management,Environmental & Regulatory Services,105,Premises-Related Expenditure,502,Cleaning and Domestic Supplies,5012,Revenue,CLEANING & JANITORIAL.CLEANING MATERIALS
09/06/2022,2411414,29.00,BUNZL UK LTD T/A BUNZL CLEANING & HYGIENE SUPPLIES,027747,Waste Management,Environmental & Regulatory Services,105,Premises-Related Expenditure,502,Cleaning and Domestic Supplies,5012,Revenue,CLEANING & JANITORIAL.CLEANING MATERIALS
09/06/2022,2411414,34.12,BUNZL UK LTD T/A BUNZL CLEANING & HYGIENE SUPPLIES,027747,Waste Management,Environmental & Regulatory Services,105,Premises-Related Expenditure,502,Cleaning and Domestic Supplies,5012,Revenue,CLEANING & JANITORIAL.CLEANING MATERIALS
09/06/2022,2411414,42.84,BUNZL UK LTD T/A BUNZL CLEANING & HYGIENE SUPPLIES,027747,Waste Management,Environmental & Regulatory Services,105,Premises-Related Expenditure,502,Cleaning and Domestic Supplies,5012,Revenue,CLEANING & JANITORIAL.CLEANING MATERIALS
09/06/2022,2411414,77.82,BUNZL UK LTD T/A BUNZL CLEANING & HYGIENE SUPPLIES,027747,Waste Management,Environmental & Regulatory Services,105,Premises-Related Expenditure,502,Cleaning and Domestic Supplies,5012,Revenue,CLEANING & JANITORIAL.CLEANING MATERIALS
23/06/2022,2424764,688.00,1ST COVERALL COMPANY LIMITED,393273,Waste Management,Environmental & Regulatory Services,105,Supplies and Services,504,Miscellaneous Expenses,5034,Revenue,CLOTHING.PROTECTIVE
28/06/2022,2426921,258.00,Redacted Personal Data,355263,Waste Management,Environmental & Regulatory Services,105,Supplies and Services,504,"Printing, Stationery and General Office Expenses",5026,Revenue,PUBLIC HEALTH.OCCUPATIONAL THERAPY SERVICES
01/06/2022,2405076,978.00,BUNZL UK LTD T/A BUNZL CLEANING & HYGIENE SUPPLIES,027747,Local Environmental Services,Environmental & Regulatory Services,105,Premises-Related Expenditure,502,Cleaning and Domestic Supplies,5012,Revenue,CLEANING & JANITORIAL.CLEANING MATERIALS
14/06/2022,2417788,580.99,BALFOUR BEATTY WORKPLACE LIMITED,389026,Local Environmental Services,Environmental & Regulatory Services,105,Supplies and Services,504,Equipment,5023,Revenue,HUMAN RESOURCES.PROFESSIONAL & ADVISORY SERVICES
30/06/2022,2427827,978.00,BUNZL UK LTD T/A BUNZL CLEANING & HYGIENE SUPPLIES,027747,Local Environmental Services,Environmental & Regulatory Services,105,Premises-Related Expenditure,502,Cleaning and Domestic Supplies,5012,Revenue,CLEANING & JANITORIAL.CLEANING MATERIALS
30/06/2022,2427830,16.86,1ST COVERALL COMPANY LIMITED,393273,Local Environmental Services,Environmental & Regulatory Services,105,Supplies and Services,504,"Clothing, Uniforms and Laundry",5025,Revenue,CLOTHING.PROTECTIVE
30/06/2022,2427830,16.86,1ST COVERALL COMPANY LIMITED,393273,Local Environmental Services,Environmental & Regulatory Services,105,Supplies and Services,504,"Clothing, Uniforms and Laundry",5025,Revenue,CLOTHING.PROTECTIVE
30/06/2022,2427830,42.84,1ST COVERALL COMPANY LIMITED,393273,Local Environmental Services,Environmental & Regulatory Services,105,Supplies and Services,504,"Clothing, Uniforms and Laundry",5025,Revenue,CLOTHING.PROTECTIVE
30/06/2022,2427830,45.00,1ST COVERALL COMPANY LIMITED,393273,Local Environmental Services,Environmental & Regulatory Services,105,Supplies and Services,504,"Clothing, Uniforms and Laundry",5025,Revenue,CLOTHING.PROTECTIVE
30/06/2022,2427830,67.44,1ST COVERALL COMPANY LIMITED,393273,Local Environmental Services,Environmental & Regulatory Services,105,Supplies and Services,504,"Clothing, Uniforms and Laundry",5025,Revenue,CLOTHING.PROTECTIVE
30/06/2022,2427830,84.30,1ST COVERALL COMPANY LIMITED,393273,Local Environmental Services,Environmental & Regulatory Services,105,Supplies and Services,504,"Clothing, Uniforms and Laundry",5025,Revenue,CLOTHING.PROTECTIVE
30/06/2022,2427830,90.00,1ST COVERALL COMPANY LIMITED,393273,Local Environmental Services,Environmental & Regulatory Services,105,Supplies and Services,504,"Clothing, Uniforms and Laundry",5025,Revenue,CLOTHING.PROTECTIVE
30/06/2022,2427830,101.16,1ST COVERALL COMPANY LIMITED,393273,Local Environmental Services,Environmental & Regulatory Services,105,Supplies and Services,504,"Clothing, Uniforms and Laundry",5025,Revenue,CLOTHING.PROTECTIVE
30/06/2022,2427830,101.16,1ST COVERALL COMPANY LIMITED,393273,Local Environmental Services,Environmental & Regulatory Services,105,Supplies and Services,504,"Clothing, Uniforms and Laundry",5025,Revenue,CLOTHING.PROTECTIVE
30/06/2022,2427830,118.02,1ST COVERALL COMPANY LIMITED,393273,Local Environmental Services,Environmental & Regulatory Services,105,Supplies and Services,504,"Clothing, Uniforms and Laundry",5025,Revenue,CLOTHING.PROTECTIVE
30/06/2022,2427830,149.94,1ST COVERALL COMPANY LIMITED,393273,Local Environmental Services,Environmental & Regulatory Services,105,Supplies and Services,504,"Clothing, Uniforms and Laundry",5025,Revenue,CLOTHING.PROTECTIVE
30/06/2022,2427830,257.04,1ST COVERALL COMPANY LIMITED,393273,Local Environmental Services,Environmental & Regulatory Services,105,Supplies and Services,504,"Clothing, Uniforms and Laundry",5025,Revenue,CLOTHING.PROTECTIVE
30/06/2022,2427830,278.46,1ST COVERALL COMPANY LIMITED,393273,Local Environmental Services,Environmental & Regulatory Services,105,Supplies and Services,504,"Clothing, Uniforms and Laundry",5025,Revenue,CLOTHING.PROTECTIVE
30/06/2022,2427830,315.00,1ST COVERALL COMPANY LIMITED,393273,Local Environmental Services,Environmental & Regulatory Services,105,Supplies and Services,504,"Clothing, Uniforms and Laundry",5025,Revenue,CLOTHING.PROTECTIVE
30/06/2022,2427830,315.00,1ST COVERALL COMPANY LIMITED,393273,Local Environmental Services,Environmental & Regulatory Services,105,Supplies and Services,504,"Clothing, Uniforms and Laundry",5025,Revenue,CLOTHING.PROTECTIVE
30/06/2022,2427830,405.00,1ST COVERALL COMPANY LIMITED,393273,Local Environmental Services,Environmental & Regulatory Services,105,Supplies and Services,504,"Clothing, Uniforms and Laundry",5025,Revenue,CLOTHING.PROTECTIVE
30/06/2022,2427830,405.00,1ST COVERALL COMPANY LIMITED,393273,Local Environmental Services,Environmental & Regulatory Services,105,Supplies and Services,504,"Clothing, Uniforms and Laundry",5025,Revenue,CLOTHING.PROTECTIVE
30/06/2022,2427830,599.76,1ST COVERALL COMPANY LIMITED,393273,Local Environmental Services,Environmental & Regulatory Services,105,Supplies and Services,504,"Clothing, Uniforms and Laundry",5025,Revenue,CLOTHING.PROTECTIVE
30/06/2022,2427830,765.00,1ST COVERALL COMPANY LIMITED,393273,Local Environmental Services,Environmental & Regulatory Services,105,Supplies and Services,504,"Clothing, Uniforms and Laundry",5025,Revenue,CLOTHING.PROTECTIVE
30/06/2022,2427830,765.00,1ST COVERALL COMPANY LIMITED,393273,Local Environmental Services,Environmental & Regulatory Services,105,Supplies and Services,504,"Clothing, Uniforms and Laundry",5025,Revenue,CLOTHING.PROTECTIVE
15/06/2022,2419124,-8000.00,SHERWOODS MOTOR GROUP,401232,Local Environmental Services,Highways & Transport Services,107,Supplies and Services,504,Equipment,5023,Revenue,VEHICLE MANAGEMENT.FLEET MANAGEMENT
15/06/2022,2419124,-8000.00,SHERWOODS MOTOR GROUP,401232,Local Environmental Services,Highways & Transport Services,107,Supplies and Services,504,Equipment,5023,Revenue,VEHICLE MANAGEMENT.FLEET MANAGEMENT
15/06/2022,2419124,20000.00,SHERWOODS MOTOR GROUP,401232,Local Environmental Services,Highways & Transport Services,107,Supplies and Services,504,Equipment,5023,Revenue,VEHICLE MANAGEMENT.FLEET MANAGEMENT
15/06/2022,2419124,20000.00,SHERWOODS MOTOR GROUP,401232,Local Environmental Services,Highways & Transport Services,107,Supplies and Services,504,Equipment,5023,Revenue,VEHICLE MANAGEMENT.FLEET MANAGEMENT
13/06/2022,2415518,465.00,PHYSIOTHERAPY MATTERS LTD,385305,Waste Management,Environmental & Regulatory Services,105,Supplies and Services,504,"Printing, Stationery and General Office Expenses",5026,Revenue,HUMAN RESOURCES.PROFESSIONAL & ADVISORY SERVICES
27/06/2022,2426243,236.00,BLUE LINE TAXIS,002700,Public Health,Environmental & Regulatory Services,105,Supplies and Services,504,Miscellaneous Expenses,5034,Revenue,PUBLIC TRANSPORT.TAXI SERVICES
15/06/2022,2419168,450.00,BALFOUR BEATTY WORKPLACE LIMITED,389026,Public Health,Environmental & Regulatory Services,105,Supplies and Services,504,Communications & Computing,5028,Revenue,HUMAN RESOURCES.PROFESSIONAL & ADVISORY SERVICES
15/06/2022,2419168,1041.07,BALFOUR BEATTY WORKPLACE LIMITED,389026,Public Health,Environmental & Regulatory Services,105,Supplies and Services,504,Communications & Computing,5028,Revenue,HUMAN RESOURCES.PROFESSIONAL & ADVISORY SERVICES
21/06/2022,51057,400.00,TT2 LTD,377653,Public Health,Environmental & Regulatory Services,105,Supplies and Services,504,Expenses,5030,Revenue,NON INFLUENCIBLE.NON INFLUENCIBLE
22/06/2022,2424634,1250.00,EVILLE AND JONES (COMMERCIAL SERVICES) LTD,402156,Public Health,Environmental & Regulatory Services,105,Third Party Payments,505,Private Contractors,5042,Revenue,ENVIRONMENTAL SERVICES.ANIMAL SERVICES
29/06/2022,2427319,5344.89,SITA UK LIMITED,359430,Waste Management,Environmental & Regulatory Services,105,Third Party Payments,505,Private Contractors,5042,Revenue,WASTE.RECYCLING
29/06/2022,2427319,13438.50,SITA UK LIMITED,359430,Waste Management,Environmental & Regulatory Services,105,Third Party Payments,505,Private Contractors,5042,Revenue,WASTE.RECYCLING
29/06/2022,2427319,24567.26,SITA UK LIMITED,359430,Waste Management,Environmental & Regulatory Services,105,Third Party Payments,505,Private Contractors,5042,Revenue,WASTE.RECYCLING
29/06/2022,2427319,38273.21,SITA UK LIMITED,359430,Waste Management,Environmental & Regulatory Services,105,Third Party Payments,505,Private Contractors,5042,Revenue,WASTE.RECYCLING
29/06/2022,2427319,159105.06,SITA UK LIMITED,359430,Waste Management,Environmental & Regulatory Services,105,Third Party Payments,505,Private Contractors,5042,Revenue,WASTE.RECYCLING
29/06/2022,2427319,559209.45,SITA UK LIMITED,359430,Waste Management,Environmental & Regulatory Services,105,Third Party Payments,505,Private Contractors,5042,Revenue,WASTE.RECYCLING
30/06/2022,2427941,800.00,TOP NOTCH SERVICES UK LTD,383946,Regeneration & Economic Development,Environmental & Regulatory Services,105,Third Party Payments,505,Private Contractors,5042,Revenue,WASTE.WASTE DISPOSAL
30/06/2022,2427941,950.00,TOP NOTCH SERVICES UK LTD,383946,Regeneration & Economic Development,Environmental & Regulatory Services,105,Third Party Payments,505,Private Contractors,5042,Revenue,WASTE.WASTE DISPOSAL
23/06/2022,2424960,2532.13,DISTRICT SURVEYORS ASSOCIATION LTD,365945,Regeneration & Economic Development,Planning Services,110,Supplies and Services,504,Miscellaneous Expenses,5034,Revenue,HUMAN RESOURCES.TRAINING & CONFERENCES
15/06/2022,2419154,750.00,GW DEVELOPMENT SERVICES,398230,Regeneration & Economic Development,Housing Services,108,Supplies and Services,504,Miscellaneous Expenses,5034,Revenue,REPAIRS & MAINTENANCE.REPAIRS & MAINTENANCE
30/06/2022,2427927,1813.55,CAPITA SYMONDS LTD,376582,Regeneration & Economic Development,Housing Services,108,Third Party Payments,505,Private Contractors,5042,Revenue,REPAIRS & MAINTENANCE.REPAIRS & MAINTENANCE
13/06/2022,2415577,265.25,Redacted Personal Data,399661,General Fund Housing,Housing Services,108,Premises-Related Expenditure,502,Rents,5007,Revenue,NON INFLUENCIBLE.INDIVIDUAL
13/06/2022,2415577,265.25,Redacted Personal Data,399661,General Fund Housing,Housing Services,108,Premises-Related Expenditure,502,Rents,5007,Revenue,NON INFLUENCIBLE.INDIVIDUAL
13/06/2022,2415577,250.00,Redacted Personal Data,399661,General Fund Housing,Housing Services,108,Premises-Related Expenditure,502,Rents,5007,Revenue,NON INFLUENCIBLE.INDIVIDUAL
09/06/2022,2412632,500.00,BURNSIDE BUSINESS & ENTERPRISE COLLEGE,360610,"Health, Education, Care and Safeguarding",Children's & Education Services,103,Third Party Payments,505,Private Contractors,5042,Revenue,NON INFLUENCIBLE.NT SCHOOLS
29/06/2022,2427359,710.00,CITY & GUILDS,309746,"Health, Education, Care and Safeguarding",Children's & Education Services,103,Third Party Payments,505,Private Contractors,5042,Revenue,HUMAN RESOURCES.TRAINING & CONFERENCES
29/06/2022,2427359,710.00,CITY & GUILDS,309746,"Health, Education, Care and Safeguarding",Children's & Education Services,103,Third Party Payments,505,Private Contractors,5042,Revenue,HUMAN RESOURCES.TRAINING & CONFERENCES
06/06/2022,2405876,809.00,YMCA NORTH TYNESIDE,356069,"Health, Education, Care and Safeguarding",Children's & Education Services,103,Premises-Related Expenditure,502,Rents,5007,Revenue,SOCIAL CARE.CARE SERVICES
20/06/2022,2421425,11343.40,NORTHUMBERLAND COUNTY COUNCIL,319694,"Health, Education, Care and Safeguarding",Children's & Education Services,103,Supplies and Services,504,Miscellaneous Expenses,5034,Revenue,NON INFLUENCIBLE.PUBLIC SECTOR
28/06/2022,2426380,43346.25,HARBOUR SUPPORT SERVICES,384545,"Health, Education, Care and Safeguarding",Children's & Education Services,103,Third Party Payments,505,Private Contractors,5042,Revenue,SOCIAL CARE.CARE SERVICES
29/06/2022,2427341,74.25,CAPITA SYMONDS LTD,376582,Commissioning & Asset Management,Planning Services,110,Third Party Payments,505,Private Contractors,5042,Revenue,REPAIRS & MAINTENANCE.REPAIRS & MAINTENANCE
16/06/2022,2419315,225.00,NEWCASTLE GATESHEAD INITIATIVE,340754,Regeneration & Economic Development,Cultural & Related Services,104,Supplies and Services,504,Miscellaneous Expenses,5034,Revenue,ADVERTISING & MARKETING.EVENTS & PROMOTIONS
29/06/2022,2427427,2511.00,ROAR B2B,402950,Regeneration & Economic Development,Cultural & Related Services,104,Supplies and Services,504,Miscellaneous Expenses,5034,Revenue,ADVERTISING & MARKETING.EVENTS & PROMOTIONS
08/06/2022,2410293,452.69,GLOBAL EXPERIENCE SPECIALISTS (GES) LTD,396730,Regeneration & Economic Development,Planning Services,110,Supplies and Services,504,"Printing, Stationery and General Office Expenses",5026,Revenue,ADVERTISING & MARKETING.EVENTS & PROMOTIONS
14/06/2022,2417767,487.00,JL LIVE,403093,Regeneration & Economic Development,Planning Services,110,Supplies and Services,504,"Printing, Stationery and General Office Expenses",5026,Revenue,EDUCATIONAL SUPPLIES.AUDIO VISUAL
14/06/2022,2417788,657.48,BALFOUR BEATTY WORKPLACE LIMITED,389026,Regeneration & Economic Development,Planning Services,110,Supplies and Services,504,Miscellaneous Expenses,5034,Revenue,HUMAN RESOURCES.PROFESSIONAL & ADVISORY SERVICES
15/06/2022,2419111,27.44,Redacted Personal Data,337083,Regeneration & Economic Development,Planning Services,110,Supplies and Services,504,Expenses,5030,Revenue,HUMAN RESOURCES.TRAVEL & SUBSISTENCE
15/06/2022,2419111,730.16,Redacted Personal Data,337083,Regeneration & Economic Development,Planning Services,110,Supplies and Services,504,Expenses,5030,Revenue,HUMAN RESOURCES.TRAVEL & SUBSISTENCE
17/06/2022,2420194,547.50,BRYAN LATTY,387188,Regeneration & Economic Development,Planning Services,110,Supplies and Services,504,Miscellaneous Expenses,5034,Revenue,CONSULTANCY.CONSULTANCY
17/06/2022,2420194,547.50,BRYAN LATTY,387188,Regeneration & Economic Development,Planning Services,110,Supplies and Services,504,Miscellaneous Expenses,5034,Revenue,CONSULTANCY.CONSULTANCY
29/06/2022,2427341,123.75,CAPITA SYMONDS LTD,376582,Commissioning & Asset Management,Planning Services,110,Third Party Payments,505,Private Contractors,5042,Revenue,REPAIRS & MAINTENANCE.REPAIRS & MAINTENANCE
29/06/2022,2427341,123.75,CAPITA SYMONDS LTD,376582,Commissioning & Asset Management,Planning Services,110,Third Party Payments,505,Private Contractors,5042,Revenue,REPAIRS & MAINTENANCE.REPAIRS & MAINTENANCE
15/06/2022,2419126,580.99,BALFOUR BEATTY WORKPLACE LIMITED,389026,Regeneration & Economic Development,Planning Services,110,Supplies and Services,504,Communications & Computing,5028,Revenue,HUMAN RESOURCES.PROFESSIONAL & ADVISORY SERVICES
29/06/2022,2427341,49.50,CAPITA SYMONDS LTD,376582,Commissioning & Asset Management,Housing Services,108,Third Party Payments,505,Private Contractors,5042,Revenue,REPAIRS & MAINTENANCE.REPAIRS & MAINTENANCE
29/06/2022,2427341,74.25,CAPITA SYMONDS LTD,376582,Commissioning & Asset Management,Planning Services,110,Third Party Payments,505,Private Contractors,5042,Revenue,REPAIRS & MAINTENANCE.REPAIRS & MAINTENANCE
29/06/2022,2427341,49.50,CAPITA SYMONDS LTD,376582,Commissioning & Asset Management,Housing Services,108,Third Party Payments,505,Private Contractors,5042,Revenue,REPAIRS & MAINTENANCE.REPAIRS & MAINTENANCE
15/06/2022,2419082,499.00,HIGHLIGHTS PUBLIC RELATIONS LTD,398022,Regeneration & Economic Development,Planning Services,110,Supplies and Services,504,Miscellaneous Expenses,5034,Revenue,ADVERTISING & MARKETING.PUBLIC RELATIONS & IMAGE
28/06/2022,2427039,500.00,DW MEDIA,402944,Regeneration & Economic Development,Planning Services,110,Supplies and Services,504,Miscellaneous Expenses,5034,Revenue,PHOTOGRAPHY.PHOTOGRAPHY
15/06/2022,2419101,1375.00,TONI CLARK - COMMUNITY ENTERPRISE SUPPORT,395258,Regeneration & Economic Development,Planning Services,110,Supplies and Services,504,Miscellaneous Expenses,5034,Revenue,CONSULTANCY.BUSINESS
23/06/2022,2424922,4665.00,TEDCO LTD,329678,Regeneration & Economic Development,Planning Services,110,Supplies and Services,504,Miscellaneous Expenses,5034,Revenue,HUMAN RESOURCES.TRAINING & CONFERENCES
24/06/2022,2425093,1375.00,TONI CLARK - COMMUNITY ENTERPRISE SUPPORT,395258,Regeneration & Economic Development,Planning Services,110,Supplies and Services,504,Miscellaneous Expenses,5034,Revenue,CONSULTANCY.BUSINESS
27/06/2022,2426312,4715.00,TEDCO LTD,329678,Regeneration & Economic Development,Planning Services,110,Supplies and Services,504,Miscellaneous Expenses,5034,Revenue,HUMAN RESOURCES.TRAINING & CONFERENCES
14/06/2022,2417799,530.40,DICKINSON DEES,274544,Resources,Central Services,102,Third Party Payments,505,Private Contractors,5042,Revenue,LEGAL.LEGAL OPINION
29/06/2022,2427375,530.40,DICKINSON DEES,274544,Resources,Central Services,102,Third Party Payments,505,Private Contractors,5042,Revenue,LEGAL.LEGAL OPINION
07/06/2022,2410139,15758.05,ASPIRE TECHNOLOGY SOLUTIONS LTD,393810,Regeneration & Economic Development,Cultural & Related Services,104,Supplies and Services,504,Communications & Computing,5028,Revenue,ICT.MAINTENANCE & SUPPORT
10/06/2022,2414508,2699.00,FRANKS PORTLOCK CONSULTING LIMITED,376545,Regeneration & Economic Development,Cultural & Related Services,104,Third Party Payments,505,Private Contractors,5042,Revenue,REPAIRS & MAINTENANCE.REPAIRS & MAINTENANCE
20/06/2022,2421440,400.00,ASPIRE TECHNOLOGY SOLUTIONS LTD,393810,Regeneration & Economic Development,Cultural & Related Services,104,Supplies and Services,504,Communications & Computing,5028,Revenue,ICT.MAINTENANCE & SUPPORT
20/06/2022,2421440,1060.00,ASPIRE TECHNOLOGY SOLUTIONS LTD,393810,Regeneration & Economic Development,Cultural & Related Services,104,Supplies and Services,504,Communications & Computing,5028,Revenue,ICT.MAINTENANCE & SUPPORT
07/06/2022,2410178,4217.00,CAPITA SYMONDS LTD,376582,Regeneration & Economic Development,Planning Services,110,Third Party Payments,505,Private Contractors,5042,Revenue,REPAIRS & MAINTENANCE.REPAIRS & MAINTENANCE
21/06/2022,2423692,11869.00,CAPITA SYMONDS LTD,376582,Regeneration & Economic Development,Planning Services,110,Third Party Payments,505,Private Contractors,5042,Revenue,REPAIRS & MAINTENANCE.REPAIRS & MAINTENANCE
29/06/2022,2427395,480.00,LANDFORM SURVEYS LTD,333106,Regeneration & Economic Development,Planning Services,110,Third Party Payments,505,Private Contractors,5042,Revenue,REPAIRS & MAINTENANCE.SURVEYS
15/06/2022,2419126,580.99,BALFOUR BEATTY WORKPLACE LIMITED,389026,"Health, Education, Care and Safeguarding",Housing Services,108,Supplies and Services,504,Communications & Computing,5028,Revenue,HUMAN RESOURCES.PROFESSIONAL & ADVISORY SERVICES
24/06/2022,2425050,1998.00,MW SIGMA LTD T/A MAX HAVENING,403127,"Health, Education, Care and Safeguarding",Children's & Education Services,103,Supplies and Services,504,Miscellaneous Expenses,5034,Revenue,HUMAN RESOURCES.TRAINING & CONFERENCES
29/06/2022,2427363,10732.50,HALFORDS,347854,Regeneration & Economic Development,Unallocated,N/A,Supplies and Services,504,Equipment,5023,Revenue,FINANCIAL SERVICES.FINANCIAL SERVICES
14/06/2022,2417801,220.55,MULTIDATA BROADBAND,372719,General Fund Housing,Housing Services,108,Supplies and Services,504,Communications & Computing,5028,Revenue,TELECOMMUNICATIONS.COMMUNICATION LINES RENTAL
20/06/2022,2421403,15.00,NORPLAST LIMITED,316958,Public Health,Environmental & Regulatory Services,105,Supplies and Services,504,"Printing, Stationery and General Office Expenses",5026,Revenue,REPAIRS & MAINTENANCE.REPAIRS & MAINTENANCE
20/06/2022,2421403,563.90,NORPLAST LIMITED,316958,Public Health,Environmental & Regulatory Services,105,Supplies and Services,504,"Printing, Stationery and General Office Expenses",5026,Revenue,REPAIRS & MAINTENANCE.REPAIRS & MAINTENANCE
27/06/2022,2426298,265.00,Redacted Personal Data,357580,Public Health,Environmental & Regulatory Services,105,Income,509,Customer and Client Receipts,5064,Revenue,PUBLIC TRANSPORT.TAXI SERVICES
09/06/2022,2412635,1710.00,Redacted Personal Data,234365,Commissioning & Asset Management,Children's & Education Services,103,Transport,503,Recharges,5017,Revenue,PUBLIC TRANSPORT.TAXI SERVICES
09/06/2022,2412645,1140.00,NE EXECUTIVE LTD T/A NE TAXIS,397329,Commissioning & Asset Management,Children's & Education Services,103,Transport,503,Recharges,5017,Revenue,PUBLIC TRANSPORT.TAXI SERVICES
09/06/2022,2412645,3420.00,NE EXECUTIVE LTD T/A NE TAXIS,397329,Commissioning & Asset Management,Children's & Education Services,103,Transport,503,Recharges,5017,Revenue,PUBLIC TRANSPORT.TAXI SERVICES
09/06/2022,2412704,1330.00,HADRIAN MINI BUSES,361545,Commissioning & Asset Management,Children's & Education Services,103,Transport,503,Recharges,5017,Revenue,PUBLIC TRANSPORT.TAXI SERVICES
09/06/2022,2412704,1330.00,HADRIAN MINI BUSES,361545,Commissioning & Asset Management,Children's & Education Services,103,Transport,503,Recharges,5017,Revenue,PUBLIC TRANSPORT.TAXI SERVICES
13/06/2022,2415516,1026.00,Redacted Personal Data,381169,Commissioning & Asset Management,Children's & Education Services,103,Transport,503,Recharges,5017,Revenue,PUBLIC TRANSPORT.TAXI SERVICES
13/06/2022,2415516,1140.00,Redacted Personal Data,381169,Commissioning & Asset Management,Children's & Education Services,103,Transport,503,Recharges,5017,Revenue,PUBLIC TRANSPORT.TAXI SERVICES
09/06/2022,2412638,0.00,ALBION PRIVATE HIRE,363494,Commissioning & Asset Management,Children's & Education Services,103,Transport,503,Recharges,5017,Revenue,PUBLIC TRANSPORT.TAXI SERVICES
09/06/2022,2412638,0.00,ALBION PRIVATE HIRE,363494,Commissioning & Asset Management,Children's & Education Services,103,Transport,503,Recharges,5017,Revenue,PUBLIC TRANSPORT.TAXI SERVICES
09/06/2022,2412638,1140.00,ALBION PRIVATE HIRE,363494,Commissioning & Asset Management,Children's & Education Services,103,Transport,503,Recharges,5017,Revenue,PUBLIC TRANSPORT.TAXI SERVICES
09/06/2022,2412638,1197.00,ALBION PRIVATE HIRE,363494,Commissioning & Asset Management,Children's & Education Services,103,Transport,503,Recharges,5017,Revenue,PUBLIC TRANSPORT.TAXI SERVICES
09/06/2022,2412638,1311.00,ALBION PRIVATE HIRE,363494,Commissioning & Asset Management,Children's & Education Services,103,Transport,503,Recharges,5017,Revenue,PUBLIC TRANSPORT.TAXI SERVICES
09/06/2022,2412638,1314.00,ALBION PRIVATE HIRE,363494,Commissioning & Asset Management,Children's & Education Services,103,Transport,503,Recharges,5017,Revenue,PUBLIC TRANSPORT.TAXI SERVICES
09/06/2022,2412638,1387.00,ALBION PRIVATE HIRE,363494,Commissioning & Asset Management,Children's & Education Services,103,Transport,503,Recharges,5017,Revenue,PUBLIC TRANSPORT.TAXI SERVICES
09/06/2022,2412638,1463.00,ALBION PRIVATE HIRE,363494,Commissioning & Asset Management,Children's & Education Services,103,Transport,503,Recharges,5017,Revenue,PUBLIC TRANSPORT.TAXI SERVICES
09/06/2022,2412638,1653.00,ALBION PRIVATE HIRE,363494,Commissioning & Asset Management,Children's & Education Services,103,Transport,503,Recharges,5017,Revenue,PUBLIC TRANSPORT.TAXI SERVICES
09/06/2022,2412645,1260.00,NE EXECUTIVE LTD T/A NE TAXIS,397329,Commissioning & Asset Management,Children's & Education Services,103,Transport,503,Recharges,5017,Revenue,PUBLIC TRANSPORT.TAXI SERVICES
09/06/2022,2412645,1444.00,NE EXECUTIVE LTD T/A NE TAXIS,397329,Commissioning & Asset Management,Children's & Education Services,103,Transport,503,Recharges,5017,Revenue,PUBLIC TRANSPORT.TAXI SERVICES
09/06/2022,2412645,1710.00,NE EXECUTIVE LTD T/A NE TAXIS,397329,Commissioning & Asset Management,Children's & Education Services,103,Transport,503,Recharges,5017,Revenue,PUBLIC TRANSPORT.TAXI SERVICES
09/06/2022,2412638,1444.00,ALBION PRIVATE HIRE,363494,Commissioning & Asset Management,Children's & Education Services,103,Transport,503,Recharges,5017,Revenue,PUBLIC TRANSPORT.TAXI SERVICES
09/06/2022,2412638,1444.00,ALBION PRIVATE HIRE,363494,Commissioning & Asset Management,Children's & Education Services,103,Transport,503,Recharges,5017,Revenue,PUBLIC TRANSPORT.TAXI SERVICES
09/06/2022,2412638,1710.00,ALBION PRIVATE HIRE,363494,Commissioning & Asset Management,Children's & Education Services,103,Transport,503,Recharges,5017,Revenue,PUBLIC TRANSPORT.TAXI SERVICES
09/06/2022,2412639,1421.20,Redacted Personal Data,319175,Commissioning & Asset Management,Children's & Education Services,103,Transport,503,Recharges,5017,Revenue,PUBLIC TRANSPORT.TAXI SERVICES
09/06/2022,2412645,0.00,NE EXECUTIVE LTD T/A NE TAXIS,397329,Commissioning & Asset Management,Children's & Education Services,103,Transport,503,Recharges,5017,Revenue,PUBLIC TRANSPORT.TAXI SERVICES
09/06/2022,2412645,0.00,NE EXECUTIVE LTD T/A NE TAXIS,397329,Commissioning & Asset Management,Children's & Education Services,103,Transport,503,Recharges,5017,Revenue,PUBLIC TRANSPORT.TAXI SERVICES
09/06/2022,2412645,1152.00,NE EXECUTIVE LTD T/A NE TAXIS,397329,Commissioning & Asset Management,Children's & Education Services,103,Transport,503,Recharges,5017,Revenue,PUBLIC TRANSPORT.TAXI SERVICES
09/06/2022,2412645,1330.00,NE EXECUTIVE LTD T/A NE TAXIS,397329,Commissioning & Asset Management,Children's & Education Services,103,Transport,503,Recharges,5017,Revenue,PUBLIC TRANSPORT.TAXI SERVICES
09/06/2022,2412645,1404.00,NE EXECUTIVE LTD T/A NE TAXIS,397329,Commissioning & Asset Management,Children's & Education Services,103,Transport,503,Recharges,5017,Revenue,PUBLIC TRANSPORT.TAXI SERVICES
09/06/2022,2412645,1440.00,NE EXECUTIVE LTD T/A NE TAXIS,397329,Commissioning & Asset Management,Children's & Education Services,103,Transport,503,Recharges,5017,Revenue,PUBLIC TRANSPORT.TAXI SERVICES
09/06/2022,2412645,1444.00,NE EXECUTIVE LTD T/A NE TAXIS,397329,Commissioning & Asset Management,Children's & Education Services,103,Transport,503,Recharges,5017,Revenue,PUBLIC TRANSPORT.TAXI SERVICES
09/06/2022,2412645,1444.00,NE EXECUTIVE LTD T/A NE TAXIS,397329,Commissioning & Asset Management,Children's & Education Services,103,Transport,503,Recharges,5017,Revenue,PUBLIC TRANSPORT.TAXI SERVICES
09/06/2022,2412645,1520.00,NE EXECUTIVE LTD T/A NE TAXIS,397329,Commissioning & Asset Management,Children's & Education Services,103,Transport,503,Recharges,5017,Revenue,PUBLIC TRANSPORT.TAXI SERVICES
09/06/2022,2412645,1786.00,NE EXECUTIVE LTD T/A NE TAXIS,397329,Commissioning & Asset Management,Children's & Education Services,103,Transport,503,Recharges,5017,Revenue,PUBLIC TRANSPORT.TAXI SERVICES
09/06/2022,2412645,2166.00,NE EXECUTIVE LTD T/A NE TAXIS,397329,Commissioning & Asset Management,Children's & Education Services,103,Transport,503,Recharges,5017,Revenue,PUBLIC TRANSPORT.TAXI SERVICES
09/06/2022,2412652,2014.00,Redacted Personal Data,361061,Commissioning & Asset Management,Children's & Education Services,103,Transport,503,Recharges,5017,Revenue,PUBLIC TRANSPORT.TAXI SERVICES
09/06/2022,2412661,1936.00,Redacted Personal Data,390223,Commissioning & Asset Management,Children's & Education Services,103,Transport,503,Recharges,5017,Revenue,PUBLIC TRANSPORT.TAXI SERVICES
09/06/2022,2412663,1000.12,Redacted Personal Data,357580,Commissioning & Asset Management,Children's & Education Services,103,Transport,503,Recharges,5017,Revenue,PUBLIC TRANSPORT.TAXI SERVICES
09/06/2022,2412667,955.20,Redacted Personal Data,330707,Commissioning & Asset Management,Children's & Education Services,103,Transport,503,Recharges,5017,Revenue,PUBLIC TRANSPORT.TAXI SERVICES
09/06/2022,2412673,0.00,24 X 7 LTD,401814,Commissioning & Asset Management,Children's & Education Services,103,Transport,503,Recharges,5017,Revenue,PUBLIC TRANSPORT.TAXI SERVICES
09/06/2022,2412673,3287.52,24 X 7 LTD,401814,Commissioning & Asset Management,Children's & Education Services,103,Transport,503,Recharges,5017,Revenue,PUBLIC TRANSPORT.TAXI SERVICES
09/06/2022,2412682,1062.00,MARK HUNTER,347587,Commissioning & Asset Management,Children's & Education Services,103,Transport,503,Recharges,5017,Revenue,PUBLIC TRANSPORT.TAXI SERVICES
09/06/2022,2412682,1121.00,MARK HUNTER,347587,Commissioning & Asset Management,Children's & Education Services,103,Transport,503,Recharges,5017,Revenue,PUBLIC TRANSPORT.TAXI SERVICES
09/06/2022,2412682,1744.20,MARK HUNTER,347587,Commissioning & Asset Management,Children's & Education Services,103,Transport,503,Recharges,5017,Revenue,PUBLIC TRANSPORT.TAXI SERVICES
09/06/2022,2412682,1800.00,MARK HUNTER,347587,Commissioning & Asset Management,Children's & Education Services,103,Transport,503,Recharges,5017,Revenue,PUBLIC TRANSPORT.TAXI SERVICES
09/06/2022,2412682,1881.00,MARK HUNTER,347587,Commissioning & Asset Management,Children's & Education Services,103,Transport,503,Recharges,5017,Revenue,PUBLIC TRANSPORT.TAXI SERVICES
09/06/2022,2412682,2090.00,MARK HUNTER,347587,Commissioning & Asset Management,Children's & Education Services,103,Transport,503,Recharges,5017,Revenue,PUBLIC TRANSPORT.TAXI SERVICES
09/06/2022,2412683,1368.00,MEKLEC CARS,400445,Commissioning & Asset Management,Children's & Education Services,103,Transport,503,Recharges,5017,Revenue,PUBLIC TRANSPORT.TAXI SERVICES
09/06/2022,2412688,0.00,MICHAEL J MCALLISTER TAXIS,398960,Commissioning & Asset Management,Children's & Education Services,103,Transport,503,Recharges,5017,Revenue,PUBLIC TRANSPORT.TAXI SERVICES
09/06/2022,2412688,1326.20,MICHAEL J MCALLISTER TAXIS,398960,Commissioning & Asset Management,Children's & Education Services,103,Transport,503,Recharges,5017,Revenue,PUBLIC TRANSPORT.TAXI SERVICES
09/06/2022,2412702,0.00,Redacted Personal Data,370827,Commissioning & Asset Management,Children's & Education Services,103,Transport,503,Recharges,5017,Revenue,PUBLIC TRANSPORT.TAXI SERVICES
09/06/2022,2412702,0.00,Redacted Personal Data,370827,Commissioning & Asset Management,Children's & Education Services,103,Transport,503,Recharges,5017,Revenue,PUBLIC TRANSPORT.TAXI SERVICES
09/06/2022,2412702,529.20,Redacted Personal Data,370827,Commissioning & Asset Management,Children's & Education Services,103,Transport,503,Recharges,5017,Revenue,PUBLIC TRANSPORT.TAXI SERVICES
09/06/2022,2412702,1520.00,Redacted Personal Data,370827,Commissioning & Asset Management,Children's & Education Services,103,Transport,503,Recharges,5017,Revenue,PUBLIC TRANSPORT.TAXI SERVICES
09/06/2022,2412704,0.00,HADRIAN MINI BUSES,361545,Commissioning & Asset Management,Children's & Education Services,103,Transport,503,Recharges,5017,Revenue,PUBLIC TRANSPORT.TAXI SERVICES
09/06/2022,2412704,0.00,HADRIAN MINI BUSES,361545,Commissioning & Asset Management,Children's & Education Services,103,Transport,503,Recharges,5017,Revenue,PUBLIC TRANSPORT.TAXI SERVICES
09/06/2022,2412704,0.00,HADRIAN MINI BUSES,361545,Commissioning & Asset Management,Children's & Education Services,103,Transport,503,Recharges,5017,Revenue,PUBLIC TRANSPORT.TAXI SERVICES
09/06/2022,2412704,1520.00,HADRIAN MINI BUSES,361545,Commissioning & Asset Management,Children's & Education Services,103,Transport,503,Recharges,5017,Revenue,PUBLIC TRANSPORT.TAXI SERVICES
09/06/2022,2412704,1710.00,HADRIAN MINI BUSES,361545,Commissioning & Asset Management,Children's & Education Services,103,Transport,503,Recharges,5017,Revenue,PUBLIC TRANSPORT.TAXI SERVICES
09/06/2022,2412704,1710.00,HADRIAN MINI BUSES,361545,Commissioning & Asset Management,Children's & Education Services,103,Transport,503,Recharges,5017,Revenue,PUBLIC TRANSPORT.TAXI SERVICES
09/06/2022,2412704,1710.00,HADRIAN MINI BUSES,361545,Commissioning & Asset Management,Children's & Education Services,103,Transport,503,Recharges,5017,Revenue,PUBLIC TRANSPORT.TAXI SERVICES
09/06/2022,2412704,1710.00,HADRIAN MINI BUSES,361545,Commissioning & Asset Management,Children's & Education Services,103,Transport,503,Recharges,5017,Revenue,PUBLIC TRANSPORT.TAXI SERVICES
09/06/2022,2412704,1710.00,HADRIAN MINI BUSES,361545,Commissioning & Asset Management,Children's & Education Services,103,Transport,503,Recharges,5017,Revenue,PUBLIC TRANSPORT.TAXI SERVICES
09/06/2022,2412704,1710.00,HADRIAN MINI BUSES,361545,Commissioning & Asset Management,Children's & Education Services,103,Transport,503,Recharges,5017,Revenue,PUBLIC TRANSPORT.TAXI SERVICES
09/06/2022,2412704,1710.00,HADRIAN MINI BUSES,361545,Commissioning & Asset Management,Children's & Education Services,103,Transport,503,Recharges,5017,Revenue,PUBLIC TRANSPORT.TAXI SERVICES
09/06/2022,2412704,1710.00,HADRIAN MINI BUSES,361545,Commissioning & Asset Management,Children's & Education Services,103,Transport,503,Recharges,5017,Revenue,PUBLIC TRANSPORT.TAXI SERVICES
09/06/2022,2412704,1710.00,HADRIAN MINI BUSES,361545,Commissioning & Asset Management,Children's & Education Services,103,Transport,503,Recharges,5017,Revenue,PUBLIC TRANSPORT.TAXI SERVICES
09/06/2022,2412704,1900.00,HADRIAN MINI BUSES,361545,Commissioning & Asset Management,Children's & Education Services,103,Transport,503,Recharges,5017,Revenue,PUBLIC TRANSPORT.TAXI SERVICES
09/06/2022,2412704,2280.00,HADRIAN MINI BUSES,361545,Commissioning & Asset Management,Children's & Education Services,103,Transport,503,Recharges,5017,Revenue,PUBLIC TRANSPORT.TAXI SERVICES
09/06/2022,2412705,50.00,Redacted Personal Data,333622,Commissioning & Asset Management,Children's & Education Services,103,Transport,503,Recharges,5017,Revenue,PUBLIC TRANSPORT.TAXI SERVICES
09/06/2022,2412705,2216.00,Redacted Personal Data,333622,Commissioning & Asset Management,Children's & Education Services,103,Transport,503,Recharges,5017,Revenue,PUBLIC TRANSPORT.TAXI SERVICES
09/06/2022,2412707,1292.00,Redacted Personal Data,363850,Commissioning & Asset Management,Children's & Education Services,103,Transport,503,Recharges,5017,Revenue,PUBLIC TRANSPORT.TAXI SERVICES
13/06/2022,2415514,1482.00,STEVE JOHNSTON TAXI SERVICE,394914,Commissioning & Asset Management,Children's & Education Services,103,Transport,503,Recharges,5017,Revenue,PUBLIC TRANSPORT.TAXI SERVICES
13/06/2022,2415516,950.00,Redacted Personal Data,381169,Commissioning & Asset Management,Children's & Education Services,103,Transport,503,Recharges,5017,Revenue,PUBLIC TRANSPORT.TAXI SERVICES
13/06/2022,2415516,950.00,Redacted Personal Data,381169,Commissioning & Asset Management,Children's & Education Services,103,Transport,503,Recharges,5017,Revenue,PUBLIC TRANSPORT.TAXI SERVICES
13/06/2022,2415516,1140.00,Redacted Personal Data,381169,Commissioning & Asset Management,Children's & Education Services,103,Transport,503,Recharges,5017,Revenue,PUBLIC TRANSPORT.TAXI SERVICES
13/06/2022,2415516,1440.00,Redacted Personal Data,381169,Commissioning & Asset Management,Children's & Education Services,103,Transport,503,Recharges,5017,Revenue,PUBLIC TRANSPORT.TAXI SERVICES
15/06/2022,2419176,2052.00,READYPAY LTD T/A PHOENIX TAXIS,306608,Commissioning & Asset Management,Children's & Education Services,103,Transport,503,Recharges,5017,Revenue,PUBLIC TRANSPORT.TAXI SERVICES
15/06/2022,2419176,2088.00,READYPAY LTD T/A PHOENIX TAXIS,306608,Commissioning & Asset Management,Children's & Education Services,103,Transport,503,Recharges,5017,Revenue,PUBLIC TRANSPORT.TAXI SERVICES
17/06/2022,2420192,6650.00,NORTH EAST AUTISM SOCIETY,329004,Commissioning & Asset Management,Children's & Education Services,103,Transport,503,Recharges,5017,Revenue,SOCIAL CARE.CARE SERVICES
17/06/2022,2420234,723.20,KEDLESTON (WINGS EDUCATION) LIMITED,400482,Commissioning & Asset Management,Children's & Education Services,103,Transport,503,Recharges,5017,Revenue,EDUCATIONAL SUPPLIES.EDUCATIONAL PLACEMENTS
20/06/2022,2421481,371.80,GENERAL BACS PAYMENTS - BSS ONLY,381148,Commissioning & Asset Management,Children's & Education Services,103,Transport,503,Recharges,5017,Revenue,NON INFLUENCIBLE.NON INFLUENCIBLE
20/06/2022,2421482,1834.25,GENERAL BACS PAYMENTS - BSS ONLY,381148,Commissioning & Asset Management,Children's & Education Services,103,Transport,503,Recharges,5017,Revenue,NON INFLUENCIBLE.NON INFLUENCIBLE
21/06/2022,2423763,427.05,GENERAL BACS PAYMENTS - BSS ONLY,381148,Commissioning & Asset Management,Children's & Education Services,103,Transport,503,Recharges,5017,Revenue,NON INFLUENCIBLE.NON INFLUENCIBLE
27/06/2022,2426311,1806.00,KEDLESTON (WINGS EDUCATION) LIMITED,400482,Commissioning & Asset Management,Children's & Education Services,103,Transport,503,Recharges,5017,Revenue,EDUCATIONAL SUPPLIES.EDUCATIONAL PLACEMENTS
09/06/2022,2412645,950.00,NE EXECUTIVE LTD T/A NE TAXIS,397329,Commissioning & Asset Management,Children's & Education Services,103,Transport,503,Recharges,5017,Revenue,PUBLIC TRANSPORT.TAXI SERVICES
09/06/2022,2412703,300.00,ELITE TAXIS,320730,Commissioning & Asset Management,Children's & Education Services,103,Transport,503,Recharges,5017,Revenue,PUBLIC TRANSPORT.TAXI SERVICES
13/06/2022,2415516,1290.00,Redacted Personal Data,381169,Commissioning & Asset Management,Children's & Education Services,103,Transport,503,Recharges,5017,Revenue,PUBLIC TRANSPORT.TAXI SERVICES
17/06/2022,2420238,9397.36,COBALT TELEPHONE TECHNOLOGIES LTD,386312,Regeneration & Economic Development,Highways & Transport Services,107,Third Party Payments,505,Private Contractors,5042,Revenue,TELECOMMUNICATIONS.COMMUNICATION LINES RENTAL
23/06/2022,2424930,5000.00,TRAFFIC ENFORCEMENT CENTRE,386258,Regeneration & Economic Development,Highways & Transport Services,107,Third Party Payments,505,Private Contractors,5042,Revenue,NON INFLUENCIBLE.PUBLIC SECTOR
07/06/2022,2410125,594.00,HIGHBRIDGE BUSINESS PARK LIMITED,372819,Regeneration & Economic Development,Holding A/C,N/A,Third Party Payments,505,Private Contractors,5042,Revenue,HUMAN RESOURCES.TRAVEL & SUBSISTENCE
01/06/2022,2405130,500.00,PREMIER TRANSPORT,310296,Fleet Management,Unallocated,N/A,Transport,503,Contract Hire and Operating Leases,5018,Revenue,PUBLIC TRANSPORT.TAXI SERVICES
07/06/2022,2410158,569.69,DENNIS EAGLE LTD,303955,Fleet Management,Unallocated,N/A,Transport,503,Direct Transport Costs,5016,Revenue,VEHICLE MANAGEMENT.PARTS
07/06/2022,2410170,499.30,MCCONECHYS TYRE SERVICES,399914,Fleet Management,Unallocated,N/A,Transport,503,Direct Transport Costs,5016,Revenue,VEHICLE MANAGEMENT.PARTS
08/06/2022,2410257,412.50,NAVMAN WIRELESS UK LIMITED,378101,Fleet Management,Unallocated,N/A,Supplies and Services,504,Equipment,5023,Revenue,VEHICLE MANAGEMENT.PARTS
08/06/2022,2410257,600.00,NAVMAN WIRELESS UK LIMITED,378101,Fleet Management,Unallocated,N/A,Supplies and Services,504,Equipment,5023,Revenue,VEHICLE MANAGEMENT.PARTS
08/06/2022,2410257,840.00,NAVMAN WIRELESS UK LIMITED,378101,Fleet Management,Unallocated,N/A,Supplies and Services,504,Equipment,5023,Revenue,VEHICLE MANAGEMENT.PARTS
08/06/2022,2410264,651.80,DVS COMPONENTS,004169,Fleet Management,Unallocated,N/A,Transport,503,Direct Transport Costs,5016,Revenue,VEHICLE MANAGEMENT.PARTS
08/06/2022,2410264,844.25,DVS COMPONENTS,004169,Fleet Management,Unallocated,N/A,Transport,503,Direct Transport Costs,5016,Revenue,VEHICLE MANAGEMENT.PARTS
08/06/2022,2410267,4861.19,HENRY COOPER,003603,Fleet Management,Unallocated,N/A,Transport,503,Direct Transport Costs,5016,Revenue,PUBLIC TRANSPORT.TAXI SERVICES
08/06/2022,2410268,20.00,RICKERBY LTD,018161,Fleet Management,Unallocated,N/A,Transport,503,Direct Transport Costs,5016,Revenue,VEHICLE MANAGEMENT.MAINTENANCE
08/06/2022,2410268,42.41,RICKERBY LTD,018161,Fleet Management,Unallocated,N/A,Transport,503,Direct Transport Costs,5016,Revenue,VEHICLE MANAGEMENT.MAINTENANCE
08/06/2022,2410268,378.40,RICKERBY LTD,018161,Fleet Management,Unallocated,N/A,Transport,503,Direct Transport Costs,5016,Revenue,VEHICLE MANAGEMENT.MAINTENANCE
08/06/2022,2410275,1150.00,FREIGHT TRANSPORT ASSOCIATION,006144,Fleet Management,Unallocated,N/A,Supplies and Services,504,Grants and Subscriptions,5031,Revenue,PUBLIC TRANSPORT.TAXI SERVICES
08/06/2022,2410302,300.00,OIL NRG LIMITED,393975,Fleet Management,Unallocated,N/A,Transport,503,Direct Transport Costs,5016,Revenue,VEHICLE MANAGEMENT.FUEL
08/06/2022,2410302,8880.00,OIL NRG LIMITED,393975,Fleet Management,Unallocated,N/A,Transport,503,Direct Transport Costs,5016,Revenue,VEHICLE MANAGEMENT.FUEL
08/06/2022,2410302,14652.00,OIL NRG LIMITED,393975,Fleet Management,Unallocated,N/A,Transport,503,Direct Transport Costs,5016,Revenue,VEHICLE MANAGEMENT.FUEL
13/06/2022,2415516,1482.00,Redacted Personal Data,381169,Commissioning & Asset Management,Children's & Education Services,103,Transport,503,Recharges,5017,Revenue,PUBLIC TRANSPORT.TAXI SERVICES
13/06/2022,2415516,1482.00,Redacted Personal Data,381169,Commissioning & Asset Management,Children's & Education Services,103,Transport,503,Recharges,5017,Revenue,PUBLIC TRANSPORT.TAXI SERVICES
13/06/2022,2415516,1520.00,Redacted Personal Data,381169,Commissioning & Asset Management,Children's & Education Services,103,Transport,503,Recharges,5017,Revenue,PUBLIC TRANSPORT.TAXI SERVICES
13/06/2022,2415516,1520.00,Redacted Personal Data,381169,Commissioning & Asset Management,Children's & Education Services,103,Transport,503,Recharges,5017,Revenue,PUBLIC TRANSPORT.TAXI SERVICES
13/06/2022,2415516,1548.00,Redacted Personal Data,381169,Commissioning & Asset Management,Children's & Education Services,103,Transport,503,Recharges,5017,Revenue,PUBLIC TRANSPORT.TAXI SERVICES
13/06/2022,2415516,1596.00,Redacted Personal Data,381169,Commissioning & Asset Management,Children's & Education Services,103,Transport,503,Recharges,5017,Revenue,PUBLIC TRANSPORT.TAXI SERVICES
13/06/2022,2415516,1596.00,Redacted Personal Data,381169,Commissioning & Asset Management,Children's & Education Services,103,Transport,503,Recharges,5017,Revenue,PUBLIC TRANSPORT.TAXI SERVICES
13/06/2022,2415516,1620.00,Redacted Personal Data,381169,Commissioning & Asset Management,Children's & Education Services,103,Transport,503,Recharges,5017,Revenue,PUBLIC TRANSPORT.TAXI SERVICES
13/06/2022,2415516,1634.00,Redacted Personal Data,381169,Commissioning & Asset Management,Children's & Education Services,103,Transport,503,Recharges,5017,Revenue,PUBLIC TRANSPORT.TAXI SERVICES
13/06/2022,2415516,1634.00,Redacted Personal Data,381169,Commissioning & Asset Management,Children's & Education Services,103,Transport,503,Recharges,5017,Revenue,PUBLIC TRANSPORT.TAXI SERVICES
13/06/2022,2415516,1710.00,Redacted Personal Data,381169,Commissioning & Asset Management,Children's & Education Services,103,Transport,503,Recharges,5017,Revenue,PUBLIC TRANSPORT.TAXI SERVICES
13/06/2022,2415516,1710.00,Redacted Personal Data,381169,Commissioning & Asset Management,Children's & Education Services,103,Transport,503,Recharges,5017,Revenue,PUBLIC TRANSPORT.TAXI SERVICES
13/06/2022,2415516,1710.00,Redacted Personal Data,381169,Commissioning & Asset Management,Children's & Education Services,103,Transport,503,Recharges,5017,Revenue,PUBLIC TRANSPORT.TAXI SERVICES
13/06/2022,2415516,1748.00,Redacted Personal Data,381169,Commissioning & Asset Management,Children's & Education Services,103,Transport,503,Recharges,5017,Revenue,PUBLIC TRANSPORT.TAXI SERVICES
13/06/2022,2415516,1748.00,Redacted Personal Data,381169,Commissioning & Asset Management,Children's & Education Services,103,Transport,503,Recharges,5017,Revenue,PUBLIC TRANSPORT.TAXI SERVICES
13/06/2022,2415516,1748.00,Redacted Personal Data,381169,Commissioning & Asset Management,Children's & Education Services,103,Transport,503,Recharges,5017,Revenue,PUBLIC TRANSPORT.TAXI SERVICES
13/06/2022,2415516,1862.00,Redacted Personal Data,381169,Commissioning & Asset Management,Children's & Education Services,103,Transport,503,Recharges,5017,Revenue,PUBLIC TRANSPORT.TAXI SERVICES
13/06/2022,2415516,1862.00,Redacted Personal Data,381169,Commissioning & Asset Management,Children's & Education Services,103,Transport,503,Recharges,5017,Revenue,PUBLIC TRANSPORT.TAXI SERVICES
13/06/2022,2415516,1862.00,Redacted Personal Data,381169,Commissioning & Asset Management,Children's & Education Services,103,Transport,503,Recharges,5017,Revenue,PUBLIC TRANSPORT.TAXI SERVICES
13/06/2022,2415516,1862.00,Redacted Personal Data,381169,Commissioning & Asset Management,Children's & Education Services,103,Transport,503,Recharges,5017,Revenue,PUBLIC TRANSPORT.TAXI SERVICES
13/06/2022,2415516,1900.00,Redacted Personal Data,381169,Commissioning & Asset Management,Children's & Education Services,103,Transport,503,Recharges,5017,Revenue,PUBLIC TRANSPORT.TAXI SERVICES
13/06/2022,2415516,2850.00,Redacted Personal Data,381169,Commissioning & Asset Management,Children's & Education Services,103,Transport,503,Recharges,5017,Revenue,PUBLIC TRANSPORT.TAXI SERVICES
13/06/2022,2415523,0.00,PRIORY TAXIS,388929,Commissioning & Asset Management,Children's & Education Services,103,Transport,503,Recharges,5017,Revenue,PUBLIC TRANSPORT.TAXI SERVICES
13/06/2022,2415523,706.00,PRIORY TAXIS,388929,Commissioning & Asset Management,Children's & Education Services,103,Transport,503,Recharges,5017,Revenue,PUBLIC TRANSPORT.TAXI SERVICES
13/06/2022,2415523,950.00,PRIORY TAXIS,388929,Commissioning & Asset Management,Children's & Education Services,103,Transport,503,Recharges,5017,Revenue,PUBLIC TRANSPORT.TAXI SERVICES
13/06/2022,2415523,1080.00,PRIORY TAXIS,388929,Commissioning & Asset Management,Children's & Education Services,103,Transport,503,Recharges,5017,Revenue,PUBLIC TRANSPORT.TAXI SERVICES
13/06/2022,2415523,1188.00,PRIORY TAXIS,388929,Commissioning & Asset Management,Children's & Education Services,103,Transport,503,Recharges,5017,Revenue,PUBLIC TRANSPORT.TAXI SERVICES
13/06/2022,2415523,1224.00,PRIORY TAXIS,388929,Commissioning & Asset Management,Children's & Education Services,103,Transport,503,Recharges,5017,Revenue,PUBLIC TRANSPORT.TAXI SERVICES
13/06/2022,2415523,1260.00,PRIORY TAXIS,388929,Commissioning & Asset Management,Children's & Education Services,103,Transport,503,Recharges,5017,Revenue,PUBLIC TRANSPORT.TAXI SERVICES
13/06/2022,2415523,1330.00,PRIORY TAXIS,388929,Commissioning & Asset Management,Children's & Education Services,103,Transport,503,Recharges,5017,Revenue,PUBLIC TRANSPORT.TAXI SERVICES
13/06/2022,2415523,1330.00,PRIORY TAXIS,388929,Commissioning & Asset Management,Children's & Education Services,103,Transport,503,Recharges,5017,Revenue,PUBLIC TRANSPORT.TAXI SERVICES
13/06/2022,2415523,1440.00,PRIORY TAXIS,388929,Commissioning & Asset Management,Children's & Education Services,103,Transport,503,Recharges,5017,Revenue,PUBLIC TRANSPORT.TAXI SERVICES
13/06/2022,2415523,2516.00,PRIORY TAXIS,388929,Commissioning & Asset Management,Children's & Education Services,103,Transport,503,Recharges,5017,Revenue,PUBLIC TRANSPORT.TAXI SERVICES
15/06/2022,2419176,0.00,READYPAY LTD T/A PHOENIX TAXIS,306608,Commissioning & Asset Management,Children's & Education Services,103,Transport,503,Recharges,5017,Revenue,PUBLIC TRANSPORT.TAXI SERVICES
15/06/2022,2419176,0.00,READYPAY LTD T/A PHOENIX TAXIS,306608,Commissioning & Asset Management,Children's & Education Services,103,Transport,503,Recharges,5017,Revenue,PUBLIC TRANSPORT.TAXI SERVICES
15/06/2022,2419176,9.60,READYPAY LTD T/A PHOENIX TAXIS,306608,Commissioning & Asset Management,Children's & Education Services,103,Transport,503,Recharges,5017,Revenue,PUBLIC TRANSPORT.TAXI SERVICES
15/06/2022,2419176,57.60,READYPAY LTD T/A PHOENIX TAXIS,306608,Commissioning & Asset Management,Children's & Education Services,103,Transport,503,Recharges,5017,Revenue,PUBLIC TRANSPORT.TAXI SERVICES
15/06/2022,2419176,1764.00,READYPAY LTD T/A PHOENIX TAXIS,306608,Commissioning & Asset Management,Children's & Education Services,103,Transport,503,Recharges,5017,Revenue,PUBLIC TRANSPORT.TAXI SERVICES
15/06/2022,2419176,1836.00,READYPAY LTD T/A PHOENIX TAXIS,306608,Commissioning & Asset Management,Children's & Education Services,103,Transport,503,Recharges,5017,Revenue,PUBLIC TRANSPORT.TAXI SERVICES
15/06/2022,2419176,1862.00,READYPAY LTD T/A PHOENIX TAXIS,306608,Commissioning & Asset Management,Children's & Education Services,103,Transport,503,Recharges,5017,Revenue,PUBLIC TRANSPORT.TAXI SERVICES
15/06/2022,2419176,1862.00,READYPAY LTD T/A PHOENIX TAXIS,306608,Commissioning & Asset Management,Children's & Education Services,103,Transport,503,Recharges,5017,Revenue,PUBLIC TRANSPORT.TAXI SERVICES
15/06/2022,2419176,1862.00,READYPAY LTD T/A PHOENIX TAXIS,306608,Commissioning & Asset Management,Children's & Education Services,103,Transport,503,Recharges,5017,Revenue,PUBLIC TRANSPORT.TAXI SERVICES
15/06/2022,2419176,1944.00,READYPAY LTD T/A PHOENIX TAXIS,306608,Commissioning & Asset Management,Children's & Education Services,103,Transport,503,Recharges,5017,Revenue,PUBLIC TRANSPORT.TAXI SERVICES
15/06/2022,2419176,1944.00,READYPAY LTD T/A PHOENIX TAXIS,306608,Commissioning & Asset Management,Children's & Education Services,103,Transport,503,Recharges,5017,Revenue,PUBLIC TRANSPORT.TAXI SERVICES
15/06/2022,2419176,1960.00,READYPAY LTD T/A PHOENIX TAXIS,306608,Commissioning & Asset Management,Children's & Education Services,103,Transport,503,Recharges,5017,Revenue,PUBLIC TRANSPORT.TAXI SERVICES
22/06/2022,2424741,32.67,DIXONS OF WESTERHOPE,283028,Fleet Management,Unallocated,N/A,Supplies and Services,504,Equipment,5023,Revenue,VEHICLE MANAGEMENT.MAINTENANCE
22/06/2022,2424741,54.00,DIXONS OF WESTERHOPE,283028,Fleet Management,Unallocated,N/A,Supplies and Services,504,Equipment,5023,Revenue,VEHICLE MANAGEMENT.MAINTENANCE
22/06/2022,2424741,72.00,DIXONS OF WESTERHOPE,283028,Fleet Management,Unallocated,N/A,Supplies and Services,504,Equipment,5023,Revenue,VEHICLE MANAGEMENT.MAINTENANCE
22/06/2022,2424741,72.00,DIXONS OF WESTERHOPE,283028,Fleet Management,Unallocated,N/A,Supplies and Services,504,Equipment,5023,Revenue,VEHICLE MANAGEMENT.MAINTENANCE
23/06/2022,2424765,217.83,NORTH EAST TRUCK & VAN,014751,Fleet Management,Unallocated,N/A,Transport,503,Direct Transport Costs,5016,Revenue,VEHICLE MANAGEMENT.PARTS
23/06/2022,2424891,848.77,THOMAS SHERRIFF & CO LTD,399182,Fleet Management,Unallocated,N/A,Transport,503,Direct Transport Costs,5016,Revenue,VEHICLE MANAGEMENT.FLEET MANAGEMENT
23/06/2022,2424891,548.95,THOMAS SHERRIFF & CO LTD,399182,Fleet Management,Unallocated,N/A,Transport,503,Direct Transport Costs,5016,Revenue,VEHICLE MANAGEMENT.FLEET MANAGEMENT
23/06/2022,2424928,908.00,V L TEST SYSTEMS LTD,389992,Fleet Management,Unallocated,N/A,Supplies and Services,504,Equipment,5023,Revenue,VEHICLE MANAGEMENT.PARTS
23/06/2022,2424938,616.00,SIGNS & GRAPHICS LTD,018029,Fleet Management,Unallocated,N/A,Transport,503,Direct Transport Costs,5016,Revenue,BUILDING MATERIALS.SIGNAGE
23/06/2022,2424944,361.39,HYDRAQUIP NORTH EAST,380911,Fleet Management,Unallocated,N/A,Transport,503,Direct Transport Costs,5016,Revenue,VEHICLE MANAGEMENT.MAINTENANCE
24/06/2022,2425097,8880.00,OIL NRG LIMITED,393975,Fleet Management,Unallocated,N/A,Transport,503,Direct Transport Costs,5016,Revenue,VEHICLE MANAGEMENT.FUEL
24/06/2022,2425113,353.95,SCARAB SWEEPERS LTD,384856,Fleet Management,Unallocated,N/A,Transport,503,Direct Transport Costs,5016,Revenue,VEHICLE MANAGEMENT.FLEET MANAGEMENT
24/06/2022,2425114,1741.00,SAFETY KLEEN UK LTD,019055,Fleet Management,Unallocated,N/A,Supplies and Services,504,Equipment,5023,Revenue,ENVIRONMENTAL SERVICES.ENVIRONMENTAL MANAGEMENT
24/06/2022,2425116,273.00,SNAP ON UK HOLDINGS LTD,369089,Fleet Management,Unallocated,N/A,Supplies and Services,504,Equipment,5023,Revenue,VEHICLE MANAGEMENT.PARTS
24/06/2022,2425121,315.00,Redacted Personal Data,381531,Fleet Management,Unallocated,N/A,Transport,503,Direct Transport Costs,5016,Revenue,NON INFLUENCIBLE.EMPLOYEE EXPENSES
08/06/2022,2410302,29605.92,OIL NRG LIMITED,393975,Fleet Management,Unallocated,N/A,Transport,503,Direct Transport Costs,5016,Revenue,VEHICLE MANAGEMENT.FUEL
09/06/2022,2411419,534.00,NORTH EAST TRUCK & VAN,014751,Fleet Management,Unallocated,N/A,Transport,503,Direct Transport Costs,5016,Revenue,VEHICLE MANAGEMENT.PARTS
09/06/2022,2412656,600.50,BUS & TRUCK PARTS (NE) LTD,392837,Fleet Management,Unallocated,N/A,Transport,503,Direct Transport Costs,5016,Revenue,VEHICLE MANAGEMENT.PARTS
09/06/2022,2412701,589.89,G HARRISONS T/A GMA MOTORS,343303,Fleet Management,Unallocated,N/A,Transport,503,Direct Transport Costs,5016,Revenue,VEHICLE MANAGEMENT.PARTS
09/06/2022,2412701,608.85,G HARRISONS T/A GMA MOTORS,343303,Fleet Management,Unallocated,N/A,Transport,503,Direct Transport Costs,5016,Revenue,VEHICLE MANAGEMENT.PARTS
10/06/2022,2414465,214.66,MCCONECHYS TYRE SERVICES,399914,Fleet Management,Unallocated,N/A,Transport,503,Direct Transport Costs,5016,Revenue,VEHICLE MANAGEMENT.PARTS
13/06/2022,2415529,623.17,BURNT TREE GROUP LTD,348086,Fleet Management,Unallocated,N/A,Transport,503,Contract Hire and Operating Leases,5018,Revenue,VEHICLE MANAGEMENT.HIRE & LEASE
13/06/2022,2415529,623.17,BURNT TREE GROUP LTD,348086,Fleet Management,Unallocated,N/A,Transport,503,Contract Hire and Operating Leases,5018,Revenue,VEHICLE MANAGEMENT.HIRE & LEASE
13/06/2022,2415529,623.17,BURNT TREE GROUP LTD,348086,Fleet Management,Unallocated,N/A,Transport,503,Contract Hire and Operating Leases,5018,Revenue,VEHICLE MANAGEMENT.HIRE & LEASE
13/06/2022,2415529,623.17,BURNT TREE GROUP LTD,348086,Fleet Management,Unallocated,N/A,Transport,503,Contract Hire and Operating Leases,5018,Revenue,VEHICLE MANAGEMENT.HIRE & LEASE
13/06/2022,2415534,215.09,THOMPSON COMMERCIALS LTD,018571,Fleet Management,Unallocated,N/A,Transport,503,Direct Transport Costs,5016,Revenue,VEHICLE MANAGEMENT.MAINTENANCE
14/06/2022,2417812,979.42,G HARRISONS T/A GMA MOTORS,343303,Fleet Management,Unallocated,N/A,Transport,503,Direct Transport Costs,5016,Revenue,VEHICLE MANAGEMENT.PARTS
15/06/2022,2419159,12.50,TERBERG MATEC UK LTD,326651,Fleet Management,Unallocated,N/A,Transport,503,Direct Transport Costs,5016,Revenue,VEHICLE MANAGEMENT.PARTS
15/06/2022,2419159,79.00,TERBERG MATEC UK LTD,326651,Fleet Management,Unallocated,N/A,Transport,503,Direct Transport Costs,5016,Revenue,VEHICLE MANAGEMENT.PARTS
15/06/2022,2419159,381.42,TERBERG MATEC UK LTD,326651,Fleet Management,Unallocated,N/A,Transport,503,Direct Transport Costs,5016,Revenue,VEHICLE MANAGEMENT.PARTS
15/06/2022,2419185,349.04,BURNT TREE GROUP LTD,348086,Fleet Management,Unallocated,N/A,Transport,503,Direct Transport Costs,5016,Revenue,VEHICLE MANAGEMENT.HIRE & LEASE
15/06/2022,2419189,320.02,DVS COMPONENTS,004169,Fleet Management,Unallocated,N/A,Transport,503,Direct Transport Costs,5016,Revenue,VEHICLE MANAGEMENT.PARTS
15/06/2022,2419189,464.82,DVS COMPONENTS,004169,Fleet Management,Unallocated,N/A,Transport,503,Direct Transport Costs,5016,Revenue,VEHICLE MANAGEMENT.PARTS
15/06/2022,2419189,682.72,DVS COMPONENTS,004169,Fleet Management,Unallocated,N/A,Transport,503,Direct Transport Costs,5016,Revenue,VEHICLE MANAGEMENT.PARTS
16/06/2022,2419219,263.36,NORTH EAST TRUCK & VAN,014751,Fleet Management,Unallocated,N/A,Transport,503,Direct Transport Costs,5016,Revenue,VEHICLE MANAGEMENT.PARTS
16/06/2022,2419219,369.81,NORTH EAST TRUCK & VAN,014751,Fleet Management,Unallocated,N/A,Transport,503,Direct Transport Costs,5016,Revenue,VEHICLE MANAGEMENT.PARTS
16/06/2022,2419309,312.60,BUS & TRUCK PARTS (NE) LTD,392837,Fleet Management,Unallocated,N/A,Transport,503,Direct Transport Costs,5016,Revenue,VEHICLE MANAGEMENT.PARTS
16/06/2022,2419309,495.00,BUS & TRUCK PARTS (NE) LTD,392837,Fleet Management,Unallocated,N/A,Transport,503,Direct Transport Costs,5016,Revenue,VEHICLE MANAGEMENT.PARTS
16/06/2022,2419309,755.00,BUS & TRUCK PARTS (NE) LTD,392837,Fleet Management,Unallocated,N/A,Transport,503,Direct Transport Costs,5016,Revenue,VEHICLE MANAGEMENT.PARTS
16/06/2022,2419309,925.00,BUS & TRUCK PARTS (NE) LTD,392837,Fleet Management,Unallocated,N/A,Transport,503,Direct Transport Costs,5016,Revenue,VEHICLE MANAGEMENT.PARTS
16/06/2022,2419324,623.17,BURNT TREE GROUP LTD,348086,Fleet Management,Unallocated,N/A,Transport,503,Contract Hire and Operating Leases,5018,Revenue,VEHICLE MANAGEMENT.HIRE & LEASE
16/06/2022,2419324,623.17,BURNT TREE GROUP LTD,348086,Fleet Management,Unallocated,N/A,Transport,503,Contract Hire and Operating Leases,5018,Revenue,VEHICLE MANAGEMENT.HIRE & LEASE
16/06/2022,2419324,623.17,BURNT TREE GROUP LTD,348086,Fleet Management,Unallocated,N/A,Transport,503,Contract Hire and Operating Leases,5018,Revenue,VEHICLE MANAGEMENT.HIRE & LEASE
17/06/2022,2420201,623.17,BURNT TREE GROUP LTD,348086,Fleet Management,Unallocated,N/A,Transport,503,Contract Hire and Operating Leases,5018,Revenue,VEHICLE MANAGEMENT.HIRE & LEASE
17/06/2022,2420235,19542.38,BURNT TREE GROUP LTD,348086,Fleet Management,Unallocated,N/A,Transport,503,Contract Hire and Operating Leases,5018,Revenue,VEHICLE MANAGEMENT.HIRE & LEASE
20/06/2022,2421401,332.60,SCARAB SWEEPERS LTD,384856,Fleet Management,Unallocated,N/A,Transport,503,Direct Transport Costs,5016,Revenue,VEHICLE MANAGEMENT.FLEET MANAGEMENT
20/06/2022,2421401,487.46,SCARAB SWEEPERS LTD,384856,Fleet Management,Unallocated,N/A,Transport,503,Direct Transport Costs,5016,Revenue,VEHICLE MANAGEMENT.FLEET MANAGEMENT
20/06/2022,2421426,255.85,DENNIS EAGLE LTD,303955,Fleet Management,Unallocated,N/A,Transport,503,Direct Transport Costs,5016,Revenue,VEHICLE MANAGEMENT.PARTS
20/06/2022,2421509,386.50,MCCONECHYS TYRE SERVICES,399914,Fleet Management,Unallocated,N/A,Transport,503,Direct Transport Costs,5016,Revenue,VEHICLE MANAGEMENT.PARTS
21/06/2022,2423699,242.40,SHIREMOOR COMPRESSORS LIMITED,019781,Fleet Management,Unallocated,N/A,Supplies and Services,504,Equipment,5023,Revenue,BUILDING MATERIALS.GENERAL MATERIALS
21/06/2022,2423699,303.50,SHIREMOOR COMPRESSORS LIMITED,019781,Fleet Management,Unallocated,N/A,Supplies and Services,504,Equipment,5023,Revenue,BUILDING MATERIALS.GENERAL MATERIALS
21/06/2022,2423699,452.37,SHIREMOOR COMPRESSORS LIMITED,019781,Fleet Management,Unallocated,N/A,Supplies and Services,504,Equipment,5023,Revenue,BUILDING MATERIALS.GENERAL MATERIALS
22/06/2022,2424675,848.77,DENNIS EAGLE LTD,303955,Fleet Management,Unallocated,N/A,Transport,503,Direct Transport Costs,5016,Revenue,VEHICLE MANAGEMENT.PARTS
22/06/2022,2424675,241.19,DENNIS EAGLE LTD,303955,Fleet Management,Unallocated,N/A,Transport,503,Direct Transport Costs,5016,Revenue,VEHICLE MANAGEMENT.PARTS
22/06/2022,2424677,300.59,HYDRAQUIP NORTH EAST,380911,Fleet Management,Unallocated,N/A,Transport,503,Direct Transport Costs,5016,Revenue,VEHICLE MANAGEMENT.MAINTENANCE
22/06/2022,2424677,571.29,HYDRAQUIP NORTH EAST,380911,Fleet Management,Unallocated,N/A,Transport,503,Direct Transport Costs,5016,Revenue,VEHICLE MANAGEMENT.MAINTENANCE
22/06/2022,2424681,455.12,CARRS BILLINGTON AGRICULTURE,243075,Fleet Management,Unallocated,N/A,Transport,503,Direct Transport Costs,5016,Revenue,VEHICLE MANAGEMENT.PARTS
22/06/2022,2424681,488.60,CARRS BILLINGTON AGRICULTURE,243075,Fleet Management,Unallocated,N/A,Transport,503,Direct Transport Costs,5016,Revenue,VEHICLE MANAGEMENT.PARTS
22/06/2022,2424681,1271.75,CARRS BILLINGTON AGRICULTURE,243075,Fleet Management,Unallocated,N/A,Transport,503,Direct Transport Costs,5016,Revenue,VEHICLE MANAGEMENT.PARTS
22/06/2022,2424681,1833.21,CARRS BILLINGTON AGRICULTURE,243075,Fleet Management,Unallocated,N/A,Transport,503,Direct Transport Costs,5016,Revenue,VEHICLE MANAGEMENT.PARTS
22/06/2022,2424681,2350.73,CARRS BILLINGTON AGRICULTURE,243075,Fleet Management,Unallocated,N/A,Transport,503,Direct Transport Costs,5016,Revenue,VEHICLE MANAGEMENT.PARTS
22/06/2022,2424710,2500.00,KDL SITE WELDING SERVICE LTD,396414,Fleet Management,Unallocated,N/A,Transport,503,Direct Transport Costs,5016,Revenue,VEHICLE MANAGEMENT.MAINTENANCE
22/06/2022,2424714,26517.16,OIL NRG LIMITED,393975,Fleet Management,Unallocated,N/A,Transport,503,Direct Transport Costs,5016,Revenue,VEHICLE MANAGEMENT.FUEL
22/06/2022,2424730,252.15,BUS & TRUCK PARTS (NE) LTD,392837,Fleet Management,Unallocated,N/A,Transport,503,Direct Transport Costs,5016,Revenue,VEHICLE MANAGEMENT.PARTS
22/06/2022,2424730,282.00,BUS & TRUCK PARTS (NE) LTD,392837,Fleet Management,Unallocated,N/A,Transport,503,Direct Transport Costs,5016,Revenue,VEHICLE MANAGEMENT.PARTS
22/06/2022,2424730,369.25,BUS & TRUCK PARTS (NE) LTD,392837,Fleet Management,Unallocated,N/A,Transport,503,Direct Transport Costs,5016,Revenue,VEHICLE MANAGEMENT.PARTS
24/06/2022,2425122,1372.00,SIGNS & GRAPHICS LTD,018029,Fleet Management,Unallocated,N/A,Transport,503,Direct Transport Costs,5016,Revenue,BUILDING MATERIALS.SIGNAGE
24/06/2022,2425123,606.82,DVS COMPONENTS,004169,Fleet Management,Unallocated,N/A,Transport,503,Direct Transport Costs,5016,Revenue,VEHICLE MANAGEMENT.PARTS
24/06/2022,2425123,805.86,DVS COMPONENTS,004169,Fleet Management,Unallocated,N/A,Transport,503,Direct Transport Costs,5016,Revenue,VEHICLE MANAGEMENT.PARTS
24/06/2022,2425123,980.10,DVS COMPONENTS,004169,Fleet Management,Unallocated,N/A,Transport,503,Direct Transport Costs,5016,Revenue,VEHICLE MANAGEMENT.PARTS
24/06/2022,2425132,2127.49,DENNIS EAGLE LTD,303955,Fleet Management,Unallocated,N/A,Transport,503,Direct Transport Costs,5016,Revenue,VEHICLE MANAGEMENT.PARTS
24/06/2022,2425137,840.00,FREIGHT TRANSPORT ASSOCIATION,006144,Fleet Management,Unallocated,N/A,Supplies and Services,504,Grants and Subscriptions,5031,Revenue,PUBLIC TRANSPORT.TAXI SERVICES
27/06/2022,2426250,222.78,SAFETY KLEEN UK LTD,019055,Fleet Management,Unallocated,N/A,Supplies and Services,504,Equipment,5023,Revenue,ENVIRONMENTAL SERVICES.ENVIRONMENTAL MANAGEMENT
27/06/2022,2426256,528.00,SIGNS & GRAPHICS LTD,018029,Fleet Management,Unallocated,N/A,Transport,503,Direct Transport Costs,5016,Revenue,BUILDING MATERIALS.SIGNAGE
28/06/2022,2426952,2004.90,GB LUBRICANTS LTD,007322,Fleet Management,Unallocated,N/A,Supplies and Services,504,Equipment,5023,Revenue,VEHICLE MANAGEMENT.MAINTENANCE
28/06/2022,2426954,242.40,SHIREMOOR COMPRESSORS LIMITED,019781,Fleet Management,Unallocated,N/A,Supplies and Services,504,Equipment,5023,Revenue,BUILDING MATERIALS.GENERAL MATERIALS
28/06/2022,2426954,303.50,SHIREMOOR COMPRESSORS LIMITED,019781,Fleet Management,Unallocated,N/A,Supplies and Services,504,Equipment,5023,Revenue,BUILDING MATERIALS.GENERAL MATERIALS
28/06/2022,2426954,452.37,SHIREMOOR COMPRESSORS LIMITED,019781,Fleet Management,Unallocated,N/A,Supplies and Services,504,Equipment,5023,Revenue,BUILDING MATERIALS.GENERAL MATERIALS
29/06/2022,2427317,214.14,DENNIS EAGLE LTD,303955,Fleet Management,Unallocated,N/A,Transport,503,Direct Transport Costs,5016,Revenue,VEHICLE MANAGEMENT.PARTS
29/06/2022,2427324,390.00,BUS & TRUCK PARTS (NE) LTD,392837,Fleet Management,Unallocated,N/A,Transport,503,Direct Transport Costs,5016,Revenue,VEHICLE MANAGEMENT.PARTS
29/06/2022,2427324,440.00,BUS & TRUCK PARTS (NE) LTD,392837,Fleet Management,Unallocated,N/A,Transport,503,Direct Transport Costs,5016,Revenue,VEHICLE MANAGEMENT.PARTS
29/06/2022,2427350,421.44,SCARAB SWEEPERS LTD,384856,Fleet Management,Unallocated,N/A,Transport,503,Direct Transport Costs,5016,Revenue,VEHICLE MANAGEMENT.FLEET MANAGEMENT
29/06/2022,2427366,336.32,DVS COMPONENTS,004169,Fleet Management,Unallocated,N/A,Transport,503,Direct Transport Costs,5016,Revenue,VEHICLE MANAGEMENT.PARTS
29/06/2022,2427366,680.70,DVS COMPONENTS,004169,Fleet Management,Unallocated,N/A,Transport,503,Direct Transport Costs,5016,Revenue,VEHICLE MANAGEMENT.PARTS
29/06/2022,2427458,265.42,THOMAS SHERRIFF & CO LTD,399182,Fleet Management,Unallocated,N/A,Transport,503,Direct Transport Costs,5016,Revenue,VEHICLE MANAGEMENT.FLEET MANAGEMENT
29/06/2022,2427458,292.17,THOMAS SHERRIFF & CO LTD,399182,Fleet Management,Unallocated,N/A,Transport,503,Direct Transport Costs,5016,Revenue,VEHICLE MANAGEMENT.FLEET MANAGEMENT
29/06/2022,2427458,804.64,THOMAS SHERRIFF & CO LTD,399182,Fleet Management,Unallocated,N/A,Transport,503,Direct Transport Costs,5016,Revenue,VEHICLE MANAGEMENT.FLEET MANAGEMENT
30/06/2022,2427922,28997.10,OIL NRG LIMITED,393975,Fleet Management,Unallocated,N/A,Transport,503,Direct Transport Costs,5016,Revenue,VEHICLE MANAGEMENT.FUEL
13/06/2022,2415574,292.00,CBS OUTDOOR LIMITED,372133,Waste Management,Environmental & Regulatory Services,105,Supplies and Services,504,"Printing, Stationery and General Office Expenses",5026,Revenue,ADVERTISING & MARKETING.ADVERTISING
13/06/2022,2415574,400.00,CBS OUTDOOR LIMITED,372133,Waste Management,Environmental & Regulatory Services,105,Supplies and Services,504,"Printing, Stationery and General Office Expenses",5026,Revenue,ADVERTISING & MARKETING.ADVERTISING
13/06/2022,2415574,600.00,CBS OUTDOOR LIMITED,372133,Waste Management,Environmental & Regulatory Services,105,Supplies and Services,504,"Printing, Stationery and General Office Expenses",5026,Revenue,ADVERTISING & MARKETING.ADVERTISING
13/06/2022,2415574,600.00,CBS OUTDOOR LIMITED,372133,Waste Management,Environmental & Regulatory Services,105,Supplies and Services,504,"Printing, Stationery and General Office Expenses",5026,Revenue,ADVERTISING & MARKETING.ADVERTISING
08/06/2022,2410219,2870.25,COMMUNITY TRANSPORT,003017,Waste Management,Environmental & Regulatory Services,105,Third Party Payments,505,Private Contractors,5042,Revenue,SOCIAL CARE.CONSUMABLES
24/06/2022,2425122,420.00,SIGNS & GRAPHICS LTD,018029,Waste Management,Environmental & Regulatory Services,105,Supplies and Services,504,"Printing, Stationery and General Office Expenses",5026,Revenue,BUILDING MATERIALS.SIGNAGE
29/06/2022,2427365,1260.00,SIGNS & GRAPHICS LTD,018029,Waste Management,Environmental & Regulatory Services,105,Supplies and Services,504,"Printing, Stationery and General Office Expenses",5026,Revenue,BUILDING MATERIALS.SIGNAGE
21/06/2022,2423733,44065.48,J&B Recycling Ltd,398861,Waste Management,Environmental & Regulatory Services,105,Third Party Payments,505,Private Contractors,5042,Revenue,ENVIRONMENTAL SERVICES.ENVIRONMENTAL SERVICES
09/06/2022,2412664,232.69,TMP (UK) LTD,386724,Regeneration & Economic Development,Planning Services,110,Supplies and Services,504,"Printing, Stationery and General Office Expenses",5026,Revenue,ADVERTISING & MARKETING.ADVERTISING
09/06/2022,2412664,232.69,TMP (UK) LTD,386724,Regeneration & Economic Development,Planning Services,110,Supplies and Services,504,"Printing, Stationery and General Office Expenses",5026,Revenue,ADVERTISING & MARKETING.ADVERTISING
09/06/2022,2412664,232.70,TMP (UK) LTD,386724,Regeneration & Economic Development,Planning Services,110,Supplies and Services,504,"Printing, Stationery and General Office Expenses",5026,Revenue,ADVERTISING & MARKETING.ADVERTISING
29/06/2022,2427347,323.15,TMP (UK) LTD,386724,Regeneration & Economic Development,Planning Services,110,Supplies and Services,504,"Printing, Stationery and General Office Expenses",5026,Revenue,ADVERTISING & MARKETING.ADVERTISING
29/06/2022,2427347,323.15,TMP (UK) LTD,386724,Regeneration & Economic Development,Planning Services,110,Supplies and Services,504,"Printing, Stationery and General Office Expenses",5026,Revenue,ADVERTISING & MARKETING.ADVERTISING
10/06/2022,2414575,241553.42,JONES LANG LASALLE,388538,Commissioning & Asset Management,Unallocated,N/A,Premises-Related Expenditure,502,Rents,5007,Revenue,LEGAL.REAL ESTATE
10/06/2022,2414575,26232.10,JONES LANG LASALLE,388538,Commissioning & Asset Management,Unallocated,N/A,Premises-Related Expenditure,502,Rents,5007,Revenue,LEGAL.REAL ESTATE
16/06/2022,2419280,241553.42,JONES LANG LASALLE,388538,Commissioning & Asset Management,Unallocated,N/A,Premises-Related Expenditure,502,Rents,5007,Revenue,LEGAL.REAL ESTATE
29/06/2022,2427352,700.00,HOWARD COURT MANAGEMENT COMPANY LTD,327683,Commissioning & Asset Management,Planning Services,110,Third Party Payments,505,Private Contractors,5042,Revenue,REPAIRS & MAINTENANCE.REPAIRS & MAINTENANCE
01/06/2022,2405136,313.81,BRITISH GAS BUSINESS,361360,Commissioning & Asset Management,Central Services,102,Premises-Related Expenditure,502,Energy Costs,5006,Revenue,GAS.GAS
01/06/2022,2405136,495.62,BRITISH GAS BUSINESS,361360,Commissioning & Asset Management,Central Services,102,Premises-Related Expenditure,502,Energy Costs,5006,Revenue,GAS.GAS
01/06/2022,2405136,575.74,BRITISH GAS BUSINESS,361360,Commissioning & Asset Management,Central Services,102,Premises-Related Expenditure,502,Energy Costs,5006,Revenue,GAS.GAS
07/06/2022,2410135,9.95,TOTAL ID LTD,390074,Local Environmental Services,Environmental & Regulatory Services,105,Supplies and Services,504,Equipment,5023,Revenue,STATIONERY.STATIONERY
07/06/2022,2410135,100.00,TOTAL ID LTD,390074,Local Environmental Services,Environmental & Regulatory Services,105,Supplies and Services,504,Equipment,5023,Revenue,STATIONERY.STATIONERY
07/06/2022,2410135,293.75,TOTAL ID LTD,390074,Local Environmental Services,Environmental & Regulatory Services,105,Supplies and Services,504,Equipment,5023,Revenue,STATIONERY.STATIONERY
01/06/2022,2405076,323.00,BUNZL UK LTD T/A BUNZL CLEANING & HYGIENE SUPPLIES,027747,Commissioning & Asset Management,Unallocated,N/A,Premises-Related Expenditure,502,Cleaning and Domestic Supplies,5012,Revenue,CLEANING & JANITORIAL.CLEANING MATERIALS
09/06/2022,2411414,1.44,BUNZL UK LTD T/A BUNZL CLEANING & HYGIENE SUPPLIES,027747,Commissioning & Asset Management,Unallocated,N/A,Premises-Related Expenditure,502,Cleaning and Domestic Supplies,5012,Revenue,CLEANING & JANITORIAL.CLEANING MATERIALS
09/06/2022,2411414,1.60,BUNZL UK LTD T/A BUNZL CLEANING & HYGIENE SUPPLIES,027747,Commissioning & Asset Management,Unallocated,N/A,Premises-Related Expenditure,502,Cleaning and Domestic Supplies,5012,Revenue,CLEANING & JANITORIAL.CLEANING MATERIALS
09/06/2022,2411414,2.64,BUNZL UK LTD T/A BUNZL CLEANING & HYGIENE SUPPLIES,027747,Commissioning & Asset Management,Unallocated,N/A,Premises-Related Expenditure,502,Cleaning and Domestic Supplies,5012,Revenue,CLEANING & JANITORIAL.CLEANING MATERIALS
09/06/2022,2411414,3.96,BUNZL UK LTD T/A BUNZL CLEANING & HYGIENE SUPPLIES,027747,Commissioning & Asset Management,Unallocated,N/A,Premises-Related Expenditure,502,Cleaning and Domestic Supplies,5012,Revenue,CLEANING & JANITORIAL.CLEANING MATERIALS
09/06/2022,2411414,4.60,BUNZL UK LTD T/A BUNZL CLEANING & HYGIENE SUPPLIES,027747,Commissioning & Asset Management,Unallocated,N/A,Premises-Related Expenditure,502,Cleaning and Domestic Supplies,5012,Revenue,CLEANING & JANITORIAL.CLEANING MATERIALS
30/06/2022,2427827,136.70,BUNZL UK LTD T/A BUNZL CLEANING & HYGIENE SUPPLIES,027747,Commissioning & Asset Management,Unallocated,N/A,Premises-Related Expenditure,502,Cleaning and Domestic Supplies,5012,Revenue,CLEANING & JANITORIAL.CLEANING MATERIALS
30/06/2022,2427827,840.00,BUNZL UK LTD T/A BUNZL CLEANING & HYGIENE SUPPLIES,027747,Commissioning & Asset Management,Unallocated,N/A,Premises-Related Expenditure,502,Cleaning and Domestic Supplies,5012,Revenue,CLEANING & JANITORIAL.CLEANING MATERIALS
16/06/2022,2419305,125486.21,NWG BUSINESS LIMITED,394938,Commissioning & Asset Management,Holding A/C,N/A,Premises-Related Expenditure,502,Rates,5008,Revenue,WATER.WATER
27/06/2022,2426287,32386.66,NWG BUSINESS LIMITED,394938,Commissioning & Asset Management,Holding A/C,N/A,Premises-Related Expenditure,502,Rates,5008,Revenue,WATER.WATER
14/06/2022,2417836,580.99,BALFOUR BEATTY WORKPLACE LIMITED,389026,"Health, Education, Care and Safeguarding",Adult Social Care,101,Supplies and Services,504,Communications & Computing,5028,Revenue,HUMAN RESOURCES.PROFESSIONAL & ADVISORY SERVICES
08/06/2022,2410295,900.00,PLOWDEN FACILITIES,395995,"Health, Education, Care and Safeguarding",Adult Social Care,101,Supplies and Services,504,Expenses,5030,Revenue,LEGAL.GENERAL SUPPORT
21/06/2022,2423764,500.00,INKSPOT SCIENCE LIMITED,403009,"Health, Education, Care and Safeguarding",Adult Social Care,101,Third Party Payments,505,Private Contractors,5042,Revenue,CONSULTANCY.CONSULTANCY
21/06/2022,2423764,2000.00,INKSPOT SCIENCE LIMITED,403009,"Health, Education, Care and Safeguarding",Adult Social Care,101,Third Party Payments,505,Private Contractors,5042,Revenue,CONSULTANCY.CONSULTANCY
24/06/2022,2425105,875.00,ADCS LTD,371901,"Health, Education, Care and Safeguarding",Adult Social Care,101,Supplies and Services,504,Expenses,5030,Revenue,SUBSCRIPTIONS & PUBLICATIONS.MEMBERSHIPS
24/06/2022,2425115,1075.00,OCEAN MEDIA GROUP LTD,371817,Resources,Adult Social Care,101,Supplies and Services,504,Expenses,5030,Revenue,SUBSCRIPTIONS & PUBLICATIONS.MEMBERSHIPS
29/06/2022,2427312,7500.00,CAPITA BUSINESS SERVICES LTD,316395,Resources,Adult Social Care,101,Third Party Payments,505,Private Contractors,5042,Revenue,ICT.SOFTWARE
14/06/2022,2417836,2931.03,BALFOUR BEATTY WORKPLACE LIMITED,389026,"Health, Education, Care and Safeguarding",Adult Social Care,101,Supplies and Services,504,Communications & Computing,5028,Revenue,HUMAN RESOURCES.PROFESSIONAL & ADVISORY SERVICES
16/06/2022,2419307,1135.47,DE POEL MANAGED SERVICES LIMITED,391542,"Health, Education, Care and Safeguarding",Adult Social Care,101,Employees,501,Direct Employee Expenses,5001,Revenue,HUMAN RESOURCES.TEMPORARY & AGENCY STAFF
23/06/2022,2424924,908.38,DE POEL MANAGED SERVICES LIMITED,391542,"Health, Education, Care and Safeguarding",Adult Social Care,101,Employees,501,Direct Employee Expenses,5001,Revenue,HUMAN RESOURCES.TEMPORARY & AGENCY STAFF
29/06/2022,2427361,1334.06,NORTH TYNESIDE COUNCIL,102767,"Health, Education, Care and Safeguarding",Adult Social Care,101,Premises-Related Expenditure,502,Rents,5007,Revenue,NON INFLUENCIBLE.PUBLIC SECTOR
29/06/2022,2427361,1696.50,NORTH TYNESIDE COUNCIL,102767,"Health, Education, Care and Safeguarding",Adult Social Care,101,Premises-Related Expenditure,502,Rents,5007,Revenue,NON INFLUENCIBLE.PUBLIC SECTOR
30/06/2022,2427923,908.38,DE POEL MANAGED SERVICES LIMITED,391542,"Health, Education, Care and Safeguarding",Adult Social Care,101,Employees,501,Direct Employee Expenses,5001,Revenue,HUMAN RESOURCES.TEMPORARY & AGENCY STAFF
07/06/2022,2410167,-2.04,PREPAID FINANCIAL SERVICES LIMITED,395003,"Health, Education, Care and Safeguarding",Adult Social Care,101,Third Party Payments,505,Voluntary Associations,5040,Revenue,FINANCIAL SERVICES.FINANCIAL SERVICES
07/06/2022,2410167,1608.84,PREPAID FINANCIAL SERVICES LIMITED,395003,"Health, Education, Care and Safeguarding",Adult Social Care,101,Third Party Payments,505,Voluntary Associations,5040,Revenue,FINANCIAL SERVICES.FINANCIAL SERVICES
07/06/2022,2410167,5133.33,PREPAID FINANCIAL SERVICES LIMITED,395003,"Health, Education, Care and Safeguarding",Adult Social Care,101,Third Party Payments,505,Voluntary Associations,5040,Revenue,FINANCIAL SERVICES.FINANCIAL SERVICES
28/06/2022,2426376,50600.81,FIRST CONTACT CLINICAL,398228,"Health, Education, Care and Safeguarding",Adult Social Care,101,Third Party Payments,505,Voluntary Associations,5040,Revenue,SOCIAL CARE.ADULT SUPPORT SERVICES
28/06/2022,2426377,7294.75,NORTH SHIELDS LIVE AT HOME SCHEME,336341,"Health, Education, Care and Safeguarding",Adult Social Care,101,Third Party Payments,505,Voluntary Associations,5040,Revenue,NON INFLUENCIBLE.NON INFLUENCIBLE
28/06/2022,2426378,37992.62,HEALTHWATCH NORTHTYNESIDE,392152,"Health, Education, Care and Safeguarding",Adult Social Care,101,Third Party Payments,505,Voluntary Associations,5040,Revenue,SOCIAL CARE.CARE SERVICES
28/06/2022,2426381,10220.10,AGE UK NORTH TYNESIDE,334565,"Health, Education, Care and Safeguarding",Adult Social Care,101,Third Party Payments,505,Voluntary Associations,5040,Revenue,SOCIAL CARE.DAY CARE
28/06/2022,2426381,14561.47,AGE UK NORTH TYNESIDE,334565,"Health, Education, Care and Safeguarding",Adult Social Care,101,Third Party Payments,505,Voluntary Associations,5040,Revenue,SOCIAL CARE.DAY CARE
28/06/2022,2426382,6337.00,TYNEMOUTH BLIND WELFARE SOCIETY,020271,"Health, Education, Care and Safeguarding",Adult Social Care,101,Third Party Payments,505,Voluntary Associations,5040,Revenue,SOCIAL CARE.CARE SERVICES
29/06/2022,2427381,-0.59,PREPAID FINANCIAL SERVICES LIMITED,395003,"Health, Education, Care and Safeguarding",Adult Social Care,101,Third Party Payments,505,Voluntary Associations,5040,Revenue,FINANCIAL SERVICES.FINANCIAL SERVICES
29/06/2022,2427381,1627.56,PREPAID FINANCIAL SERVICES LIMITED,395003,"Health, Education, Care and Safeguarding",Adult Social Care,101,Third Party Payments,505,Voluntary Associations,5040,Revenue,FINANCIAL SERVICES.FINANCIAL SERVICES
09/06/2022,2411414,4.60,BUNZL UK LTD T/A BUNZL CLEANING & HYGIENE SUPPLIES,027747,Commissioning & Asset Management,Unallocated,N/A,Premises-Related Expenditure,502,Cleaning and Domestic Supplies,5012,Revenue,CLEANING & JANITORIAL.CLEANING MATERIALS
09/06/2022,2411414,4.60,BUNZL UK LTD T/A BUNZL CLEANING & HYGIENE SUPPLIES,027747,Commissioning & Asset Management,Unallocated,N/A,Premises-Related Expenditure,502,Cleaning and Domestic Supplies,5012,Revenue,CLEANING & JANITORIAL.CLEANING MATERIALS
09/06/2022,2411414,4.60,BUNZL UK LTD T/A BUNZL CLEANING & HYGIENE SUPPLIES,027747,Commissioning & Asset Management,Unallocated,N/A,Premises-Related Expenditure,502,Cleaning and Domestic Supplies,5012,Revenue,CLEANING & JANITORIAL.CLEANING MATERIALS
09/06/2022,2411414,5.10,BUNZL UK LTD T/A BUNZL CLEANING & HYGIENE SUPPLIES,027747,Commissioning & Asset Management,Unallocated,N/A,Premises-Related Expenditure,502,Cleaning and Domestic Supplies,5012,Revenue,CLEANING & JANITORIAL.CLEANING MATERIALS
09/06/2022,2411414,5.28,BUNZL UK LTD T/A BUNZL CLEANING & HYGIENE SUPPLIES,027747,Commissioning & Asset Management,Unallocated,N/A,Premises-Related Expenditure,502,Cleaning and Domestic Supplies,5012,Revenue,CLEANING & JANITORIAL.CLEANING MATERIALS
09/06/2022,2411414,6.32,BUNZL UK LTD T/A BUNZL CLEANING & HYGIENE SUPPLIES,027747,Commissioning & Asset Management,Unallocated,N/A,Premises-Related Expenditure,502,Cleaning and Domestic Supplies,5012,Revenue,CLEANING & JANITORIAL.CLEANING MATERIALS
09/06/2022,2411414,6.32,BUNZL UK LTD T/A BUNZL CLEANING & HYGIENE SUPPLIES,027747,Commissioning & Asset Management,Unallocated,N/A,Premises-Related Expenditure,502,Cleaning and Domestic Supplies,5012,Revenue,CLEANING & JANITORIAL.CLEANING MATERIALS
09/06/2022,2411414,6.87,BUNZL UK LTD T/A BUNZL CLEANING & HYGIENE SUPPLIES,027747,Commissioning & Asset Management,Unallocated,N/A,Premises-Related Expenditure,502,Cleaning and Domestic Supplies,5012,Revenue,CLEANING & JANITORIAL.CLEANING MATERIALS
09/06/2022,2411414,8.08,BUNZL UK LTD T/A BUNZL CLEANING & HYGIENE SUPPLIES,027747,Commissioning & Asset Management,Unallocated,N/A,Premises-Related Expenditure,502,Cleaning and Domestic Supplies,5012,Revenue,CLEANING & JANITORIAL.CLEANING MATERIALS
09/06/2022,2411414,8.08,BUNZL UK LTD T/A BUNZL CLEANING & HYGIENE SUPPLIES,027747,Commissioning & Asset Management,Unallocated,N/A,Premises-Related Expenditure,502,Cleaning and Domestic Supplies,5012,Revenue,CLEANING & JANITORIAL.CLEANING MATERIALS
09/06/2022,2411414,9.40,BUNZL UK LTD T/A BUNZL CLEANING & HYGIENE SUPPLIES,027747,Commissioning & Asset Management,Unallocated,N/A,Premises-Related Expenditure,502,Cleaning and Domestic Supplies,5012,Revenue,CLEANING & JANITORIAL.CLEANING MATERIALS
09/06/2022,2411414,9.40,BUNZL UK LTD T/A BUNZL CLEANING & HYGIENE SUPPLIES,027747,Commissioning & Asset Management,Unallocated,N/A,Premises-Related Expenditure,502,Cleaning and Domestic Supplies,5012,Revenue,CLEANING & JANITORIAL.CLEANING MATERIALS
09/06/2022,2411414,10.80,BUNZL UK LTD T/A BUNZL CLEANING & HYGIENE SUPPLIES,027747,Commissioning & Asset Management,Unallocated,N/A,Premises-Related Expenditure,502,Cleaning and Domestic Supplies,5012,Revenue,CLEANING & JANITORIAL.CLEANING MATERIALS
09/06/2022,2411414,11.64,BUNZL UK LTD T/A BUNZL CLEANING & HYGIENE SUPPLIES,027747,Commissioning & Asset Management,Unallocated,N/A,Premises-Related Expenditure,502,Cleaning and Domestic Supplies,5012,Revenue,CLEANING & JANITORIAL.CLEANING MATERIALS
09/06/2022,2411414,11.64,BUNZL UK LTD T/A BUNZL CLEANING & HYGIENE SUPPLIES,027747,Commissioning & Asset Management,Unallocated,N/A,Premises-Related Expenditure,502,Cleaning and Domestic Supplies,5012,Revenue,CLEANING & JANITORIAL.CLEANING MATERIALS
09/06/2022,2411414,11.67,BUNZL UK LTD T/A BUNZL CLEANING & HYGIENE SUPPLIES,027747,Commissioning & Asset Management,Unallocated,N/A,Premises-Related Expenditure,502,Cleaning and Domestic Supplies,5012,Revenue,CLEANING & JANITORIAL.CLEANING MATERIALS
09/06/2022,2411414,12.00,BUNZL UK LTD T/A BUNZL CLEANING & HYGIENE SUPPLIES,027747,Commissioning & Asset Management,Unallocated,N/A,Premises-Related Expenditure,502,Cleaning and Domestic Supplies,5012,Revenue,CLEANING & JANITORIAL.CLEANING MATERIALS
09/06/2022,2411414,12.40,BUNZL UK LTD T/A BUNZL CLEANING & HYGIENE SUPPLIES,027747,Commissioning & Asset Management,Unallocated,N/A,Premises-Related Expenditure,502,Cleaning and Domestic Supplies,5012,Revenue,CLEANING & JANITORIAL.CLEANING MATERIALS
09/06/2022,2411414,13.12,BUNZL UK LTD T/A BUNZL CLEANING & HYGIENE SUPPLIES,027747,Commissioning & Asset Management,Unallocated,N/A,Premises-Related Expenditure,502,Cleaning and Domestic Supplies,5012,Revenue,CLEANING & JANITORIAL.CLEANING MATERIALS
09/06/2022,2411414,13.12,BUNZL UK LTD T/A BUNZL CLEANING & HYGIENE SUPPLIES,027747,Commissioning & Asset Management,Unallocated,N/A,Premises-Related Expenditure,502,Cleaning and Domestic Supplies,5012,Revenue,CLEANING & JANITORIAL.CLEANING MATERIALS
09/06/2022,2411414,13.74,BUNZL UK LTD T/A BUNZL CLEANING & HYGIENE SUPPLIES,027747,Commissioning & Asset Management,Unallocated,N/A,Premises-Related Expenditure,502,Cleaning and Domestic Supplies,5012,Revenue,CLEANING & JANITORIAL.CLEANING MATERIALS
09/06/2022,2411414,15.42,BUNZL UK LTD T/A BUNZL CLEANING & HYGIENE SUPPLIES,027747,Commissioning & Asset Management,Unallocated,N/A,Premises-Related Expenditure,502,Cleaning and Domestic Supplies,5012,Revenue,CLEANING & JANITORIAL.CLEANING MATERIALS
09/06/2022,2411414,16.00,BUNZL UK LTD T/A BUNZL CLEANING & HYGIENE SUPPLIES,027747,Commissioning & Asset Management,Unallocated,N/A,Premises-Related Expenditure,502,Cleaning and Domestic Supplies,5012,Revenue,CLEANING & JANITORIAL.CLEANING MATERIALS
09/06/2022,2411414,16.00,BUNZL UK LTD T/A BUNZL CLEANING & HYGIENE SUPPLIES,027747,Commissioning & Asset Management,Unallocated,N/A,Premises-Related Expenditure,502,Cleaning and Domestic Supplies,5012,Revenue,CLEANING & JANITORIAL.CLEANING MATERIALS
09/06/2022,2411414,17.66,BUNZL UK LTD T/A BUNZL CLEANING & HYGIENE SUPPLIES,027747,Commissioning & Asset Management,Unallocated,N/A,Premises-Related Expenditure,502,Cleaning and Domestic Supplies,5012,Revenue,CLEANING & JANITORIAL.CLEANING MATERIALS
09/06/2022,2411414,18.80,BUNZL UK LTD T/A BUNZL CLEANING & HYGIENE SUPPLIES,027747,Commissioning & Asset Management,Unallocated,N/A,Premises-Related Expenditure,502,Cleaning and Domestic Supplies,5012,Revenue,CLEANING & JANITORIAL.CLEANING MATERIALS
09/06/2022,2411414,18.80,BUNZL UK LTD T/A BUNZL CLEANING & HYGIENE SUPPLIES,027747,Commissioning & Asset Management,Unallocated,N/A,Premises-Related Expenditure,502,Cleaning and Domestic Supplies,5012,Revenue,CLEANING & JANITORIAL.CLEANING MATERIALS
09/06/2022,2411414,19.66,BUNZL UK LTD T/A BUNZL CLEANING & HYGIENE SUPPLIES,027747,Commissioning & Asset Management,Unallocated,N/A,Premises-Related Expenditure,502,Cleaning and Domestic Supplies,5012,Revenue,CLEANING & JANITORIAL.CLEANING MATERIALS
09/06/2022,2411414,20.37,BUNZL UK LTD T/A BUNZL CLEANING & HYGIENE SUPPLIES,027747,Commissioning & Asset Management,Unallocated,N/A,Premises-Related Expenditure,502,Cleaning and Domestic Supplies,5012,Revenue,CLEANING & JANITORIAL.CLEANING MATERIALS
09/06/2022,2411414,21.00,BUNZL UK LTD T/A BUNZL CLEANING & HYGIENE SUPPLIES,027747,Commissioning & Asset Management,Unallocated,N/A,Premises-Related Expenditure,502,Cleaning and Domestic Supplies,5012,Revenue,CLEANING & JANITORIAL.CLEANING MATERIALS
09/06/2022,2411414,24.24,BUNZL UK LTD T/A BUNZL CLEANING & HYGIENE SUPPLIES,027747,Commissioning & Asset Management,Unallocated,N/A,Premises-Related Expenditure,502,Cleaning and Domestic Supplies,5012,Revenue,CLEANING & JANITORIAL.CLEANING MATERIALS
09/06/2022,2411414,25.32,BUNZL UK LTD T/A BUNZL CLEANING & HYGIENE SUPPLIES,027747,Commissioning & Asset Management,Unallocated,N/A,Premises-Related Expenditure,502,Cleaning and Domestic Supplies,5012,Revenue,CLEANING & JANITORIAL.CLEANING MATERIALS
09/06/2022,2411414,25.32,BUNZL UK LTD T/A BUNZL CLEANING & HYGIENE SUPPLIES,027747,Commissioning & Asset Management,Unallocated,N/A,Premises-Related Expenditure,502,Cleaning and Domestic Supplies,5012,Revenue,CLEANING & JANITORIAL.CLEANING MATERIALS
09/06/2022,2411414,25.32,BUNZL UK LTD T/A BUNZL CLEANING & HYGIENE SUPPLIES,027747,Commissioning & Asset Management,Unallocated,N/A,Premises-Related Expenditure,502,Cleaning and Domestic Supplies,5012,Revenue,CLEANING & JANITORIAL.CLEANING MATERIALS
09/06/2022,2411414,25.32,BUNZL UK LTD T/A BUNZL CLEANING & HYGIENE SUPPLIES,027747,Commissioning & Asset Management,Unallocated,N/A,Premises-Related Expenditure,502,Cleaning and Domestic Supplies,5012,Revenue,CLEANING & JANITORIAL.CLEANING MATERIALS
09/06/2022,2411414,25.32,BUNZL UK LTD T/A BUNZL CLEANING & HYGIENE SUPPLIES,027747,Commissioning & Asset Management,Unallocated,N/A,Premises-Related Expenditure,502,Cleaning and Domestic Supplies,5012,Revenue,CLEANING & JANITORIAL.CLEANING MATERIALS
09/06/2022,2411414,25.32,BUNZL UK LTD T/A BUNZL CLEANING & HYGIENE SUPPLIES,027747,Commissioning & Asset Management,Unallocated,N/A,Premises-Related Expenditure,502,Cleaning and Domestic Supplies,5012,Revenue,CLEANING & JANITORIAL.CLEANING MATERIALS
09/06/2022,2411414,25.32,BUNZL UK LTD T/A BUNZL CLEANING & HYGIENE SUPPLIES,027747,Commissioning & Asset Management,Unallocated,N/A,Premises-Related Expenditure,502,Cleaning and Domestic Supplies,5012,Revenue,CLEANING & JANITORIAL.CLEANING MATERIALS
09/06/2022,2411414,25.32,BUNZL UK LTD T/A BUNZL CLEANING & HYGIENE SUPPLIES,027747,Commissioning & Asset Management,Unallocated,N/A,Premises-Related Expenditure,502,Cleaning and Domestic Supplies,5012,Revenue,CLEANING & JANITORIAL.CLEANING MATERIALS
09/06/2022,2411414,26.24,BUNZL UK LTD T/A BUNZL CLEANING & HYGIENE SUPPLIES,027747,Commissioning & Asset Management,Unallocated,N/A,Premises-Related Expenditure,502,Cleaning and Domestic Supplies,5012,Revenue,CLEANING & JANITORIAL.CLEANING MATERIALS
09/06/2022,2411414,26.24,BUNZL UK LTD T/A BUNZL CLEANING & HYGIENE SUPPLIES,027747,Commissioning & Asset Management,Unallocated,N/A,Premises-Related Expenditure,502,Cleaning and Domestic Supplies,5012,Revenue,CLEANING & JANITORIAL.CLEANING MATERIALS
09/06/2022,2411414,26.40,BUNZL UK LTD T/A BUNZL CLEANING & HYGIENE SUPPLIES,027747,Commissioning & Asset Management,Unallocated,N/A,Premises-Related Expenditure,502,Cleaning and Domestic Supplies,5012,Revenue,CLEANING & JANITORIAL.CLEANING MATERIALS
09/06/2022,2411414,26.70,BUNZL UK LTD T/A BUNZL CLEANING & HYGIENE SUPPLIES,027747,Commissioning & Asset Management,Unallocated,N/A,Premises-Related Expenditure,502,Cleaning and Domestic Supplies,5012,Revenue,CLEANING & JANITORIAL.CLEANING MATERIALS
09/06/2022,2411414,27.10,BUNZL UK LTD T/A BUNZL CLEANING & HYGIENE SUPPLIES,027747,Commissioning & Asset Management,Unallocated,N/A,Premises-Related Expenditure,502,Cleaning and Domestic Supplies,5012,Revenue,CLEANING & JANITORIAL.CLEANING MATERIALS
09/06/2022,2411414,28.20,BUNZL UK LTD T/A BUNZL CLEANING & HYGIENE SUPPLIES,027747,Commissioning & Asset Management,Unallocated,N/A,Premises-Related Expenditure,502,Cleaning and Domestic Supplies,5012,Revenue,CLEANING & JANITORIAL.CLEANING MATERIALS
09/06/2022,2411414,28.20,BUNZL UK LTD T/A BUNZL CLEANING & HYGIENE SUPPLIES,027747,Commissioning & Asset Management,Unallocated,N/A,Premises-Related Expenditure,502,Cleaning and Domestic Supplies,5012,Revenue,CLEANING & JANITORIAL.CLEANING MATERIALS
09/06/2022,2411414,30.84,BUNZL UK LTD T/A BUNZL CLEANING & HYGIENE SUPPLIES,027747,Commissioning & Asset Management,Unallocated,N/A,Premises-Related Expenditure,502,Cleaning and Domestic Supplies,5012,Revenue,CLEANING & JANITORIAL.CLEANING MATERIALS
09/06/2022,2411414,30.84,BUNZL UK LTD T/A BUNZL CLEANING & HYGIENE SUPPLIES,027747,Commissioning & Asset Management,Unallocated,N/A,Premises-Related Expenditure,502,Cleaning and Domestic Supplies,5012,Revenue,CLEANING & JANITORIAL.CLEANING MATERIALS
09/06/2022,2411414,32.80,BUNZL UK LTD T/A BUNZL CLEANING & HYGIENE SUPPLIES,027747,Commissioning & Asset Management,Unallocated,N/A,Premises-Related Expenditure,502,Cleaning and Domestic Supplies,5012,Revenue,CLEANING & JANITORIAL.CLEANING MATERIALS
09/06/2022,2411414,35.70,BUNZL UK LTD T/A BUNZL CLEANING & HYGIENE SUPPLIES,027747,Commissioning & Asset Management,Unallocated,N/A,Premises-Related Expenditure,502,Cleaning and Domestic Supplies,5012,Revenue,CLEANING & JANITORIAL.CLEANING MATERIALS
09/06/2022,2411414,37.40,BUNZL UK LTD T/A BUNZL CLEANING & HYGIENE SUPPLIES,027747,Commissioning & Asset Management,Unallocated,N/A,Premises-Related Expenditure,502,Cleaning and Domestic Supplies,5012,Revenue,CLEANING & JANITORIAL.CLEANING MATERIALS
09/06/2022,2411414,38.58,BUNZL UK LTD T/A BUNZL CLEANING & HYGIENE SUPPLIES,027747,Commissioning & Asset Management,Unallocated,N/A,Premises-Related Expenditure,502,Cleaning and Domestic Supplies,5012,Revenue,CLEANING & JANITORIAL.CLEANING MATERIALS
09/06/2022,2411414,39.36,BUNZL UK LTD T/A BUNZL CLEANING & HYGIENE SUPPLIES,027747,Commissioning & Asset Management,Unallocated,N/A,Premises-Related Expenditure,502,Cleaning and Domestic Supplies,5012,Revenue,CLEANING & JANITORIAL.CLEANING MATERIALS
09/06/2022,2411414,42.00,BUNZL UK LTD T/A BUNZL CLEANING & HYGIENE SUPPLIES,027747,Commissioning & Asset Management,Unallocated,N/A,Premises-Related Expenditure,502,Cleaning and Domestic Supplies,5012,Revenue,CLEANING & JANITORIAL.CLEANING MATERIALS
09/06/2022,2411414,42.20,BUNZL UK LTD T/A BUNZL CLEANING & HYGIENE SUPPLIES,027747,Commissioning & Asset Management,Unallocated,N/A,Premises-Related Expenditure,502,Cleaning and Domestic Supplies,5012,Revenue,CLEANING & JANITORIAL.CLEANING MATERIALS
09/06/2022,2411414,42.20,BUNZL UK LTD T/A BUNZL CLEANING & HYGIENE SUPPLIES,027747,Commissioning & Asset Management,Unallocated,N/A,Premises-Related Expenditure,502,Cleaning and Domestic Supplies,5012,Revenue,CLEANING & JANITORIAL.CLEANING MATERIALS
09/06/2022,2411414,42.20,BUNZL UK LTD T/A BUNZL CLEANING & HYGIENE SUPPLIES,027747,Commissioning & Asset Management,Unallocated,N/A,Premises-Related Expenditure,502,Cleaning and Domestic Supplies,5012,Revenue,CLEANING & JANITORIAL.CLEANING MATERIALS
09/06/2022,2411414,42.20,BUNZL UK LTD T/A BUNZL CLEANING & HYGIENE SUPPLIES,027747,Commissioning & Asset Management,Unallocated,N/A,Premises-Related Expenditure,502,Cleaning and Domestic Supplies,5012,Revenue,CLEANING & JANITORIAL.CLEANING MATERIALS
09/06/2022,2411414,47.00,BUNZL UK LTD T/A BUNZL CLEANING & HYGIENE SUPPLIES,027747,Commissioning & Asset Management,Unallocated,N/A,Premises-Related Expenditure,502,Cleaning and Domestic Supplies,5012,Revenue,CLEANING & JANITORIAL.CLEANING MATERIALS
09/06/2022,2411414,47.00,BUNZL UK LTD T/A BUNZL CLEANING & HYGIENE SUPPLIES,027747,Commissioning & Asset Management,Unallocated,N/A,Premises-Related Expenditure,502,Cleaning and Domestic Supplies,5012,Revenue,CLEANING & JANITORIAL.CLEANING MATERIALS
09/06/2022,2411414,50.64,BUNZL UK LTD T/A BUNZL CLEANING & HYGIENE SUPPLIES,027747,Commissioning & Asset Management,Unallocated,N/A,Premises-Related Expenditure,502,Cleaning and Domestic Supplies,5012,Revenue,CLEANING & JANITORIAL.CLEANING MATERIALS
09/06/2022,2411414,52.48,BUNZL UK LTD T/A BUNZL CLEANING & HYGIENE SUPPLIES,027747,Commissioning & Asset Management,Unallocated,N/A,Premises-Related Expenditure,502,Cleaning and Domestic Supplies,5012,Revenue,CLEANING & JANITORIAL.CLEANING MATERIALS
09/06/2022,2411414,61.68,BUNZL UK LTD T/A BUNZL CLEANING & HYGIENE SUPPLIES,027747,Commissioning & Asset Management,Unallocated,N/A,Premises-Related Expenditure,502,Cleaning and Domestic Supplies,5012,Revenue,CLEANING & JANITORIAL.CLEANING MATERIALS
09/06/2022,2411414,64.30,BUNZL UK LTD T/A BUNZL CLEANING & HYGIENE SUPPLIES,027747,Commissioning & Asset Management,Unallocated,N/A,Premises-Related Expenditure,502,Cleaning and Domestic Supplies,5012,Revenue,CLEANING & JANITORIAL.CLEANING MATERIALS
09/06/2022,2411414,75.96,BUNZL UK LTD T/A BUNZL CLEANING & HYGIENE SUPPLIES,027747,Commissioning & Asset Management,Unallocated,N/A,Premises-Related Expenditure,502,Cleaning and Domestic Supplies,5012,Revenue,CLEANING & JANITORIAL.CLEANING MATERIALS
09/06/2022,2411414,75.96,BUNZL UK LTD T/A BUNZL CLEANING & HYGIENE SUPPLIES,027747,Commissioning & Asset Management,Unallocated,N/A,Premises-Related Expenditure,502,Cleaning and Domestic Supplies,5012,Revenue,CLEANING & JANITORIAL.CLEANING MATERIALS
09/06/2022,2411414,75.96,BUNZL UK LTD T/A BUNZL CLEANING & HYGIENE SUPPLIES,027747,Commissioning & Asset Management,Unallocated,N/A,Premises-Related Expenditure,502,Cleaning and Domestic Supplies,5012,Revenue,CLEANING & JANITORIAL.CLEANING MATERIALS
09/06/2022,2411414,75.96,BUNZL UK LTD T/A BUNZL CLEANING & HYGIENE SUPPLIES,027747,Commissioning & Asset Management,Unallocated,N/A,Premises-Related Expenditure,502,Cleaning and Domestic Supplies,5012,Revenue,CLEANING & JANITORIAL.CLEANING MATERIALS
09/06/2022,2411414,77.80,BUNZL UK LTD T/A BUNZL CLEANING & HYGIENE SUPPLIES,027747,Commissioning & Asset Management,Unallocated,N/A,Premises-Related Expenditure,502,Cleaning and Domestic Supplies,5012,Revenue,CLEANING & JANITORIAL.CLEANING MATERIALS
09/06/2022,2411414,82.44,BUNZL UK LTD T/A BUNZL CLEANING & HYGIENE SUPPLIES,027747,Commissioning & Asset Management,Unallocated,N/A,Premises-Related Expenditure,502,Cleaning and Domestic Supplies,5012,Revenue,CLEANING & JANITORIAL.CLEANING MATERIALS
09/06/2022,2411414,98.00,BUNZL UK LTD T/A BUNZL CLEANING & HYGIENE SUPPLIES,027747,Commissioning & Asset Management,Unallocated,N/A,Premises-Related Expenditure,502,Cleaning and Domestic Supplies,5012,Revenue,CLEANING & JANITORIAL.CLEANING MATERIALS
09/06/2022,2411414,101.28,BUNZL UK LTD T/A BUNZL CLEANING & HYGIENE SUPPLIES,027747,Commissioning & Asset Management,Unallocated,N/A,Premises-Related Expenditure,502,Cleaning and Domestic Supplies,5012,Revenue,CLEANING & JANITORIAL.CLEANING MATERIALS
09/06/2022,2411414,102.88,BUNZL UK LTD T/A BUNZL CLEANING & HYGIENE SUPPLIES,027747,Commissioning & Asset Management,Unallocated,N/A,Premises-Related Expenditure,502,Cleaning and Domestic Supplies,5012,Revenue,CLEANING & JANITORIAL.CLEANING MATERIALS
09/06/2022,2411414,102.88,BUNZL UK LTD T/A BUNZL CLEANING & HYGIENE SUPPLIES,027747,Commissioning & Asset Management,Unallocated,N/A,Premises-Related Expenditure,502,Cleaning and Domestic Supplies,5012,Revenue,CLEANING & JANITORIAL.CLEANING MATERIALS
09/06/2022,2411414,128.60,BUNZL UK LTD T/A BUNZL CLEANING & HYGIENE SUPPLIES,027747,Commissioning & Asset Management,Unallocated,N/A,Premises-Related Expenditure,502,Cleaning and Domestic Supplies,5012,Revenue,CLEANING & JANITORIAL.CLEANING MATERIALS
09/06/2022,2411414,323.00,BUNZL UK LTD T/A BUNZL CLEANING & HYGIENE SUPPLIES,027747,Commissioning & Asset Management,Unallocated,N/A,Premises-Related Expenditure,502,Cleaning and Domestic Supplies,5012,Revenue,CLEANING & JANITORIAL.CLEANING MATERIALS
09/06/2022,2411414,332.37,BUNZL UK LTD T/A BUNZL CLEANING & HYGIENE SUPPLIES,027747,Commissioning & Asset Management,Unallocated,N/A,Premises-Related Expenditure,502,Cleaning and Domestic Supplies,5012,Revenue,CLEANING & JANITORIAL.CLEANING MATERIALS
09/06/2022,2411414,368.64,BUNZL UK LTD T/A BUNZL CLEANING & HYGIENE SUPPLIES,027747,Commissioning & Asset Management,Unallocated,N/A,Premises-Related Expenditure,502,Cleaning and Domestic Supplies,5012,Revenue,CLEANING & JANITORIAL.CLEANING MATERIALS
09/06/2022,2411414,775.53,BUNZL UK LTD T/A BUNZL CLEANING & HYGIENE SUPPLIES,027747,Commissioning & Asset Management,Unallocated,N/A,Premises-Related Expenditure,502,Cleaning and Domestic Supplies,5012,Revenue,CLEANING & JANITORIAL.CLEANING MATERIALS
09/06/2022,2411417,54.25,1ST COVERALL COMPANY LIMITED,393273,Commissioning & Asset Management,Unallocated,N/A,Supplies and Services,504,"Clothing, Uniforms and Laundry",5025,Revenue,CLOTHING.PROTECTIVE
09/06/2022,2411417,77.50,1ST COVERALL COMPANY LIMITED,393273,Commissioning & Asset Management,Unallocated,N/A,Supplies and Services,504,"Clothing, Uniforms and Laundry",5025,Revenue,CLOTHING.PROTECTIVE
09/06/2022,2411417,77.50,1ST COVERALL COMPANY LIMITED,393273,Commissioning & Asset Management,Unallocated,N/A,Supplies and Services,504,"Clothing, Uniforms and Laundry",5025,Revenue,CLOTHING.PROTECTIVE
16/06/2022,2419216,5.28,BUNZL UK LTD T/A BUNZL CLEANING & HYGIENE SUPPLIES,027747,Commissioning & Asset Management,Unallocated,N/A,Premises-Related Expenditure,502,Cleaning and Domestic Supplies,5012,Revenue,CLEANING & JANITORIAL.CLEANING MATERIALS
16/06/2022,2419216,9.40,BUNZL UK LTD T/A BUNZL CLEANING & HYGIENE SUPPLIES,027747,Commissioning & Asset Management,Unallocated,N/A,Premises-Related Expenditure,502,Cleaning and Domestic Supplies,5012,Revenue,CLEANING & JANITORIAL.CLEANING MATERIALS
16/06/2022,2419216,9.40,BUNZL UK LTD T/A BUNZL CLEANING & HYGIENE SUPPLIES,027747,Commissioning & Asset Management,Unallocated,N/A,Premises-Related Expenditure,502,Cleaning and Domestic Supplies,5012,Revenue,CLEANING & JANITORIAL.CLEANING MATERIALS
16/06/2022,2419216,11.64,BUNZL UK LTD T/A BUNZL CLEANING & HYGIENE SUPPLIES,027747,Commissioning & Asset Management,Unallocated,N/A,Premises-Related Expenditure,502,Cleaning and Domestic Supplies,5012,Revenue,CLEANING & JANITORIAL.CLEANING MATERIALS
16/06/2022,2419216,20.16,BUNZL UK LTD T/A BUNZL CLEANING & HYGIENE SUPPLIES,027747,Commissioning & Asset Management,Unallocated,N/A,Premises-Related Expenditure,502,Cleaning and Domestic Supplies,5012,Revenue,CLEANING & JANITORIAL.CLEANING MATERIALS
16/06/2022,2419216,24.72,BUNZL UK LTD T/A BUNZL CLEANING & HYGIENE SUPPLIES,027747,Commissioning & Asset Management,Unallocated,N/A,Premises-Related Expenditure,502,Cleaning and Domestic Supplies,5012,Revenue,CLEANING & JANITORIAL.CLEANING MATERIALS
16/06/2022,2419216,27.10,BUNZL UK LTD T/A BUNZL CLEANING & HYGIENE SUPPLIES,027747,Commissioning & Asset Management,Unallocated,N/A,Premises-Related Expenditure,502,Cleaning and Domestic Supplies,5012,Revenue,CLEANING & JANITORIAL.CLEANING MATERIALS
16/06/2022,2419216,30.84,BUNZL UK LTD T/A BUNZL CLEANING & HYGIENE SUPPLIES,027747,Commissioning & Asset Management,Unallocated,N/A,Premises-Related Expenditure,502,Cleaning and Domestic Supplies,5012,Revenue,CLEANING & JANITORIAL.CLEANING MATERIALS
16/06/2022,2419216,39.36,BUNZL UK LTD T/A BUNZL CLEANING & HYGIENE SUPPLIES,027747,Commissioning & Asset Management,Unallocated,N/A,Premises-Related Expenditure,502,Cleaning and Domestic Supplies,5012,Revenue,CLEANING & JANITORIAL.CLEANING MATERIALS
16/06/2022,2419216,50.64,BUNZL UK LTD T/A BUNZL CLEANING & HYGIENE SUPPLIES,027747,Commissioning & Asset Management,Unallocated,N/A,Premises-Related Expenditure,502,Cleaning and Domestic Supplies,5012,Revenue,CLEANING & JANITORIAL.CLEANING MATERIALS
16/06/2022,2419216,50.64,BUNZL UK LTD T/A BUNZL CLEANING & HYGIENE SUPPLIES,027747,Commissioning & Asset Management,Unallocated,N/A,Premises-Related Expenditure,502,Cleaning and Domestic Supplies,5012,Revenue,CLEANING & JANITORIAL.CLEANING MATERIALS
16/06/2022,2419216,56.40,BUNZL UK LTD T/A BUNZL CLEANING & HYGIENE SUPPLIES,027747,Commissioning & Asset Management,Unallocated,N/A,Premises-Related Expenditure,502,Cleaning and Domestic Supplies,5012,Revenue,CLEANING & JANITORIAL.CLEANING MATERIALS
16/06/2022,2419216,61.68,BUNZL UK LTD T/A BUNZL CLEANING & HYGIENE SUPPLIES,027747,Commissioning & Asset Management,Unallocated,N/A,Premises-Related Expenditure,502,Cleaning and Domestic Supplies,5012,Revenue,CLEANING & JANITORIAL.CLEANING MATERIALS
16/06/2022,2419216,64.30,BUNZL UK LTD T/A BUNZL CLEANING & HYGIENE SUPPLIES,027747,Commissioning & Asset Management,Unallocated,N/A,Premises-Related Expenditure,502,Cleaning and Domestic Supplies,5012,Revenue,CLEANING & JANITORIAL.CLEANING MATERIALS
16/06/2022,2419216,80.00,BUNZL UK LTD T/A BUNZL CLEANING & HYGIENE SUPPLIES,027747,Commissioning & Asset Management,Unallocated,N/A,Premises-Related Expenditure,502,Cleaning and Domestic Supplies,5012,Revenue,CLEANING & JANITORIAL.CLEANING MATERIALS
16/06/2022,2419216,80.00,BUNZL UK LTD T/A BUNZL CLEANING & HYGIENE SUPPLIES,027747,Commissioning & Asset Management,Unallocated,N/A,Premises-Related Expenditure,502,Cleaning and Domestic Supplies,5012,Revenue,CLEANING & JANITORIAL.CLEANING MATERIALS
16/06/2022,2419216,94.00,BUNZL UK LTD T/A BUNZL CLEANING & HYGIENE SUPPLIES,027747,Commissioning & Asset Management,Unallocated,N/A,Premises-Related Expenditure,502,Cleaning and Domestic Supplies,5012,Revenue,CLEANING & JANITORIAL.CLEANING MATERIALS
16/06/2022,2419216,128.60,BUNZL UK LTD T/A BUNZL CLEANING & HYGIENE SUPPLIES,027747,Commissioning & Asset Management,Unallocated,N/A,Premises-Related Expenditure,502,Cleaning and Domestic Supplies,5012,Revenue,CLEANING & JANITORIAL.CLEANING MATERIALS
16/06/2022,2419216,189.20,BUNZL UK LTD T/A BUNZL CLEANING & HYGIENE SUPPLIES,027747,Commissioning & Asset Management,Unallocated,N/A,Premises-Related Expenditure,502,Cleaning and Domestic Supplies,5012,Revenue,CLEANING & JANITORIAL.CLEANING MATERIALS
16/06/2022,2419216,218.72,BUNZL UK LTD T/A BUNZL CLEANING & HYGIENE SUPPLIES,027747,Commissioning & Asset Management,Unallocated,N/A,Premises-Related Expenditure,502,Cleaning and Domestic Supplies,5012,Revenue,CLEANING & JANITORIAL.CLEANING MATERIALS
20/06/2022,2421417,248.00,CITY CLEAN,310377,Commissioning & Asset Management,Unallocated,N/A,Premises-Related Expenditure,502,Cleaning and Domestic Supplies,5012,Revenue,REPAIRS & MAINTENANCE.REPAIRS & MAINTENANCE
20/06/2022,2421417,410.00,CITY CLEAN,310377,Commissioning & Asset Management,Unallocated,N/A,Premises-Related Expenditure,502,Cleaning and Domestic Supplies,5012,Revenue,REPAIRS & MAINTENANCE.REPAIRS & MAINTENANCE
24/06/2022,2425147,1162.85,INITIAL WASHROOM SOLUTIONS,009073,Commissioning & Asset Management,Unallocated,N/A,Supplies and Services,504,"Printing, Stationery and General Office Expenses",5026,Revenue,CLEANING & JANITORIAL.WASHROOM SANITATION SERVICE
30/06/2022,2427827,19.98,BUNZL UK LTD T/A BUNZL CLEANING & HYGIENE SUPPLIES,027747,Commissioning & Asset Management,Unallocated,N/A,Premises-Related Expenditure,502,Cleaning and Domestic Supplies,5012,Revenue,CLEANING & JANITORIAL.CLEANING MATERIALS
30/06/2022,2427827,30.39,BUNZL UK LTD T/A BUNZL CLEANING & HYGIENE SUPPLIES,027747,Commissioning & Asset Management,Unallocated,N/A,Premises-Related Expenditure,502,Cleaning and Domestic Supplies,5012,Revenue,CLEANING & JANITORIAL.CLEANING MATERIALS
30/06/2022,2427827,39.36,BUNZL UK LTD T/A BUNZL CLEANING & HYGIENE SUPPLIES,027747,Commissioning & Asset Management,Unallocated,N/A,Premises-Related Expenditure,502,Cleaning and Domestic Supplies,5012,Revenue,CLEANING & JANITORIAL.CLEANING MATERIALS
30/06/2022,2427827,56.40,BUNZL UK LTD T/A BUNZL CLEANING & HYGIENE SUPPLIES,027747,Commissioning & Asset Management,Unallocated,N/A,Premises-Related Expenditure,502,Cleaning and Domestic Supplies,5012,Revenue,CLEANING & JANITORIAL.CLEANING MATERIALS
30/06/2022,2427827,56.40,BUNZL UK LTD T/A BUNZL CLEANING & HYGIENE SUPPLIES,027747,Commissioning & Asset Management,Unallocated,N/A,Premises-Related Expenditure,502,Cleaning and Domestic Supplies,5012,Revenue,CLEANING & JANITORIAL.CLEANING MATERIALS
30/06/2022,2427827,77.16,BUNZL UK LTD T/A BUNZL CLEANING & HYGIENE SUPPLIES,027747,Commissioning & Asset Management,Unallocated,N/A,Premises-Related Expenditure,502,Cleaning and Domestic Supplies,5012,Revenue,CLEANING & JANITORIAL.CLEANING MATERIALS
29/06/2022,2427381,2695.14,PREPAID FINANCIAL SERVICES LIMITED,395003,"Health, Education, Care and Safeguarding",Adult Social Care,101,Third Party Payments,505,Voluntary Associations,5040,Revenue,FINANCIAL SERVICES.FINANCIAL SERVICES
28/06/2022,2426933,286.68,NEW PROSPECTS ASSOCIATION LIMITED,203069,"Health, Education, Care and Safeguarding",Adult Social Care,101,Premises-Related Expenditure,502,Energy Costs,5006,Revenue,SOCIAL CARE.DAY CARE
28/06/2022,2426933,291.73,NEW PROSPECTS ASSOCIATION LIMITED,203069,"Health, Education, Care and Safeguarding",Adult Social Care,101,Premises-Related Expenditure,502,Energy Costs,5006,Revenue,SOCIAL CARE.DAY CARE
14/06/2022,2417836,580.99,BALFOUR BEATTY WORKPLACE LIMITED,389026,"Health, Education, Care and Safeguarding",Adult Social Care,101,Supplies and Services,504,Communications & Computing,5028,Revenue,HUMAN RESOURCES.PROFESSIONAL & ADVISORY SERVICES
06/06/2022,2405628,145.68,DAV HOMES LTD,390262,"Health, Education, Care and Safeguarding",Adult Social Care,101,Third Party Payments,505,Other Establishments,5041,Revenue,SOCIAL CARE.NURSING & RESIDENTIAL CARE
06/06/2022,2405628,391.16,DAV HOMES LTD,390262,"Health, Education, Care and Safeguarding",Adult Social Care,101,Third Party Payments,505,Other Establishments,5041,Revenue,SOCIAL CARE.NURSING & RESIDENTIAL CARE
06/06/2022,2405628,1073.38,DAV HOMES LTD,390262,"Health, Education, Care and Safeguarding",Adult Social Care,101,Third Party Payments,505,Other Establishments,5041,Revenue,SOCIAL CARE.NURSING & RESIDENTIAL CARE
06/06/2022,2405628,1574.92,DAV HOMES LTD,390262,"Health, Education, Care and Safeguarding",Adult Social Care,101,Third Party Payments,505,Other Establishments,5041,Revenue,SOCIAL CARE.NURSING & RESIDENTIAL CARE
13/06/2022,2415224,92.16,DAV HOMES LTD,390262,"Health, Education, Care and Safeguarding",Adult Social Care,101,Third Party Payments,505,Other Establishments,5041,Revenue,SOCIAL CARE.NURSING & RESIDENTIAL CARE
13/06/2022,2415224,209.19,DAV HOMES LTD,390262,"Health, Education, Care and Safeguarding",Adult Social Care,101,Third Party Payments,505,Other Establishments,5041,Revenue,SOCIAL CARE.NURSING & RESIDENTIAL CARE
13/06/2022,2415224,1073.38,DAV HOMES LTD,390262,"Health, Education, Care and Safeguarding",Adult Social Care,101,Third Party Payments,505,Other Establishments,5041,Revenue,SOCIAL CARE.NURSING & RESIDENTIAL CARE
13/06/2022,2415224,1574.92,DAV HOMES LTD,390262,"Health, Education, Care and Safeguarding",Adult Social Care,101,Third Party Payments,505,Other Establishments,5041,Revenue,SOCIAL CARE.NURSING & RESIDENTIAL CARE
20/06/2022,2420888,1035.41,LADHAR GROUP CARE HOMES,377323,"Health, Education, Care and Safeguarding",Adult Social Care,101,Third Party Payments,505,Other Establishments,5041,Revenue,SOCIAL CARE.NURSING & RESIDENTIAL CARE
20/06/2022,2420910,92.16,DAV HOMES LTD,390262,"Health, Education, Care and Safeguarding",Adult Social Care,101,Third Party Payments,505,Other Establishments,5041,Revenue,SOCIAL CARE.NURSING & RESIDENTIAL CARE
20/06/2022,2420910,209.19,DAV HOMES LTD,390262,"Health, Education, Care and Safeguarding",Adult Social Care,101,Third Party Payments,505,Other Establishments,5041,Revenue,SOCIAL CARE.NURSING & RESIDENTIAL CARE
20/06/2022,2420910,1073.38,DAV HOMES LTD,390262,"Health, Education, Care and Safeguarding",Adult Social Care,101,Third Party Payments,505,Other Establishments,5041,Revenue,SOCIAL CARE.NURSING & RESIDENTIAL CARE
20/06/2022,2420910,1574.92,DAV HOMES LTD,390262,"Health, Education, Care and Safeguarding",Adult Social Care,101,Third Party Payments,505,Other Establishments,5041,Revenue,SOCIAL CARE.NURSING & RESIDENTIAL CARE
27/06/2022,2425966,724.79,LADHAR GROUP CARE HOMES,377323,"Health, Education, Care and Safeguarding",Adult Social Care,101,Third Party Payments,505,Other Establishments,5041,Revenue,SOCIAL CARE.NURSING & RESIDENTIAL CARE
27/06/2022,2426025,92.16,DAV HOMES LTD,390262,"Health, Education, Care and Safeguarding",Adult Social Care,101,Third Party Payments,505,Other Establishments,5041,Revenue,SOCIAL CARE.NURSING & RESIDENTIAL CARE
27/06/2022,2426025,209.19,DAV HOMES LTD,390262,"Health, Education, Care and Safeguarding",Adult Social Care,101,Third Party Payments,505,Other Establishments,5041,Revenue,SOCIAL CARE.NURSING & RESIDENTIAL CARE
27/06/2022,2426025,1073.38,DAV HOMES LTD,390262,"Health, Education, Care and Safeguarding",Adult Social Care,101,Third Party Payments,505,Other Establishments,5041,Revenue,SOCIAL CARE.NURSING & RESIDENTIAL CARE
27/06/2022,2426025,1574.92,DAV HOMES LTD,390262,"Health, Education, Care and Safeguarding",Adult Social Care,101,Third Party Payments,505,Other Establishments,5041,Revenue,SOCIAL CARE.NURSING & RESIDENTIAL CARE
07/06/2022,2410116,-310.53,MARK TONEY & CO LTD,013184,Local Environmental Services,Adult Social Care,101,Supplies and Services,504,Equipment,5023,Revenue,CATERING.FOOD & BEVERAGES
07/06/2022,2410116,310.53,MARK TONEY & CO LTD,013184,Local Environmental Services,Adult Social Care,101,Supplies and Services,504,Equipment,5023,Revenue,CATERING.FOOD & BEVERAGES
07/06/2022,2410116,682.13,MARK TONEY & CO LTD,013184,Local Environmental Services,Adult Social Care,101,Supplies and Services,504,Equipment,5023,Revenue,CATERING.FOOD & BEVERAGES
07/06/2022,2410177,-276.51,RINGTONS LTD (387786),387786,Local Environmental Services,Adult Social Care,101,Supplies and Services,504,Equipment,5023,Revenue,CATERING.FOOD & BEVERAGES
07/06/2022,2410177,-88.22,RINGTONS LTD (387786),387786,Local Environmental Services,Adult Social Care,101,Supplies and Services,504,Equipment,5023,Revenue,CATERING.FOOD & BEVERAGES
07/06/2022,2410177,88.22,RINGTONS LTD (387786),387786,Local Environmental Services,Adult Social Care,101,Supplies and Services,504,Equipment,5023,Revenue,CATERING.FOOD & BEVERAGES
07/06/2022,2410177,248.80,RINGTONS LTD (387786),387786,Local Environmental Services,Adult Social Care,101,Supplies and Services,504,Equipment,5023,Revenue,CATERING.FOOD & BEVERAGES
07/06/2022,2410177,276.51,RINGTONS LTD (387786),387786,Local Environmental Services,Adult Social Care,101,Supplies and Services,504,Equipment,5023,Revenue,CATERING.FOOD & BEVERAGES
07/06/2022,2410177,1010.75,RINGTONS LTD (387786),387786,Local Environmental Services,Adult Social Care,101,Supplies and Services,504,Equipment,5023,Revenue,CATERING.FOOD & BEVERAGES
06/06/2022,2405720,3270.00,CARE HOMES FOR ADULTS WITH DISABILITIES,364959,"Health, Education, Care and Safeguarding",Adult Social Care,101,Third Party Payments,505,Other Establishments,5041,Revenue,SOCIAL CARE.NURSING & RESIDENTIAL CARE
06/06/2022,2405763,1342.60,FLEXIBLE SUPPORT OPTIONS UK LIMITED,342478,"Health, Education, Care and Safeguarding",Adult Social Care,101,Third Party Payments,505,Private Contractors,5042,Revenue,SOCIAL CARE.CARE SERVICES
13/06/2022,2415159,1342.60,FLEXIBLE SUPPORT OPTIONS UK LIMITED,342478,"Health, Education, Care and Safeguarding",Adult Social Care,101,Third Party Payments,505,Private Contractors,5042,Revenue,SOCIAL CARE.CARE SERVICES
06/06/2022,2405482,114.00,Redacted Personal Data,389075,"Health, Education, Care and Safeguarding",Adult Social Care,101,Third Party Payments,505,Other Establishments,5041,Revenue,NON INFLUENCIBLE.INDIVIDUAL
06/06/2022,2405482,150.00,Redacted Personal Data,389075,"Health, Education, Care and Safeguarding",Adult Social Care,101,Third Party Payments,505,Other Establishments,5041,Revenue,NON INFLUENCIBLE.INDIVIDUAL
06/06/2022,2405483,10791.13,HESLEY GROUP LIMITED,008273,"Health, Education, Care and Safeguarding",Adult Social Care,101,Third Party Payments,505,Private Contractors,5042,Revenue,SOCIAL CARE.CHILDCARE SERVICES
06/06/2022,2405486,1377.39,Redacted Personal Data,353764,"Health, Education, Care and Safeguarding",Adult Social Care,101,Third Party Payments,505,Other Establishments,5041,Revenue,NON INFLUENCIBLE.INDIVIDUAL
06/06/2022,2405486,5398.40,Redacted Personal Data,353764,"Health, Education, Care and Safeguarding",Adult Social Care,101,Third Party Payments,505,Other Establishments,5041,Revenue,NON INFLUENCIBLE.INDIVIDUAL
06/06/2022,2405487,567.36,Redacted Personal Data,397291,"Health, Education, Care and Safeguarding",Adult Social Care,101,Third Party Payments,505,Other Establishments,5041,Revenue,NON INFLUENCIBLE.WELFARE
06/06/2022,2405489,509.63,Redacted Personal Data,396951,"Health, Education, Care and Safeguarding",Adult Social Care,101,Third Party Payments,505,Other Establishments,5041,Revenue,NON INFLUENCIBLE.INDIVIDUAL
06/06/2022,2405489,509.63,Redacted Personal Data,396951,"Health, Education, Care and Safeguarding",Adult Social Care,101,Third Party Payments,505,Other Establishments,5041,Revenue,NON INFLUENCIBLE.INDIVIDUAL
06/06/2022,2405490,428.00,Redacted Personal Data,012801,"Health, Education, Care and Safeguarding",Adult Social Care,101,Third Party Payments,505,Other Establishments,5041,Revenue,NON INFLUENCIBLE.WELFARE
06/06/2022,2405493,255.00,Redacted Personal Data,396923,"Health, Education, Care and Safeguarding",Adult Social Care,101,Third Party Payments,505,Other Establishments,5041,Revenue,NON INFLUENCIBLE.INDIVIDUAL
06/06/2022,2405494,285.60,Redacted Personal Data,396158,"Health, Education, Care and Safeguarding",Adult Social Care,101,Third Party Payments,505,Other Establishments,5041,Revenue,NON INFLUENCIBLE.INDIVIDUAL
06/06/2022,2405497,303.30,Redacted Personal Data,395808,"Health, Education, Care and Safeguarding",Adult Social Care,101,Third Party Payments,505,Other Establishments,5041,Revenue,NON INFLUENCIBLE.INDIVIDUAL
